Workbook

Sheet DM CALC ex BILLS
B3: Trade Date | C3: 2012-09-18
B4: Settle Date | C4: 2012-09-19 | H4: Principal | I4: =+I6-I5 -> 999956.1856 | K4: NOTES:
H5: Accrued Interest | I5: =P70 -> 311.1504238 | K5: This trade is a secondary market transaction.
B6: Interest Accrual/Last Cpn | C6: 2012-07-31 | E6: Coupon Pmts | H6: Total Money | I6: =+V18 -> 1000267.336 | K6: Assume you only have information as of the trade date of 9/18/2012.
B7: Next Coupon | C7: 2012-10-31 | E7: =+C7 -> 2012-10-31 | K7: Rounding conventions have not yet been addressed.
B8: Maturity | C8: 2014-07-31 | E8: =+EOMONTH(E7,3) -> 2013-01-31 | H8: Clean Price | I8: =100*I4/C10 -> 99.99561856 | K8: You may change Face Amount (cell C10), Spread (cell C11) and Discount Margin (cell C13) and the speadsheet will still calculate accurately.
E9: 2013-04-30
B10: Face Amount | C10: 1000000 | E10: 2013-07-31
B11: Spread | C11: 0.0012 | E11: 2013-10-31
E12: 2014-01-31
B13: Discount Margin | C13: 0.0012 | E13: 2014-04-30
E14: 2014-07-31
P18: TOTALS | Q18: =SUM(Q21:Q1152) -> 4561.562922 | R18: =SUM(R21:R1152) -> 1000000 | S18: =SUM(S21:S1152) -> 1004561.563 | V18: =SUM(V21:V1152) -> 1000267.336
A19: 13-Week Bill Information
A20: Auction Date | B20: Issue Date | C20: Maturity Dt | D20: Auction High Rate | E20: Auction Clearing Price | G20: Accrual Start | H20: Accrual End | I20: # of Days | J20: Denominator | K20: Time | L20: Index Rate | M20: Spread | N20: Interest Rate | O20: Daily Interest | P20: Accrued Interest(no present value applied) | Q20: Coupon Payment | R20: Principal Payment | S20: Total Cash Flow | T20: Discount Rate (Index Rate + Discount Margin) | U20: Discount Factor | V20: Present Value of Total Cash Flow
A21: 2012-07-23 | B21: =IF(G21="","",G21-IF(WEEKDAY(G21)<5,WEEKDAY(G21)+2,WEEKDAY(G21)-5)) -> 2012-07-26 | C21: =+B21+13*7 -> 2012-10-25 | D21: 0.00095 | E21: 99.975986 | G21: 2012-07-31 | H21: =+G21+1 -> 2012-08-01 | I21: =+H21-G21 -> 1 | J21: 360 | K21: =I21/J21 -> 0.002777777778 | L21: =360/(C21-B21)*((100/E21)-1) -> 0.0009502325845 | M21: =+$C$11 -> 0.0012 | N21: =MAX(0,M21+L21) -> 0.002150232584 | O21: =N21*$C$10*K21 -> 5.97286829 | P21: =+O21 -> 5.97286829 | Q21: 0 | R21: 0 | S21: =+R21+Q21 -> 0
A22: 2012-07-23 | B22: 2012-07-26 | C22: =+B22+13*7 -> 2012-10-25 | D22: 0.00095 | E22: 99.975986 | G22: =+H21 -> 2012-08-01 | H22: =+G22+1 -> 2012-08-02 | I22: =+H22-G22 -> 1 | J22: 360 | K22: =I22/J22 -> 0.002777777778 | L22: =360/(C22-B22)*((100/E22)-1) -> 0.0009502325845 | M22: 0.0012 | N22: =MAX(0,M22+L22) -> 0.002150232584 | O22: 5.97286829 | P22: =+P21+O22-Q21 -> 11.94573658 | Q22: 0 | R22: 0 | S22: =+R22+Q22 -> 0
A23: =+B23-3 -> 2012-07-30 | B23: 2012-08-02 | C23: 2012-11-01 | D23: 0.0011 | E23: 99.972194 | G23: =+H22 -> 2012-08-02 | H23: 2012-08-03 | I23: 1 | J23: 360 | K23: 0.002777777778 | L23: 0.001100323538 | M23: 0.0012 | N23: 0.002300323538 | O23: 6.389787607 | P23: =+P22+O23-Q22 -> 18.33552419 | Q23: 0 | R23: 0 | S23: 0
A24: =+B24-3 -> 2012-07-30 | B24: 2012-08-02 | C24: 2012-11-01 | D24: 0.0011 | E24: 99.972194 | G24: 2012-08-03 | H24: 2012-08-04 | I24: 1 | J24: 360 | K24: 0.002777777778 | L24: 0.001100323538 | M24: 0.0012 | N24: 0.002300323538 | O24: 6.389787607 | P24: 24.72531179 | Q24: 0 | R24: 0 | S24: 0
A25: 2012-07-30 | B25: 2012-08-02 | C25: 2012-11-01 | D25: 0.0011 | E25: 99.972194 | G25: 2012-08-04 | H25: 2012-08-05 | I25: 1 | J25: 360 | K25: 0.002777777778 | L25: 0.001100323538 | M25: 0.0012 | N25: 0.002300323538 | O25: 6.389787607 | P25: 31.1150994 | Q25: 0 | R25: 0 | S25: 0
A26: 2012-07-30 | B26: 2012-08-02 | C26: 2012-11-01 | D26: 0.0011 | E26: 99.972194 | G26: 2012-08-05 | H26: 2012-08-06 | I26: 1 | J26: 360 | K26: 0.002777777778 | L26: 0.001100323538 | M26: 0.0012 | N26: 0.002300323538 | O26: 6.389787607 | P26: 37.50488701 | Q26: 0 | R26: 0 | S26: 0
A27: 2012-07-30 | B27: 2012-08-02 | C27: 2012-11-01 | D27: 0.0011 | E27: 99.972194 | G27: 2012-08-06 | H27: 2012-08-07 | I27: 1 | J27: 360 | K27: 0.002777777778 | L27: 0.001100323538 | M27: 0.0012 | N27: 0.002300323538 | O27: 6.389787607 | P27: 43.89467461 | Q27: 0 | R27: 0 | S27: 0
A28: 2012-07-30 | B28: 2012-08-02 | C28: 2012-11-01 | D28: 0.0011 | E28: 99.972194 | G28: 2012-08-07 | H28: 2012-08-08 | I28: 1 | J28: 360 | K28: 0.002777777778 | L28: 0.001100323538 | M28: 0.0012 | N28: 0.002300323538 | O28: 6.389787607 | P28: 50.28446222 | Q28: 0 | R28: 0 | S28: 0
A29: 2012-07-30 | B29: 2012-08-02 | C29: 2012-11-01 | D29: 0.0011 | E29: 99.972194 | G29: 2012-08-08 | H29: 2012-08-09 | I29: 1 | J29: 360 | K29: 0.002777777778 | L29: 0.001100323538 | M29: 0.0012 | N29: 0.002300323538 | O29: 6.389787607 | P29: 56.67424983 | Q29: 0 | R29: 0 | S29: 0
A30: 2012-08-06 | B30: 2012-08-09 | C30: 2012-11-08 | D30: 0.001 | E30: 99.974722 | G30: 2012-08-09 | H30: 2012-08-10 | I30: 1 | J30: 360 | K30: 0.002777777778 | L30: 0.001000261637 | M30: 0.0012 | N30: 0.002200261637 | O30: 6.111837882 | P30: 62.78608771 | Q30: 0 | R30: 0 | S30: 0
A31: 2012-08-06 | B31: 2012-08-09 | C31: 2012-11-08 | D31: 0.001 | E31: 99.974722 | G31: 2012-08-10 | H31: 2012-08-11 | I31: 1 | J31: 360 | K31: 0.002777777778 | L31: 0.001000261637 | M31: 0.0012 | N31: 0.002200261637 | O31: 6.111837882 | P31: 68.89792559 | Q31: 0 | R31: 0 | S31: 0
A32: 2012-08-06 | B32: 2012-08-09 | C32: 2012-11-08 | D32: 0.001 | E32: 99.974722 | G32: 2012-08-11 | H32: 2012-08-12 | I32: 1 | J32: 360 | K32: 0.002777777778 | L32: 0.001000261637 | M32: 0.0012 | N32: 0.002200261637 | O32: 6.111837882 | P32: 75.00976347 | Q32: 0 | R32: 0 | S32: 0
A33: 2012-08-06 | B33: 2012-08-09 | C33: 2012-11-08 | D33: 0.001 | E33: 99.974722 | G33: 2012-08-12 | H33: 2012-08-13 | I33: 1 | J33: 360 | K33: 0.002777777778 | L33: 0.001000261637 | M33: 0.0012 | N33: 0.002200261637 | O33: 6.111837882 | P33: 81.12160135 | Q33: 0 | R33: 0 | S33: 0
A34: 2012-08-06 | B34: 2012-08-09 | C34: 2012-11-08 | D34: 0.001 | E34: 99.974722 | G34: 2012-08-13 | H34: 2012-08-14 | I34: 1 | J34: 360 | K34: 0.002777777778 | L34: 0.001000261637 | M34: 0.0012 | N34: 0.002200261637 | O34: 6.111837882 | P34: 87.23343923 | Q34: 0 | R34: 0 | S34: 0
A35: 2012-08-06 | B35: 2012-08-09 | C35: 2012-11-08 | D35: 0.001 | E35: 99.974722 | G35: 2012-08-14 | H35: 2012-08-15 | I35: 1 | J35: 360 | K35: 0.002777777778 | L35: 0.001000261637 | M35: 0.0012 | N35: 0.002200261637 | O35: 6.111837882 | P35: 93.34527712 | Q35: 0 | R35: 0 | S35: 0
A36: 2012-08-06 | B36: 2012-08-09 | C36: 2012-11-08 | D36: 0.001 | E36: 99.974722 | G36: 2012-08-15 | H36: 2012-08-16 | I36: 1 | J36: 360 | K36: 0.002777777778 | L36: 0.001000261637 | M36: 0.0012 | N36: 0.002200261637 | O36: 6.111837882 | P36: 99.457115 | Q36: 0 | R36: 0 | S36: 0
A37: 2012-08-13 | B37: 2012-08-16 | C37: 2012-11-15 | D37: 0.0011 | E37: 99.972194 | G37: 2012-08-16 | H37: 2012-08-17 | I37: 1 | J37: 360 | K37: 0.002777777778 | L37: 0.001100323538 | M37: 0.0012 | N37: 0.002300323538 | O37: 6.389787607 | P37: 105.8469026 | Q37: 0 | R37: 0 | S37: 0
A38: 2012-08-13 | B38: 2012-08-16 | C38: 2012-11-15 | D38: 0.0011 | E38: 99.972194 | G38: 2012-08-17 | H38: 2012-08-18 | I38: 1 | J38: 360 | K38: 0.002777777778 | L38: 0.001100323538 | M38: 0.0012 | N38: 0.002300323538 | O38: 6.389787607 | P38: 112.2366902 | Q38: 0 | R38: 0 | S38: 0
A39: 2012-08-13 | B39: 2012-08-16 | C39: 2012-11-15 | D39: 0.0011 | E39: 99.972194 | G39: 2012-08-18 | H39: 2012-08-19 | I39: 1 | J39: 360 | K39: 0.002777777778 | L39: 0.001100323538 | M39: 0.0012 | N39: 0.002300323538 | O39: 6.389787607 | P39: 118.6264778 | Q39: 0 | R39: 0 | S39: 0
A40: 2012-08-13 | B40: 2012-08-16 | C40: 2012-11-15 | D40: 0.0011 | E40: 99.972194 | G40: 2012-08-19 | H40: 2012-08-20 | I40: 1 | J40: 360 | K40: 0.002777777778 | L40: 0.001100323538 | M40: 0.0012 | N40: 0.002300323538 | O40: 6.389787607 | P40: 125.0162654 | Q40: 0 | R40: 0 | S40: 0
A41: 2012-08-13 | B41: 2012-08-16 | C41: 2012-11-15 | D41: 0.0011 | E41: 99.972194 | G41: 2012-08-20 | H41: 2012-08-21 | I41: 1 | J41: 360 | K41: 0.002777777778 | L41: 0.001100323538 | M41: 0.0012 | N41: 0.002300323538 | O41: 6.389787607 | P41: 131.406053 | Q41: 0 | R41: 0 | S41: 0
A42: 2012-08-13 | B42: 2012-08-16 | C42: 2012-11-15 | D42: 0.0011 | E42: 99.972194 | G42: 2012-08-21 | H42: 2012-08-22 | I42: 1 | J42: 360 | K42: 0.002777777778 | L42: 0.001100323538 | M42: 0.0012 | N42: 0.002300323538 | O42: 6.389787607 | P42: 137.7958406 | Q42: 0 | R42: 0 | S42: 0
A43: 2012-08-13 | B43: 2012-08-16 | C43: 2012-11-15 | D43: 0.0011 | E43: 99.972194 | G43: 2012-08-22 | H43: 2012-08-23 | I43: 1 | J43: 360 | K43: 0.002777777778 | L43: 0.001100323538 | M43: 0.0012 | N43: 0.002300323538 | O43: 6.389787607 | P43: 144.1856282 | Q43: 0 | R43: 0 | S43: 0
A44: 2012-08-20 | B44: 2012-08-23 | C44: 2012-11-23 | D44: 0.00105 | E44: 99.973167 | G44: 2012-08-23 | H44: 2012-08-24 | I44: 1 | J44: 360 | K44: 0.002777777778 | L44: =360/(C44-B44)*((100/E44)-1) -> 0.001050268775 | M44: 0.0012 | N44: 0.002250268775 | O44: 6.250746598 | P44: 150.4363748 | Q44: 0 | R44: 0 | S44: 0
A45: 2012-08-20 | B45: 2012-08-23 | C45: 2012-11-23 | D45: 0.00105 | E45: 99.973167 | G45: 2012-08-24 | H45: 2012-08-25 | I45: 1 | J45: 360 | K45: 0.002777777778 | L45: 0.001050268775 | M45: 0.0012 | N45: 0.002250268775 | O45: 6.250746598 | P45: 156.6871214 | Q45: 0 | R45: 0 | S45: 0
A46: 2012-08-20 | B46: 2012-08-23 | C46: 2012-11-23 | D46: 0.00105 | E46: 99.973167 | G46: 2012-08-25 | H46: 2012-08-26 | I46: 1 | J46: 360 | K46: 0.002777777778 | L46: 0.001050268775 | M46: 0.0012 | N46: 0.002250268775 | O46: 6.250746598 | P46: 162.937868 | Q46: 0 | R46: 0 | S46: 0
A47: 2012-08-20 | B47: 2012-08-23 | C47: 2012-11-23 | D47: 0.00105 | E47: 99.973167 | G47: 2012-08-26 | H47: 2012-08-27 | I47: 1 | J47: 360 | K47: 0.002777777778 | L47: 0.001050268775 | M47: 0.0012 | N47: 0.002250268775 | O47: 6.250746598 | P47: 169.1886146 | Q47: 0 | R47: 0 | S47: 0
A48: 2012-08-20 | B48: 2012-08-23 | C48: 2012-11-23 | D48: 0.00105 | E48: 99.973167 | G48: 2012-08-27 | H48: 2012-08-28 | I48: 1 | J48: 360 | K48: 0.002777777778 | L48: 0.001050268775 | M48: 0.0012 | N48: 0.002250268775 | O48: 6.250746598 | P48: 175.4393612 | Q48: 0 | R48: 0 | S48: 0
A49: 2012-08-20 | B49: 2012-08-23 | C49: 2012-11-23 | D49: 0.00105 | E49: 99.973167 | G49: 2012-08-28 | H49: 2012-08-29 | I49: 1 | J49: 360 | K49: 0.002777777778 | L49: 0.001050268775 | M49: 0.0012 | N49: 0.002250268775 | O49: 6.250746598 | P49: 181.6901078 | Q49: 0 | R49: 0 | S49: 0
A50: 2012-08-20 | B50: 2012-08-23 | C50: 2012-11-23 | D50: 0.00105 | E50: 99.973167 | G50: 2012-08-29 | H50: 2012-08-30 | I50: 1 | J50: 360 | K50: 0.002777777778 | L50: 0.001050268775 | M50: 0.0012 | N50: 0.002250268775 | O50: 6.250746598 | P50: 187.9408544 | Q50: 0 | R50: 0 | S50: 0
A51: 2012-08-27 | B51: 2012-08-30 | C51: 2012-11-29 | D51: 0.00105 | E51: 99.973458 | G51: 2012-08-30 | H51: 2012-08-31 | I51: 1 | J51: 360 | K51: 0.002777777778 | L51: 0.001050291955 | M51: 0.0012 | N51: 0.002250291955 | O51: 6.250810987 | P51: 194.1916654 | Q51: 0 | R51: 0 | S51: 0
A52: 2012-08-27 | B52: 2012-08-30 | C52: 2012-11-29 | D52: 0.00105 | E52: 99.973458 | G52: 2012-08-31 | H52: 2012-09-01 | I52: 1 | J52: 360 | K52: 0.002777777778 | L52: 0.001050291955 | M52: 0.0012 | N52: 0.002250291955 | O52: 6.250810987 | P52: 200.4424764 | Q52: 0 | R52: 0 | S52: 0
A53: 2012-08-27 | B53: =IF(G53="","",G53-IF(WEEKDAY(G53)<5,WEEKDAY(G53)+2,WEEKDAY(G53)-5)) -> 2012-08-30 | C53: 2012-11-29 | D53: 0.00105 | E53: 99.973458 | G53: 2012-09-01 | H53: 2012-09-02 | I53: 1 | J53: 360 | K53: 0.002777777778 | L53: 0.001050291955 | M53: 0.0012 | N53: 0.002250291955 | O53: 6.250810987 | P53: 206.6932874 | Q53: 0 | R53: 0 | S53: 0
A54: 2012-08-27 | B54: 2012-08-30 | C54: 2012-11-29 | D54: 0.00105 | E54: 99.973458 | G54: 2012-09-02 | H54: 2012-09-03 | I54: 1 | J54: 360 | K54: 0.002777777778 | L54: 0.001050291955 | M54: 0.0012 | N54: 0.002250291955 | O54: 6.250810987 | P54: 212.9440984 | Q54: 0 | R54: 0 | S54: 0
A55: 2012-08-27 | B55: 2012-08-30 | C55: 2012-11-29 | D55: 0.00105 | E55: 99.973458 | G55: 2012-09-03 | H55: 2012-09-04 | I55: 1 | J55: 360 | K55: 0.002777777778 | L55: 0.001050291955 | M55: 0.0012 | N55: 0.002250291955 | O55: 6.250810987 | P55: 219.1949094 | Q55: 0 | R55: 0 | S55: 0
A56: 2012-08-27 | B56: 2012-08-30 | C56: 2012-11-29 | D56: 0.00105 | E56: 99.973458 | G56: 2012-09-04 | H56: 2012-09-05 | I56: 1 | J56: 360 | K56: 0.002777777778 | L56: 0.001050291955 | M56: 0.0012 | N56: 0.002250291955 | O56: 6.250810987 | P56: 225.4457203 | Q56: 0 | R56: 0 | S56: 0
A57: 2012-08-27 | B57: 2012-08-30 | C57: 2012-11-29 | D57: 0.00105 | E57: 99.973458 | G57: 2012-09-05 | H57: 2012-09-06 | I57: 1 | J57: 360 | K57: 0.002777777778 | L57: 0.001050291955 | M57: 0.0012 | N57: 0.002250291955 | O57: 6.250810987 | P57: 231.6965313 | Q57: 0 | R57: 0 | S57: 0
A58: 2012-09-04 | B58: 2012-09-06 | C58: 2012-12-06 | D58: 0.001 | E58: 99.974722 | G58: 2012-09-06 | H58: 2012-09-07 | I58: 1 | J58: 360 | K58: 0.002777777778 | L58: 0.001000261637 | M58: 0.0012 | N58: 0.002200261637 | O58: 6.111837882 | P58: 237.8083692 | Q58: 0 | R58: 0 | S58: 0
A59: 2012-09-04 | B59: 2012-09-06 | C59: 2012-12-06 | D59: 0.001 | E59: 99.974722 | G59: 2012-09-07 | H59: 2012-09-08 | I59: 1 | J59: 360 | K59: 0.002777777778 | L59: 0.001000261637 | M59: 0.0012 | N59: 0.002200261637 | O59: 6.111837882 | P59: 243.9202071 | Q59: 0 | R59: 0 | S59: 0
A60: 2012-09-04 | B60: 2012-09-06 | C60: 2012-12-06 | D60: 0.001 | E60: 99.974722 | G60: 2012-09-08 | H60: 2012-09-09 | I60: 1 | J60: 360 | K60: 0.002777777778 | L60: 0.001000261637 | M60: 0.0012 | N60: 0.002200261637 | O60: 6.111837882 | P60: 250.032045 | Q60: 0 | R60: 0 | S60: 0
A61: 2012-09-04 | B61: 2012-09-06 | C61: 2012-12-06 | D61: 0.001 | E61: 99.974722 | G61: 2012-09-09 | H61: 2012-09-10 | I61: 1 | J61: 360 | K61: 0.002777777778 | L61: 0.001000261637 | M61: 0.0012 | N61: 0.002200261637 | O61: 6.111837882 | P61: 256.1438829 | Q61: 0 | R61: 0 | S61: 0
A62: 2012-09-04 | B62: 2012-09-06 | C62: 2012-12-06 | D62: 0.001 | E62: 99.974722 | G62: 2012-09-10 | H62: 2012-09-11 | I62: 1 | J62: 360 | K62: 0.002777777778 | L62: 0.001000261637 | M62: 0.0012 | N62: 0.002200261637 | O62: 6.111837882 | P62: 262.2557207 | Q62: 0 | R62: 0 | S62: 0
A63: 2012-09-04 | B63: 2012-09-06 | C63: 2012-12-06 | D63: 0.001 | E63: 99.974722 | G63: 2012-09-11 | H63: 2012-09-12 | I63: 1 | J63: 360 | K63: 0.002777777778 | L63: 0.001000261637 | M63: 0.0012 | N63: 0.002200261637 | O63: 6.111837882 | P63: =+P62+O63-Q62 -> 268.3675586 | Q63: 0 | R63: 0 | S63: 0
A64: 2012-09-04 | B64: 2012-09-06 | C64: 2012-12-06 | D64: 0.001 | E64: 99.974722 | G64: 2012-09-12 | H64: 2012-09-13 | I64: 1 | J64: 360 | K64: 0.002777777778 | L64: 0.001000261637 | M64: 0.0012 | N64: 0.002200261637 | O64: 6.111837882 | P64: 274.4793965 | Q64: 0 | R64: 0 | S64: 0
A65: 2012-09-10 | B65: 2012-09-13 | C65: 2012-12-13 | D65: 0.001 | E65: 99.974722 | G65: 2012-09-13 | H65: 2012-09-14 | I65: 1 | J65: 360 | K65: 0.002777777778 | L65: 0.001000261637 | M65: 0.0012 | N65: 0.002200261637 | O65: 6.111837882 | P65: 280.5912344 | Q65: 0 | R65: 0 | S65: 0
A66: 2012-09-10 | B66: 2012-09-13 | C66: 2012-12-13 | D66: 0.001 | E66: 99.974722 | G66: 2012-09-14 | H66: 2012-09-15 | I66: 1 | J66: 360 | K66: 0.002777777778 | L66: 0.001000261637 | M66: 0.0012 | N66: 0.002200261637 | O66: 6.111837882 | P66: 286.7030723 | Q66: 0 | R66: 0 | S66: 0
A67: 2012-09-10 | B67: 2012-09-13 | C67: 2012-12-13 | D67: 0.001 | E67: 99.974722 | G67: 2012-09-15 | H67: 2012-09-16 | I67: 1 | J67: 360 | K67: 0.002777777778 | L67: 0.001000261637 | M67: 0.0012 | N67: 0.002200261637 | O67: 6.111837882 | P67: 292.8149102 | Q67: 0 | R67: 0 | S67: 0
A68: 2012-09-10 | B68: 2012-09-13 | C68: 2012-12-13 | D68: 0.001 | E68: 99.974722 | G68: 2012-09-16 | H68: 2012-09-17 | I68: 1 | J68: 360 | K68: 0.002777777778 | L68: 0.001000261637 | M68: 0.0012 | N68: 0.002200261637 | O68: 6.111837882 | P68: 298.926748 | Q68: 0 | R68: 0 | S68: 0
A69: 2012-09-10 | B69: 2012-09-13 | C69: 2012-12-13 | D69: 0.001 | E69: 99.974722 | G69: 2012-09-17 | H69: 2012-09-18 | I69: 1 | J69: 360 | K69: 0.002777777778 | L69: 0.001000261637 | M69: 0.0012 | N69: 0.002200261637 | O69: 6.111837882 | P69: 305.0385859 | Q69: 0 | R69: 0 | S69: 0
A70: 2012-09-10 | B70: 2012-09-13 | C70: 2012-12-13 | D70: 0.001 | E70: 99.974722 | G70: 2012-09-18 | H70: 2012-09-19 | I70: 1 | J70: 360 | K70: 0.002777777778 | L70: 0.001000261637 | M70: 0.0012 | N70: 0.002200261637 | O70: 6.111837882 | P70: 311.1504238 | Q70: 0 | R70: 0 | S70: 0 | U70: 1 | V70: =+U70*S70 -> 0
A71: 2012-09-10 | B71: 2012-09-13 | C71: 2012-12-13 | D71: 0.001 | E71: 99.974722 | G71: 2012-09-19 | H71: 2012-09-20 | I71: 1 | J71: 360 | K71: 0.002777777778 | L71: 0.001000261637 | M71: 0.0012 | N71: 0.002200261637 | O71: 6.111837882 | P71: 317.2622617 | Q71: 0 | R71: 0 | S71: 0 | T71: =L71+$C$13 -> 0.002200261637
A72: 2012-09-17 | B72: 2012-09-20 | C72: 2012-12-20 | D72: 0.00105 | E72: 99.973458 | G72: 2012-09-20 | H72: 2012-09-21 | I72: 1 | J72: 360 | K72: 0.002777777778 | L72: 0.001050291955 | M72: 0.0012 | N72: 0.002250291955 | O72: 6.250810987 | P72: 323.5130727 | Q72: 0 | R72: 0 | S72: 0 | T72: 0.002250291955
A73: 2012-09-17 | B73: 2012-09-20 | C73: 2012-12-20 | D73: 0.00105 | E73: 99.973458 | G73: 2012-09-21 | H73: 2012-09-22 | I73: 1 | J73: 360 | K73: 0.002777777778 | L73: 0.001050291955 | M73: 0.0012 | N73: 0.002250291955 | O73: 6.250810987 | P73: 329.7638837 | Q73: 0 | R73: 0 | S73: 0 | T73: 0.002250291955
A74: 2012-09-17 | B74: 2012-09-20 | C74: 2012-12-20 | D74: 0.00105 | E74: 99.973458 | G74: 2012-09-22 | H74: 2012-09-23 | I74: 1 | J74: 360 | K74: 0.002777777778 | L74: 0.001050291955 | M74: 0.0012 | N74: 0.002250291955 | O74: 6.250810987 | P74: 336.0146946 | Q74: 0 | R74: 0 | S74: 0 | T74: 0.002250291955
A75: 2012-09-17 | B75: 2012-09-20 | C75: 2012-12-20 | D75: 0.00105 | E75: 99.973458 | G75: 2012-09-23 | H75: 2012-09-24 | I75: 1 | J75: 360 | K75: 0.002777777778 | L75: 0.001050291955 | M75: 0.0012 | N75: 0.002250291955 | O75: 6.250810987 | P75: 342.2655056 | Q75: 0 | R75: 0 | S75: 0 | T75: 0.002250291955
A76: 2012-09-17 | B76: 2012-09-20 | C76: 2012-12-20 | D76: 0.00105 | E76: 99.973458 | G76: 2012-09-24 | H76: 2012-09-25 | I76: 1 | J76: 360 | K76: 0.002777777778 | L76: 0.001050291955 | M76: 0.0012 | N76: 0.002250291955 | O76: 6.250810987 | P76: 348.5163166 | Q76: 0 | R76: 0 | S76: 0 | T76: 0.002250291955
A77: 2012-09-17 | B77: 2012-09-20 | C77: 2012-12-20 | D77: 0.00105 | E77: 99.973458 | G77: 2012-09-25 | H77: 2012-09-26 | I77: 1 | J77: 360 | K77: 0.002777777778 | L77: 0.001050291955 | M77: 0.0012 | N77: 0.002250291955 | O77: 6.250810987 | P77: 354.7671276 | Q77: 0 | R77: 0 | S77: 0 | T77: 0.002250291955
A78: 2012-09-17 | B78: 2012-09-20 | C78: 2012-12-20 | D78: 0.00105 | E78: 99.973458 | G78: 2012-09-26 | H78: 2012-09-27 | I78: 1 | J78: 360 | K78: 0.002777777778 | L78: 0.001050291955 | M78: 0.0012 | N78: 0.002250291955 | O78: 6.250810987 | P78: 361.0179386 | Q78: 0 | R78: 0 | S78: 0 | T78: 0.002250291955
G79: 2012-09-27 | H79: 2012-09-28 | I79: 1 | J79: 360 | K79: 0.002777777778 | L79: =L78 -> 0.001050291955 | M79: 0.0012 | N79: 0.002250291955 | O79: 6.250810987 | P79: 367.2687496 | Q79: 0 | R79: 0 | S79: 0 | T79: 0.002250291955
G80: 2012-09-28 | H80: 2012-09-29 | I80: 1 | J80: 360 | K80: 0.002777777778 | L80: 0.001050291955 | M80: 0.0012 | N80: 0.002250291955 | O80: 6.250810987 | P80: 373.5195606 | Q80: 0 | R80: 0 | S80: 0 | T80: 0.002250291955
G81: 2012-09-29 | H81: 2012-09-30 | I81: 1 | J81: 360 | K81: 0.002777777778 | L81: 0.001050291955 | M81: 0.0012 | N81: 0.002250291955 | O81: 6.250810987 | P81: 379.7703715 | Q81: 0 | R81: 0 | S81: 0 | T81: 0.002250291955
G82: 2012-09-30 | H82: 2012-10-01 | I82: 1 | J82: 360 | K82: 0.002777777778 | L82: 0.001050291955 | M82: 0.0012 | N82: 0.002250291955 | O82: 6.250810987 | P82: 386.0211825 | Q82: 0 | R82: 0 | S82: 0 | T82: 0.002250291955
G83: 2012-10-01 | H83: 2012-10-02 | I83: 1 | J83: 360 | K83: 0.002777777778 | L83: 0.001050291955 | M83: 0.0012 | N83: 0.002250291955 | O83: 6.250810987 | P83: 392.2719935 | Q83: 0 | R83: 0 | S83: 0 | T83: 0.002250291955
G84: 2012-10-02 | H84: 2012-10-03 | I84: 1 | J84: 360 | K84: 0.002777777778 | L84: 0.001050291955 | M84: 0.0012 | N84: 0.002250291955 | O84: 6.250810987 | P84: 398.5228045 | Q84: 0 | R84: 0 | S84: 0 | T84: 0.002250291955
G85: 2012-10-03 | H85: 2012-10-04 | I85: 1 | J85: 360 | K85: 0.002777777778 | L85: 0.001050291955 | M85: =+$C$11 -> 0.0012 | N85: 0.002250291955 | O85: =N85*$C$10*K85 -> 6.250810987 | P85: 404.7736155 | Q85: 0 | R85: 0 | S85: 0 | T85: =L85+$C$13 -> 0.002250291955
G86: 2012-10-04 | H86: =+G86+1 -> 2012-10-05 | I86: =+H86-G86 -> 1 | J86: 360 | K86: =I86/J86 -> 0.002777777778 | L86: 0.001050291955 | M86: 0.0012 | N86: =MAX(0,M86+L86) -> 0.002250291955 | O86: 6.250810987 | P86: 411.0244265 | Q86: 0 | R86: 0 | S86: =+R86+Q86 -> 0 | T86: 0.002250291955
G87: =+H86 -> 2012-10-05 | H87: 2012-10-06 | I87: 1 | J87: 360 | K87: 0.002777777778 | L87: 0.001050291955 | M87: 0.0012 | N87: 0.002250291955 | O87: 6.250810987 | P87: =+P86+O87-Q86 -> 417.2752375 | Q87: 0 | R87: 0 | S87: 0 | T87: 0.002250291955
G88: 2012-10-06 | H88: 2012-10-07 | I88: 1 | J88: 360 | K88: 0.002777777778 | L88: 0.001050291955 | M88: 0.0012 | N88: 0.002250291955 | O88: 6.250810987 | P88: 423.5260485 | Q88: 0 | R88: 0 | S88: 0 | T88: 0.002250291955
G89: 2012-10-07 | H89: 2012-10-08 | I89: 1 | J89: 360 | K89: 0.002777777778 | L89: 0.001050291955 | M89: 0.0012 | N89: 0.002250291955 | O89: 6.250810987 | P89: 429.7768594 | Q89: 0 | R89: 0 | S89: 0 | T89: 0.002250291955
G90: 2012-10-08 | H90: 2012-10-09 | I90: 1 | J90: 360 | K90: 0.002777777778 | L90: 0.001050291955 | M90: 0.0012 | N90: 0.002250291955 | O90: 6.250810987 | P90: 436.0276704 | Q90: 0 | R90: 0 | S90: 0 | T90: 0.002250291955
G91: 2012-10-09 | H91: 2012-10-10 | I91: 1 | J91: 360 | K91: 0.002777777778 | L91: 0.001050291955 | M91: 0.0012 | N91: 0.002250291955 | O91: 6.250810987 | P91: 442.2784814 | Q91: 0 | R91: 0 | S91: 0 | T91: 0.002250291955
G92: 2012-10-10 | H92: 2012-10-11 | I92: 1 | J92: 360 | K92: 0.002777777778 | L92: 0.001050291955 | M92: 0.0012 | N92: 0.002250291955 | O92: 6.250810987 | P92: 448.5292924 | Q92: 0 | R92: 0 | S92: 0 | T92: 0.002250291955
G93: 2012-10-11 | H93: 2012-10-12 | I93: 1 | J93: 360 | K93: 0.002777777778 | L93: 0.001050291955 | M93: 0.0012 | N93: 0.002250291955 | O93: 6.250810987 | P93: 454.7801034 | Q93: 0 | R93: 0 | S93: 0 | T93: 0.002250291955
G94: 2012-10-12 | H94: 2012-10-13 | I94: 1 | J94: 360 | K94: 0.002777777778 | L94: 0.001050291955 | M94: 0.0012 | N94: 0.002250291955 | O94: 6.250810987 | P94: 461.0309144 | Q94: 0 | R94: 0 | S94: 0 | T94: 0.002250291955
G95: 2012-10-13 | H95: 2012-10-14 | I95: 1 | J95: 360 | K95: 0.002777777778 | L95: 0.001050291955 | M95: 0.0012 | N95: 0.002250291955 | O95: 6.250810987 | P95: 467.2817254 | Q95: 0 | R95: 0 | S95: 0 | T95: 0.002250291955
G96: 2012-10-14 | H96: 2012-10-15 | I96: 1 | J96: 360 | K96: 0.002777777778 | L96: 0.001050291955 | M96: 0.0012 | N96: 0.002250291955 | O96: 6.250810987 | P96: 473.5325364 | Q96: 0 | R96: 0 | S96: 0 | T96: 0.002250291955
G97: 2012-10-15 | H97: 2012-10-16 | I97: 1 | J97: 360 | K97: 0.002777777778 | L97: 0.001050291955 | M97: 0.0012 | N97: 0.002250291955 | O97: 6.250810987 | P97: 479.7833473 | Q97: 0 | R97: 0 | S97: 0 | T97: 0.002250291955
G98: 2012-10-16 | H98: 2012-10-17 | I98: 1 | J98: 360 | K98: 0.002777777778 | L98: 0.001050291955 | M98: 0.0012 | N98: 0.002250291955 | O98: 6.250810987 | P98: 486.0341583 | Q98: 0 | R98: 0 | S98: 0 | T98: 0.002250291955
G99: 2012-10-17 | H99: 2012-10-18 | I99: 1 | J99: 360 | K99: 0.002777777778 | L99: 0.001050291955 | M99: 0.0012 | N99: 0.002250291955 | O99: 6.250810987 | P99: 492.2849693 | Q99: 0 | R99: 0 | S99: 0 | T99: 0.002250291955
G100: 2012-10-18 | H100: 2012-10-19 | I100: 1 | J100: 360 | K100: 0.002777777778 | L100: 0.001050291955 | M100: 0.0012 | N100: 0.002250291955 | O100: 6.250810987 | P100: 498.5357803 | Q100: 0 | R100: 0 | S100: 0 | T100: 0.002250291955
G101: 2012-10-19 | H101: 2012-10-20 | I101: 1 | J101: 360 | K101: 0.002777777778 | L101: 0.001050291955 | M101: 0.0012 | N101: 0.002250291955 | O101: 6.250810987 | P101: 504.7865913 | Q101: 0 | R101: 0 | S101: 0 | T101: 0.002250291955
G102: 2012-10-20 | H102: 2012-10-21 | I102: 1 | J102: 360 | K102: 0.002777777778 | L102: 0.001050291955 | M102: 0.0012 | N102: 0.002250291955 | O102: 6.250810987 | P102: 511.0374023 | Q102: 0 | R102: 0 | S102: 0 | T102: 0.002250291955
G103: 2012-10-21 | H103: 2012-10-22 | I103: 1 | J103: 360 | K103: 0.002777777778 | L103: 0.001050291955 | M103: 0.0012 | N103: 0.002250291955 | O103: 6.250810987 | P103: 517.2882133 | Q103: 0 | R103: 0 | S103: 0 | T103: 0.002250291955
G104: 2012-10-22 | H104: 2012-10-23 | I104: 1 | J104: 360 | K104: 0.002777777778 | L104: 0.001050291955 | M104: 0.0012 | N104: 0.002250291955 | O104: 6.250810987 | P104: 523.5390242 | Q104: 0 | R104: 0 | S104: 0 | T104: 0.002250291955
G105: 2012-10-23 | H105: 2012-10-24 | I105: 1 | J105: 360 | K105: 0.002777777778 | L105: 0.001050291955 | M105: 0.0012 | N105: 0.002250291955 | O105: 6.250810987 | P105: 529.7898352 | Q105: 0 | R105: 0 | S105: 0 | T105: 0.002250291955
G106: 2012-10-24 | H106: 2012-10-25 | I106: 1 | J106: 360 | K106: 0.002777777778 | L106: 0.001050291955 | M106: 0.0012 | N106: 0.002250291955 | O106: 6.250810987 | P106: 536.0406462 | Q106: 0 | R106: 0 | S106: 0 | T106: 0.002250291955
G107: 2012-10-25 | H107: 2012-10-26 | I107: 1 | J107: 360 | K107: 0.002777777778 | L107: 0.001050291955 | M107: 0.0012 | N107: 0.002250291955 | O107: 6.250810987 | P107: 542.2914572 | Q107: 0 | R107: 0 | S107: 0 | T107: 0.002250291955
G108: 2012-10-26 | H108: 2012-10-27 | I108: 1 | J108: 360 | K108: 0.002777777778 | L108: 0.001050291955 | M108: 0.0012 | N108: 0.002250291955 | O108: 6.250810987 | P108: 548.5422682 | Q108: 0 | R108: 0 | S108: 0 | T108: 0.002250291955
G109: 2012-10-27 | H109: 2012-10-28 | I109: 1 | J109: 360 | K109: 0.002777777778 | L109: 0.001050291955 | M109: 0.0012 | N109: 0.002250291955 | O109: 6.250810987 | P109: 554.7930792 | Q109: 0 | R109: 0 | S109: 0 | T109: 0.002250291955
G110: 2012-10-28 | H110: 2012-10-29 | I110: 1 | J110: 360 | K110: 0.002777777778 | L110: 0.001050291955 | M110: 0.0012 | N110: 0.002250291955 | O110: 6.250810987 | P110: 561.0438902 | Q110: 0 | R110: 0 | S110: 0 | T110: 0.002250291955
G111: 2012-10-29 | H111: 2012-10-30 | I111: 1 | J111: 360 | K111: 0.002777777778 | L111: 0.001050291955 | M111: 0.0012 | N111: 0.002250291955 | O111: 6.250810987 | P111: 567.2947012 | Q111: 0 | R111: 0 | S111: 0 | T111: 0.002250291955
G112: 2012-10-30 | H112: 2012-10-31 | I112: 1 | J112: 360 | K112: 0.002777777778 | L112: 0.001050291955 | M112: 0.0012 | N112: 0.002250291955 | O112: 6.250810987 | P112: 573.5455121 | Q112: =SUM(O21:O112) -> 573.5455121 | R112: 0 | S112: 573.5455121 | T112: 0.002250291955 | U112: =U70/(1+AVERAGE(T71:T112)*SUM(K64:K112)) -> 0.9996939661 | V112: =+U112*S112 -> 573.3699878
G113: 2012-10-31 | H113: 2012-11-01 | I113: 1 | J113: 360 | K113: 0.002777777778 | L113: 0.001050291955 | M113: 0.0012 | N113: 0.002250291955 | O113: 6.250810987 | P113: 6.250810987 | Q113: 0 | R113: 0 | S113: 0 | T113: 0.002250291955
G114: 2012-11-01 | H114: 2012-11-02 | I114: 1 | J114: 360 | K114: 0.002777777778 | L114: 0.001050291955 | M114: 0.0012 | N114: 0.002250291955 | O114: 6.250810987 | P114: 12.50162197 | Q114: 0 | R114: 0 | S114: 0 | T114: 0.002250291955
G115: 2012-11-02 | H115: 2012-11-03 | I115: 1 | J115: 360 | K115: 0.002777777778 | L115: 0.001050291955 | M115: 0.0012 | N115: 0.002250291955 | O115: 6.250810987 | P115: 18.75243296 | Q115: 0 | R115: 0 | S115: 0 | T115: 0.002250291955
G116: 2012-11-03 | H116: 2012-11-04 | I116: 1 | J116: 360 | K116: 0.002777777778 | L116: 0.001050291955 | M116: 0.0012 | N116: 0.002250291955 | O116: 6.250810987 | P116: 25.00324395 | Q116: 0 | R116: 0 | S116: 0 | T116: 0.002250291955
G117: 2012-11-04 | H117: 2012-11-05 | I117: 1 | J117: 360 | K117: 0.002777777778 | L117: 0.001050291955 | M117: 0.0012 | N117: 0.002250291955 | O117: 6.250810987 | P117: 31.25405493 | Q117: 0 | R117: 0 | S117: 0 | T117: 0.002250291955
G118: 2012-11-05 | H118: 2012-11-06 | I118: 1 | J118: 360 | K118: 0.002777777778 | L118: 0.001050291955 | M118: 0.0012 | N118: 0.002250291955 | O118: 6.250810987 | P118: 37.50486592 | Q118: 0 | R118: 0 | S118: 0 | T118: 0.002250291955
G119: 2012-11-06 | H119: 2012-11-07 | I119: 1 | J119: 360 | K119: 0.002777777778 | L119: 0.001050291955 | M119: 0.0012 | N119: 0.002250291955 | O119: 6.250810987 | P119: 43.75567691 | Q119: 0 | R119: 0 | S119: 0 | T119: 0.002250291955
G120: 2012-11-07 | H120: 2012-11-08 | I120: 1 | J120: 360 | K120: 0.002777777778 | L120: 0.001050291955 | M120: 0.0012 | N120: 0.002250291955 | O120: 6.250810987 | P120: 50.0064879 | Q120: 0 | R120: 0 | S120: 0 | T120: 0.002250291955
G121: 2012-11-08 | H121: 2012-11-09 | I121: 1 | J121: 360 | K121: 0.002777777778 | L121: 0.001050291955 | M121: 0.0012 | N121: 0.002250291955 | O121: 6.250810987 | P121: 56.25729888 | Q121: 0 | R121: 0 | S121: 0 | T121: 0.002250291955
G122: 2012-11-09 | H122: 2012-11-10 | I122: 1 | J122: 360 | K122: 0.002777777778 | L122: 0.001050291955 | M122: 0.0012 | N122: 0.002250291955 | O122: 6.250810987 | P122: 62.50810987 | Q122: 0 | R122: 0 | S122: 0 | T122: 0.002250291955
G123: 2012-11-10 | H123: 2012-11-11 | I123: 1 | J123: 360 | K123: 0.002777777778 | L123: 0.001050291955 | M123: 0.0012 | N123: 0.002250291955 | O123: 6.250810987 | P123: 68.75892086 | Q123: 0 | R123: 0 | S123: 0 | T123: 0.002250291955
G124: 2012-11-11 | H124: 2012-11-12 | I124: 1 | J124: 360 | K124: 0.002777777778 | L124: 0.001050291955 | M124: 0.0012 | N124: 0.002250291955 | O124: 6.250810987 | P124: 75.00973184 | Q124: 0 | R124: 0 | S124: 0 | T124: 0.002250291955
G125: 2012-11-12 | H125: 2012-11-13 | I125: 1 | J125: 360 | K125: 0.002777777778 | L125: 0.001050291955 | M125: 0.0012 | N125: 0.002250291955 | O125: 6.250810987 | P125: 81.26054283 | Q125: 0 | R125: 0 | S125: 0 | T125: 0.002250291955
G126: 2012-11-13 | H126: 2012-11-14 | I126: 1 | J126: 360 | K126: 0.002777777778 | L126: 0.001050291955 | M126: 0.0012 | N126: 0.002250291955 | O126: 6.250810987 | P126: 87.51135382 | Q126: 0 | R126: 0 | S126: 0 | T126: 0.002250291955
G127: 2012-11-14 | H127: 2012-11-15 | I127: 1 | J127: 360 | K127: 0.002777777778 | L127: 0.001050291955 | M127: 0.0012 | N127: 0.002250291955 | O127: 6.250810987 | P127: 93.7621648 | Q127: 0 | R127: 0 | S127: 0 | T127: 0.002250291955
G128: 2012-11-15 | H128: 2012-11-16 | I128: 1 | J128: 360 | K128: 0.002777777778 | L128: 0.001050291955 | M128: 0.0012 | N128: 0.002250291955 | O128: 6.250810987 | P128: 100.0129758 | Q128: 0 | R128: 0 | S128: 0 | T128: 0.002250291955
G129: 2012-11-16 | H129: 2012-11-17 | I129: 1 | J129: 360 | K129: 0.002777777778 | L129: 0.001050291955 | M129: 0.0012 | N129: 0.002250291955 | O129: 6.250810987 | P129: 106.2637868 | Q129: 0 | R129: 0 | S129: 0 | T129: 0.002250291955
G130: 2012-11-17 | H130: 2012-11-18 | I130: 1 | J130: 360 | K130: 0.002777777778 | L130: 0.001050291955 | M130: 0.0012 | N130: 0.002250291955 | O130: 6.250810987 | P130: 112.5145978 | Q130: 0 | R130: 0 | S130: 0 | T130: 0.002250291955
G131: 2012-11-18 | H131: 2012-11-19 | I131: 1 | J131: 360 | K131: 0.002777777778 | L131: 0.001050291955 | M131: 0.0012 | N131: 0.002250291955 | O131: 6.250810987 | P131: 118.7654088 | Q131: 0 | R131: 0 | S131: 0 | T131: 0.002250291955
G132: 2012-11-19 | H132: 2012-11-20 | I132: 1 | J132: 360 | K132: 0.002777777778 | L132: 0.001050291955 | M132: 0.0012 | N132: 0.002250291955 | O132: 6.250810987 | P132: 125.0162197 | Q132: 0 | R132: 0 | S132: 0 | T132: 0.002250291955
G133: 2012-11-20 | H133: 2012-11-21 | I133: 1 | J133: 360 | K133: 0.002777777778 | L133: 0.001050291955 | M133: 0.0012 | N133: 0.002250291955 | O133: 6.250810987 | P133: 131.2670307 | Q133: 0 | R133: 0 | S133: 0 | T133: 0.002250291955
G134: 2012-11-21 | H134: 2012-11-22 | I134: 1 | J134: 360 | K134: 0.002777777778 | L134: 0.001050291955 | M134: 0.0012 | N134: 0.002250291955 | O134: 6.250810987 | P134: 137.5178417 | Q134: 0 | R134: 0 | S134: 0 | T134: 0.002250291955
G135: 2012-11-22 | H135: 2012-11-23 | I135: 1 | J135: 360 | K135: 0.002777777778 | L135: 0.001050291955 | M135: 0.0012 | N135: 0.002250291955 | O135: 6.250810987 | P135: 143.7686527 | Q135: 0 | R135: 0 | S135: 0 | T135: 0.002250291955
G136: 2012-11-23 | H136: 2012-11-24 | I136: 1 | J136: 360 | K136: 0.002777777778 | L136: 0.001050291955 | M136: 0.0012 | N136: 0.002250291955 | O136: 6.250810987 | P136: 150.0194637 | Q136: 0 | R136: 0 | S136: 0 | T136: 0.002250291955
G137: 2012-11-24 | H137: 2012-11-25 | I137: 1 | J137: 360 | K137: 0.002777777778 | L137: =L136 -> 0.001050291955 | M137: 0.0012 | N137: 0.002250291955 | O137: 6.250810987 | P137: 156.2702747 | Q137: 0 | R137: 0 | S137: 0 | T137: 0.002250291955
G138: 2012-11-25 | H138: 2012-11-26 | I138: 1 | J138: 360 | K138: 0.002777777778 | L138: 0.001050291955 | M138: 0.0012 | N138: 0.002250291955 | O138: 6.250810987 | P138: 162.5210857 | Q138: 0 | R138: 0 | S138: 0 | T138: 0.002250291955
G139: 2012-11-26 | H139: 2012-11-27 | I139: 1 | J139: 360 | K139: 0.002777777778 | L139: 0.001050291955 | M139: 0.0012 | N139: 0.002250291955 | O139: 6.250810987 | P139: 168.7718966 | Q139: 0 | R139: 0 | S139: 0 | T139: 0.002250291955
G140: 2012-11-27 | H140: 2012-11-28 | I140: 1 | J140: 360 | K140: 0.002777777778 | L140: 0.001050291955 | M140: 0.0012 | N140: 0.002250291955 | O140: 6.250810987 | P140: 175.0227076 | Q140: 0 | R140: 0 | S140: 0 | T140: 0.002250291955
G141: 2012-11-28 | H141: 2012-11-29 | I141: 1 | J141: 360 | K141: 0.002777777778 | L141: 0.001050291955 | M141: 0.0012 | N141: 0.002250291955 | O141: 6.250810987 | P141: 181.2735186 | Q141: 0 | R141: 0 | S141: 0 | T141: 0.002250291955
G142: 2012-11-29 | H142: 2012-11-30 | I142: 1 | J142: 360 | K142: 0.002777777778 | L142: 0.001050291955 | M142: 0.0012 | N142: 0.002250291955 | O142: 6.250810987 | P142: 187.5243296 | Q142: 0 | R142: 0 | S142: 0 | T142: 0.002250291955
G143: 2012-11-30 | H143: 2012-12-01 | I143: 1 | J143: 360 | K143: 0.002777777778 | L143: 0.001050291955 | M143: 0.0012 | N143: 0.002250291955 | O143: 6.250810987 | P143: 193.7751406 | Q143: 0 | R143: 0 | S143: 0 | T143: 0.002250291955
G144: 2012-12-01 | H144: 2012-12-02 | I144: 1 | J144: 360 | K144: 0.002777777778 | L144: 0.001050291955 | M144: 0.0012 | N144: 0.002250291955 | O144: 6.250810987 | P144: 200.0259516 | Q144: 0 | R144: 0 | S144: 0 | T144: 0.002250291955
G145: 2012-12-02 | H145: 2012-12-03 | I145: 1 | J145: 360 | K145: 0.002777777778 | L145: 0.001050291955 | M145: 0.0012 | N145: 0.002250291955 | O145: 6.250810987 | P145: 206.2767626 | Q145: 0 | R145: 0 | S145: 0 | T145: 0.002250291955
G146: 2012-12-03 | H146: 2012-12-04 | I146: 1 | J146: 360 | K146: 0.002777777778 | L146: 0.001050291955 | M146: 0.0012 | N146: 0.002250291955 | O146: 6.250810987 | P146: 212.5275736 | Q146: 0 | R146: 0 | S146: 0 | T146: 0.002250291955
G147: 2012-12-04 | H147: 2012-12-05 | I147: 1 | J147: 360 | K147: 0.002777777778 | L147: 0.001050291955 | M147: 0.0012 | N147: 0.002250291955 | O147: 6.250810987 | P147: 218.7783845 | Q147: 0 | R147: 0 | S147: 0 | T147: 0.002250291955
G148: 2012-12-05 | H148: 2012-12-06 | I148: 1 | J148: 360 | K148: 0.002777777778 | L148: 0.001050291955 | M148: 0.0012 | N148: 0.002250291955 | O148: 6.250810987 | P148: 225.0291955 | Q148: 0 | R148: 0 | S148: 0 | T148: 0.002250291955
G149: 2012-12-06 | H149: 2012-12-07 | I149: 1 | J149: 360 | K149: 0.002777777778 | L149: 0.001050291955 | M149: =+$C$11 -> 0.0012 | N149: 0.002250291955 | O149: =N149*$C$10*K149 -> 6.250810987 | P149: 231.2800065 | Q149: 0 | R149: 0 | S149: 0 | T149: =L149+$C$13 -> 0.002250291955
G150: 2012-12-07 | H150: =+G150+1 -> 2012-12-08 | I150: =+H150-G150 -> 1 | J150: 360 | K150: =I150/J150 -> 0.002777777778 | L150: 0.001050291955 | M150: 0.0012 | N150: =MAX(0,M150+L150) -> 0.002250291955 | O150: 6.250810987 | P150: 237.5308175 | Q150: 0 | R150: 0 | S150: =+R150+Q150 -> 0 | T150: 0.002250291955
G151: =+H150 -> 2012-12-08 | H151: 2012-12-09 | I151: 1 | J151: 360 | K151: 0.002777777778 | L151: 0.001050291955 | M151: 0.0012 | N151: 0.002250291955 | O151: 6.250810987 | P151: =+P150+O151-Q150 -> 243.7816285 | Q151: 0 | R151: 0 | S151: 0 | T151: 0.002250291955
G152: 2012-12-09 | H152: 2012-12-10 | I152: 1 | J152: 360 | K152: 0.002777777778 | L152: 0.001050291955 | M152: 0.0012 | N152: 0.002250291955 | O152: 6.250810987 | P152: 250.0324395 | Q152: 0 | R152: 0 | S152: 0 | T152: 0.002250291955
G153: 2012-12-10 | H153: 2012-12-11 | I153: 1 | J153: 360 | K153: 0.002777777778 | L153: 0.001050291955 | M153: 0.0012 | N153: 0.002250291955 | O153: 6.250810987 | P153: 256.2832505 | Q153: 0 | R153: 0 | S153: 0 | T153: 0.002250291955
G154: 2012-12-11 | H154: 2012-12-12 | I154: 1 | J154: 360 | K154: 0.002777777778 | L154: 0.001050291955 | M154: 0.0012 | N154: 0.002250291955 | O154: 6.250810987 | P154: 262.5340615 | Q154: 0 | R154: 0 | S154: 0 | T154: 0.002250291955
G155: 2012-12-12 | H155: 2012-12-13 | I155: 1 | J155: 360 | K155: 0.002777777778 | L155: 0.001050291955 | M155: 0.0012 | N155: 0.002250291955 | O155: 6.250810987 | P155: 268.7848724 | Q155: 0 | R155: 0 | S155: 0 | T155: 0.002250291955
G156: 2012-12-13 | H156: 2012-12-14 | I156: 1 | J156: 360 | K156: 0.002777777778 | L156: 0.001050291955 | M156: 0.0012 | N156: 0.002250291955 | O156: 6.250810987 | P156: 275.0356834 | Q156: 0 | R156: 0 | S156: 0 | T156: 0.002250291955
G157: 2012-12-14 | H157: 2012-12-15 | I157: 1 | J157: 360 | K157: 0.002777777778 | L157: 0.001050291955 | M157: 0.0012 | N157: 0.002250291955 | O157: 6.250810987 | P157: 281.2864944 | Q157: 0 | R157: 0 | S157: 0 | T157: 0.002250291955
G158: 2012-12-15 | H158: 2012-12-16 | I158: 1 | J158: 360 | K158: 0.002777777778 | L158: 0.001050291955 | M158: 0.0012 | N158: 0.002250291955 | O158: 6.250810987 | P158: 287.5373054 | Q158: 0 | R158: 0 | S158: 0 | T158: 0.002250291955
G159: 2012-12-16 | H159: 2012-12-17 | I159: 1 | J159: 360 | K159: 0.002777777778 | L159: 0.001050291955 | M159: 0.0012 | N159: 0.002250291955 | O159: 6.250810987 | P159: 293.7881164 | Q159: 0 | R159: 0 | S159: 0 | T159: 0.002250291955
G160: 2012-12-17 | H160: 2012-12-18 | I160: 1 | J160: 360 | K160: 0.002777777778 | L160: 0.001050291955 | M160: 0.0012 | N160: 0.002250291955 | O160: 6.250810987 | P160: 300.0389274 | Q160: 0 | R160: 0 | S160: 0 | T160: 0.002250291955
G161: 2012-12-18 | H161: 2012-12-19 | I161: 1 | J161: 360 | K161: 0.002777777778 | L161: 0.001050291955 | M161: 0.0012 | N161: 0.002250291955 | O161: 6.250810987 | P161: 306.2897384 | Q161: 0 | R161: 0 | S161: 0 | T161: 0.002250291955
G162: 2012-12-19 | H162: 2012-12-20 | I162: 1 | J162: 360 | K162: 0.002777777778 | L162: 0.001050291955 | M162: 0.0012 | N162: 0.002250291955 | O162: 6.250810987 | P162: 312.5405493 | Q162: 0 | R162: 0 | S162: 0 | T162: 0.002250291955
G163: 2012-12-20 | H163: 2012-12-21 | I163: 1 | J163: 360 | K163: 0.002777777778 | L163: 0.001050291955 | M163: 0.0012 | N163: 0.002250291955 | O163: 6.250810987 | P163: 318.7913603 | Q163: 0 | R163: 0 | S163: 0 | T163: 0.002250291955
G164: 2012-12-21 | H164: 2012-12-22 | I164: 1 | J164: 360 | K164: 0.002777777778 | L164: 0.001050291955 | M164: 0.0012 | N164: 0.002250291955 | O164: 6.250810987 | P164: 325.0421713 | Q164: 0 | R164: 0 | S164: 0 | T164: 0.002250291955
G165: 2012-12-22 | H165: 2012-12-23 | I165: 1 | J165: 360 | K165: 0.002777777778 | L165: 0.001050291955 | M165: 0.0012 | N165: 0.002250291955 | O165: 6.250810987 | P165: 331.2929823 | Q165: 0 | R165: 0 | S165: 0 | T165: 0.002250291955
G166: 2012-12-23 | H166: 2012-12-24 | I166: 1 | J166: 360 | K166: 0.002777777778 | L166: 0.001050291955 | M166: 0.0012 | N166: 0.002250291955 | O166: 6.250810987 | P166: 337.5437933 | Q166: 0 | R166: 0 | S166: 0 | T166: 0.002250291955
G167: 2012-12-24 | H167: 2012-12-25 | I167: 1 | J167: 360 | K167: 0.002777777778 | L167: 0.001050291955 | M167: 0.0012 | N167: 0.002250291955 | O167: 6.250810987 | P167: 343.7946043 | Q167: 0 | R167: 0 | S167: 0 | T167: 0.002250291955
G168: 2012-12-25 | H168: 2012-12-26 | I168: 1 | J168: 360 | K168: 0.002777777778 | L168: 0.001050291955 | M168: 0.0012 | N168: 0.002250291955 | O168: 6.250810987 | P168: 350.0454153 | Q168: 0 | R168: 0 | S168: 0 | T168: 0.002250291955
G169: 2012-12-26 | H169: 2012-12-27 | I169: 1 | J169: 360 | K169: 0.002777777778 | L169: 0.001050291955 | M169: 0.0012 | N169: 0.002250291955 | O169: 6.250810987 | P169: 356.2962263 | Q169: 0 | R169: 0 | S169: 0 | T169: 0.002250291955
G170: 2012-12-27 | H170: 2012-12-28 | I170: 1 | J170: 360 | K170: 0.002777777778 | L170: 0.001050291955 | M170: 0.0012 | N170: 0.002250291955 | O170: 6.250810987 | P170: 362.5470372 | Q170: 0 | R170: 0 | S170: 0 | T170: 0.002250291955
G171: 2012-12-28 | H171: 2012-12-29 | I171: 1 | J171: 360 | K171: 0.002777777778 | L171: 0.001050291955 | M171: 0.0012 | N171: 0.002250291955 | O171: 6.250810987 | P171: 368.7978482 | Q171: 0 | R171: 0 | S171: 0 | T171: 0.002250291955
G172: 2012-12-29 | H172: 2012-12-30 | I172: 1 | J172: 360 | K172: 0.002777777778 | L172: 0.001050291955 | M172: 0.0012 | N172: 0.002250291955 | O172: 6.250810987 | P172: 375.0486592 | Q172: 0 | R172: 0 | S172: 0 | T172: 0.002250291955
G173: 2012-12-30 | H173: 2012-12-31 | I173: 1 | J173: 360 | K173: 0.002777777778 | L173: 0.001050291955 | M173: 0.0012 | N173: 0.002250291955 | O173: 6.250810987 | P173: 381.2994702 | Q173: 0 | R173: 0 | S173: 0 | T173: 0.002250291955
G174: 2012-12-31 | H174: 2013-01-01 | I174: 1 | J174: 360 | K174: 0.002777777778 | L174: 0.001050291955 | M174: 0.0012 | N174: 0.002250291955 | O174: 6.250810987 | P174: 387.5502812 | Q174: 0 | R174: 0 | S174: 0 | T174: 0.002250291955
G175: 2013-01-01 | H175: 2013-01-02 | I175: 1 | J175: 360 | K175: 0.002777777778 | L175: 0.001050291955 | M175: 0.0012 | N175: 0.002250291955 | O175: 6.250810987 | P175: 393.8010922 | Q175: 0 | R175: 0 | S175: 0 | T175: 0.002250291955
G176: 2013-01-02 | H176: 2013-01-03 | I176: 1 | J176: 360 | K176: 0.002777777778 | L176: 0.001050291955 | M176: 0.0012 | N176: 0.002250291955 | O176: 6.250810987 | P176: 400.0519032 | Q176: 0 | R176: 0 | S176: 0 | T176: 0.002250291955
G177: 2013-01-03 | H177: 2013-01-04 | I177: 1 | J177: 360 | K177: 0.002777777778 | L177: 0.001050291955 | M177: 0.0012 | N177: 0.002250291955 | O177: 6.250810987 | P177: 406.3027142 | Q177: 0 | R177: 0 | S177: 0 | T177: 0.002250291955
G178: 2013-01-04 | H178: 2013-01-05 | I178: 1 | J178: 360 | K178: 0.002777777778 | L178: 0.001050291955 | M178: 0.0012 | N178: 0.002250291955 | O178: 6.250810987 | P178: 412.5535251 | Q178: 0 | R178: 0 | S178: 0 | T178: 0.002250291955
G179: 2013-01-05 | H179: 2013-01-06 | I179: 1 | J179: 360 | K179: 0.002777777778 | L179: 0.001050291955 | M179: 0.0012 | N179: 0.002250291955 | O179: 6.250810987 | P179: 418.8043361 | Q179: 0 | R179: 0 | S179: 0 | T179: 0.002250291955
G180: 2013-01-06 | H180: 2013-01-07 | I180: 1 | J180: 360 | K180: 0.002777777778 | L180: 0.001050291955 | M180: 0.0012 | N180: 0.002250291955 | O180: 6.250810987 | P180: 425.0551471 | Q180: 0 | R180: 0 | S180: 0 | T180: 0.002250291955
G181: 2013-01-07 | H181: 2013-01-08 | I181: 1 | J181: 360 | K181: 0.002777777778 | L181: 0.001050291955 | M181: 0.0012 | N181: 0.002250291955 | O181: 6.250810987 | P181: 431.3059581 | Q181: 0 | R181: 0 | S181: 0 | T181: 0.002250291955
G182: 2013-01-08 | H182: 2013-01-09 | I182: 1 | J182: 360 | K182: 0.002777777778 | L182: 0.001050291955 | M182: 0.0012 | N182: 0.002250291955 | O182: 6.250810987 | P182: 437.5567691 | Q182: 0 | R182: 0 | S182: 0 | T182: 0.002250291955
G183: 2013-01-09 | H183: 2013-01-10 | I183: 1 | J183: 360 | K183: 0.002777777778 | L183: 0.001050291955 | M183: 0.0012 | N183: 0.002250291955 | O183: 6.250810987 | P183: 443.8075801 | Q183: 0 | R183: 0 | S183: 0 | T183: 0.002250291955
G184: 2013-01-10 | H184: 2013-01-11 | I184: 1 | J184: 360 | K184: 0.002777777778 | L184: 0.001050291955 | M184: 0.0012 | N184: 0.002250291955 | O184: 6.250810987 | P184: 450.0583911 | Q184: 0 | R184: 0 | S184: 0 | T184: 0.002250291955
G185: 2013-01-11 | H185: 2013-01-12 | I185: 1 | J185: 360 | K185: 0.002777777778 | L185: 0.001050291955 | M185: 0.0012 | N185: 0.002250291955 | O185: 6.250810987 | P185: 456.309202 | Q185: 0 | R185: 0 | S185: 0 | T185: 0.002250291955
G186: 2013-01-12 | H186: 2013-01-13 | I186: 1 | J186: 360 | K186: 0.002777777778 | L186: 0.001050291955 | M186: 0.0012 | N186: 0.002250291955 | O186: 6.250810987 | P186: 462.560013 | Q186: 0 | R186: 0 | S186: 0 | T186: 0.002250291955
G187: 2013-01-13 | H187: 2013-01-14 | I187: 1 | J187: 360 | K187: 0.002777777778 | L187: 0.001050291955 | M187: 0.0012 | N187: 0.002250291955 | O187: 6.250810987 | P187: 468.810824 | Q187: 0 | R187: 0 | S187: 0 | T187: 0.002250291955
G188: 2013-01-14 | H188: 2013-01-15 | I188: 1 | J188: 360 | K188: 0.002777777778 | L188: 0.001050291955 | M188: 0.0012 | N188: 0.002250291955 | O188: 6.250810987 | P188: 475.061635 | Q188: 0 | R188: 0 | S188: 0 | T188: 0.002250291955
G189: 2013-01-15 | H189: 2013-01-16 | I189: 1 | J189: 360 | K189: 0.002777777778 | L189: 0.001050291955 | M189: 0.0012 | N189: 0.002250291955 | O189: 6.250810987 | P189: 481.312446 | Q189: 0 | R189: 0 | S189: 0 | T189: 0.002250291955
G190: 2013-01-16 | H190: 2013-01-17 | I190: 1 | J190: 360 | K190: 0.002777777778 | L190: 0.001050291955 | M190: 0.0012 | N190: 0.002250291955 | O190: 6.250810987 | P190: 487.563257 | Q190: 0 | R190: 0 | S190: 0 | T190: 0.002250291955
G191: 2013-01-17 | H191: 2013-01-18 | I191: 1 | J191: 360 | K191: 0.002777777778 | L191: 0.001050291955 | M191: 0.0012 | N191: 0.002250291955 | O191: 6.250810987 | P191: 493.814068 | Q191: 0 | R191: 0 | S191: 0 | T191: 0.002250291955
G192: 2013-01-18 | H192: 2013-01-19 | I192: 1 | J192: 360 | K192: 0.002777777778 | L192: 0.001050291955 | M192: 0.0012 | N192: 0.002250291955 | O192: 6.250810987 | P192: 500.064879 | Q192: 0 | R192: 0 | S192: 0 | T192: 0.002250291955
G193: 2013-01-19 | H193: 2013-01-20 | I193: 1 | J193: 360 | K193: 0.002777777778 | L193: 0.001050291955 | M193: 0.0012 | N193: 0.002250291955 | O193: 6.250810987 | P193: 506.3156899 | Q193: 0 | R193: 0 | S193: 0 | T193: 0.002250291955
G194: 2013-01-20 | H194: 2013-01-21 | I194: 1 | J194: 360 | K194: 0.002777777778 | L194: 0.001050291955 | M194: 0.0012 | N194: 0.002250291955 | O194: 6.250810987 | P194: 512.5665009 | Q194: 0 | R194: 0 | S194: 0 | T194: 0.002250291955
G195: 2013-01-21 | H195: 2013-01-22 | I195: 1 | J195: 360 | K195: 0.002777777778 | L195: 0.001050291955 | M195: 0.0012 | N195: 0.002250291955 | O195: 6.250810987 | P195: 518.8173119 | Q195: 0 | R195: 0 | S195: 0 | T195: 0.002250291955
G196: 2013-01-22 | H196: 2013-01-23 | I196: 1 | J196: 360 | K196: 0.002777777778 | L196: 0.001050291955 | M196: 0.0012 | N196: 0.002250291955 | O196: 6.250810987 | P196: 525.0681229 | Q196: 0 | R196: 0 | S196: 0 | T196: 0.002250291955
G197: 2013-01-23 | H197: 2013-01-24 | I197: 1 | J197: 360 | K197: 0.002777777778 | L197: 0.001050291955 | M197: 0.0012 | N197: 0.002250291955 | O197: 6.250810987 | P197: 531.3189339 | Q197: 0 | R197: 0 | S197: 0 | T197: 0.002250291955
G198: 2013-01-24 | H198: 2013-01-25 | I198: 1 | J198: 360 | K198: 0.002777777778 | L198: 0.001050291955 | M198: 0.0012 | N198: 0.002250291955 | O198: 6.250810987 | P198: 537.5697449 | Q198: 0 | R198: 0 | S198: 0 | T198: 0.002250291955
G199: 2013-01-25 | H199: 2013-01-26 | I199: 1 | J199: 360 | K199: 0.002777777778 | L199: 0.001050291955 | M199: 0.0012 | N199: 0.002250291955 | O199: 6.250810987 | P199: 543.8205559 | Q199: 0 | R199: 0 | S199: 0 | T199: 0.002250291955
G200: 2013-01-26 | H200: 2013-01-27 | I200: 1 | J200: 360 | K200: 0.002777777778 | L200: 0.001050291955 | M200: 0.0012 | N200: 0.002250291955 | O200: 6.250810987 | P200: 550.0713669 | Q200: 0 | R200: 0 | S200: 0 | T200: 0.002250291955
G201: 2013-01-27 | H201: 2013-01-28 | I201: 1 | J201: 360 | K201: 0.002777777778 | L201: =L200 -> 0.001050291955 | M201: 0.0012 | N201: 0.002250291955 | O201: 6.250810987 | P201: 556.3221778 | Q201: 0 | R201: 0 | S201: 0 | T201: 0.002250291955
G202: 2013-01-28 | H202: 2013-01-29 | I202: 1 | J202: 360 | K202: 0.002777777778 | L202: 0.001050291955 | M202: 0.0012 | N202: 0.002250291955 | O202: 6.250810987 | P202: 562.5729888 | Q202: 0 | R202: 0 | S202: 0 | T202: 0.002250291955
G203: 2013-01-29 | H203: 2013-01-30 | I203: 1 | J203: 360 | K203: 0.002777777778 | L203: 0.001050291955 | M203: 0.0012 | N203: 0.002250291955 | O203: 6.250810987 | P203: 568.8237998 | Q203: 0 | R203: 0 | S203: 0 | T203: 0.002250291955
G204: 2013-01-30 | H204: 2013-01-31 | I204: 1 | J204: 360 | K204: 0.002777777778 | L204: 0.001050291955 | M204: 0.0012 | N204: 0.002250291955 | O204: 6.250810987 | P204: 575.0746108 | Q204: =SUM(O113:O204) -> 575.0746108 | R204: 0 | S204: 575.0746108 | T204: 0.002250291955 | U204: =U112/(1+AVERAGE(T113:T204)*SUM(K113:K204)) -> 0.9991193979 | V204: =+U204*S204 -> 574.5681989
G205: 2013-01-31 | H205: 2013-02-01 | I205: 1 | J205: 360 | K205: 0.002777777778 | L205: 0.001050291955 | M205: 0.0012 | N205: 0.002250291955 | O205: 6.250810987 | P205: 6.250810987 | Q205: 0 | R205: 0 | S205: 0 | T205: 0.002250291955
... 545 more rows

Sheet DM CALC ex GC
B3: Trade Date | C3: 2012-09-11 | H3: Principal | I3: =+I5-I4 -> 999999.9712 | K3: NOTES:
B4: Settle Date | C4: 2012-09-12 | H4: Accrued Interest | I4: =N63 -> 176.1111111 | K4: This trade is a secondary market transaction.
H5: Total Money | I5: =+T18 -> 1000176.082 | K5: Assume you only have information as of the trade date of 9/11/2012.
B6: Interest Accrual/Last Cpn | C6: 2012-07-31 | F6: Coupon Pmts | K6: Rounding conventions have not yet been addressed.
B7: Next Coupon | C7: 2012-10-31 | F7: =+C7 -> 2012-10-31 | H7: Clean Price | I7: =100*I3/C10 -> 99.99999712 | K7: You may change Face Amount (cell C10), Spread (cell C11) and Discount Margin (cell C13) and the speadsheet will still calculate accurately.
B8: Maturity | C8: 2014-07-31 | F8: =+EOMONTH(F7,3) -> 2013-01-31 | K8: The GC rates shown are ficticious.
F9: 2013-04-30
B10: Face Amount | C10: 1000000 | F10: 2013-07-31
B11: Spread | C11: 0.0005 | F11: 2013-10-31
F12: 2014-01-31
B13: Discount Margin | C13: 0.0005 | F13: 2014-04-30
F14: 2014-07-31
N18: TOTALS | O18: =SUM(O21:O1152) -> 2466.111111 | P18: =SUM(P21:P1152) -> 1000000 | Q18: =SUM(Q21:Q1152) -> 1002466.111 | T18: =SUM(T21:T1152) -> 1000176.082
A19: GC Information
A20: Determination Date | B20: Reset Date | C20: Overnight Tsy GC Rate | E20: Accrual Start | F20: Accrual End | G20: # of Days | H20: Denominator | I20: Time | J20: Index Rate | K20: Spread | L20: Interest Rate | M20: Daily Interest | N20: Accrued Interest(no present value applied) | O20: Coupon Payment | P20: Principal Payment | Q20: Total Cash Flow | R20: Discount Rate (Index Rate + Discount Margin) | S20: Discount Factor | T20: Present Value of Total Cash Flow
A21: =IF(WEEKDAY(E21)=7,WORKDAY(E21,-2),IF(WEEKDAY(E21)=1,WORKDAY(E21,-2),WORKDAY(E21,-1))) -> 2012-07-30 | B21: =+E21 -> 2012-07-31 | C21: 0 | E21: 2012-07-31 | F21: =+E21+1 -> 2012-08-01 | G21: =+F21-E21 -> 1 | H21: 360 | I21: =G21/H21 -> 0.002777777778 | J21: =C21 -> 0 | K21: =+$C$11 -> 0.0005 | L21: =MAX(0,K21+J21) -> 0.0005 | M21: =L21*$C$10*I21 -> 1.388888889 | N21: =+M21 -> 1.388888889 | O21: 0 | P21: 0 | Q21: =+P21+O21 -> 0
A22: =IF(WEEKDAY(E22)=7,WORKDAY(E22,-2),IF(WEEKDAY(E22)=1,WORKDAY(E22,-2),WORKDAY(E22,-1))) -> 2012-07-31 | B22: =+B21+1 -> 2012-08-01 | C22: 0 | E22: =+F21 -> 2012-08-01 | F22: =+E22+1 -> 2012-08-02 | G22: =+F22-E22 -> 1 | H22: 360 | I22: =G22/H22 -> 0.002777777778 | J22: =C22 -> 0 | K22: 0.0005 | L22: =MAX(0,K22+J22) -> 0.0005 | M22: 1.388888889 | N22: =+N21+M22-O21 -> 2.777777778 | O22: 0 | P22: 0 | Q22: =+P22+O22 -> 0
A23: 2012-08-01 | B23: =+B22+1 -> 2012-08-02 | C23: 0.0005 | E23: =+F22 -> 2012-08-02 | F23: 2012-08-03 | G23: 1 | H23: 360 | I23: 0.002777777778 | J23: 0.0005 | K23: 0.0005 | L23: 0.001 | M23: 2.777777778 | N23: =+N22+M23-O22 -> 5.555555556 | O23: 0 | P23: 0 | Q23: 0
A24: 2012-08-02 | B24: 2012-08-03 | C24: 0 | E24: 2012-08-03 | F24: 2012-08-04 | G24: 1 | H24: 360 | I24: 0.002777777778 | J24: 0 | K24: 0.0005 | L24: 0.0005 | M24: 1.388888889 | N24: 6.944444444 | O24: 0 | P24: 0 | Q24: 0
A25: 2012-08-02 | B25: 2012-08-04 | C25: 0 | E25: 2012-08-04 | F25: 2012-08-05 | G25: 1 | H25: 360 | I25: 0.002777777778 | J25: 0 | K25: 0.0005 | L25: 0.0005 | M25: 1.388888889 | N25: 8.333333333 | O25: 0 | P25: 0 | Q25: 0
A26: 2012-08-02 | B26: 2012-08-05 | C26: 0 | E26: 2012-08-05 | F26: 2012-08-06 | G26: 1 | H26: 360 | I26: 0.002777777778 | J26: 0 | K26: 0.0005 | L26: 0.0005 | M26: 1.388888889 | N26: 9.722222222 | O26: 0 | P26: 0 | Q26: 0
A27: 2012-08-03 | B27: 2012-08-06 | C27: 0.0005 | E27: 2012-08-06 | F27: 2012-08-07 | G27: 1 | H27: 360 | I27: 0.002777777778 | J27: 0.0005 | K27: 0.0005 | L27: 0.001 | M27: 2.777777778 | N27: 12.5 | O27: 0 | P27: 0 | Q27: 0
A28: 2012-08-06 | B28: 2012-08-07 | C28: 0.001 | E28: 2012-08-07 | F28: 2012-08-08 | G28: 1 | H28: 360 | I28: 0.002777777778 | J28: 0.001 | K28: 0.0005 | L28: 0.0015 | M28: 4.166666667 | N28: 16.66666667 | O28: 0 | P28: 0 | Q28: 0
A29: 2012-08-07 | B29: 2012-08-08 | C29: 0.002 | E29: 2012-08-08 | F29: 2012-08-09 | G29: 1 | H29: 360 | I29: 0.002777777778 | J29: 0.002 | K29: 0.0005 | L29: 0.0025 | M29: 6.944444444 | N29: 23.61111111 | O29: 0 | P29: 0 | Q29: 0
A30: 2012-08-08 | B30: 2012-08-09 | C30: 0.0022 | E30: 2012-08-09 | F30: 2012-08-10 | G30: 1 | H30: 360 | I30: 0.002777777778 | J30: 0.0022 | K30: 0.0005 | L30: 0.0027 | M30: 7.5 | N30: 31.11111111 | O30: 0 | P30: 0 | Q30: 0
A31: 2012-08-09 | B31: 2012-08-10 | C31: 0.0025 | E31: 2012-08-10 | F31: 2012-08-11 | G31: 1 | H31: 360 | I31: 0.002777777778 | J31: 0.0025 | K31: 0.0005 | L31: 0.003 | M31: 8.333333333 | N31: 39.44444444 | O31: 0 | P31: 0 | Q31: 0
A32: 2012-08-09 | B32: 2012-08-11 | C32: 0.0025 | E32: 2012-08-11 | F32: 2012-08-12 | G32: 1 | H32: 360 | I32: 0.002777777778 | J32: 0.0025 | K32: 0.0005 | L32: 0.003 | M32: 8.333333333 | N32: 47.77777778 | O32: 0 | P32: 0 | Q32: 0
A33: 2012-08-09 | B33: 2012-08-12 | C33: 0.0025 | E33: 2012-08-12 | F33: 2012-08-13 | G33: 1 | H33: 360 | I33: 0.002777777778 | J33: 0.0025 | K33: 0.0005 | L33: 0.003 | M33: 8.333333333 | N33: 56.11111111 | O33: 0 | P33: 0 | Q33: 0
A34: 2012-08-10 | B34: 2012-08-13 | C34: 0.0001 | E34: 2012-08-13 | F34: 2012-08-14 | G34: 1 | H34: 360 | I34: 0.002777777778 | J34: 0.0001 | K34: 0.0005 | L34: 0.0006 | M34: 1.666666667 | N34: 57.77777778 | O34: 0 | P34: 0 | Q34: 0
A35: 2012-08-13 | B35: 2012-08-14 | C35: 0 | E35: 2012-08-14 | F35: 2012-08-15 | G35: 1 | H35: 360 | I35: 0.002777777778 | J35: 0 | K35: 0.0005 | L35: 0.0005 | M35: 1.388888889 | N35: 59.16666667 | O35: 0 | P35: 0 | Q35: 0
A36: 2012-08-14 | B36: 2012-08-15 | C36: 0.001 | E36: 2012-08-15 | F36: 2012-08-16 | G36: 1 | H36: 360 | I36: 0.002777777778 | J36: 0.001 | K36: 0.0005 | L36: 0.0015 | M36: 4.166666667 | N36: 63.33333333 | O36: 0 | P36: 0 | Q36: 0
A37: 2012-08-15 | B37: 2012-08-16 | C37: 0.0015 | E37: 2012-08-16 | F37: 2012-08-17 | G37: 1 | H37: 360 | I37: 0.002777777778 | J37: 0.0015 | K37: 0.0005 | L37: 0.002 | M37: 5.555555556 | N37: 68.88888889 | O37: 0 | P37: 0 | Q37: 0
A38: 2012-08-16 | B38: 2012-08-17 | C38: 0.0015 | E38: 2012-08-17 | F38: 2012-08-18 | G38: 1 | H38: 360 | I38: 0.002777777778 | J38: 0.0015 | K38: 0.0005 | L38: 0.002 | M38: 5.555555556 | N38: 74.44444444 | O38: 0 | P38: 0 | Q38: 0
A39: 2012-08-16 | B39: 2012-08-18 | C39: 0.0015 | E39: 2012-08-18 | F39: 2012-08-19 | G39: 1 | H39: 360 | I39: 0.002777777778 | J39: 0.0015 | K39: 0.0005 | L39: 0.002 | M39: 5.555555556 | N39: 80 | O39: 0 | P39: 0 | Q39: 0
A40: 2012-08-16 | B40: 2012-08-19 | C40: 0.0015 | E40: 2012-08-19 | F40: 2012-08-20 | G40: 1 | H40: 360 | I40: 0.002777777778 | J40: 0.0015 | K40: 0.0005 | L40: 0.002 | M40: 5.555555556 | N40: 85.55555556 | O40: 0 | P40: 0 | Q40: 0
A41: 2012-08-17 | B41: 2012-08-20 | C41: 0.0012 | E41: 2012-08-20 | F41: 2012-08-21 | G41: 1 | H41: 360 | I41: 0.002777777778 | J41: 0.0012 | K41: 0.0005 | L41: 0.0017 | M41: 4.722222222 | N41: 90.27777778 | O41: 0 | P41: 0 | Q41: 0
A42: 2012-08-20 | B42: 2012-08-21 | C42: 0.001 | E42: 2012-08-21 | F42: 2012-08-22 | G42: 1 | H42: 360 | I42: 0.002777777778 | J42: 0.001 | K42: 0.0005 | L42: 0.0015 | M42: 4.166666667 | N42: 94.44444444 | O42: 0 | P42: 0 | Q42: 0
A43: 2012-08-21 | B43: 2012-08-22 | C43: 0.001 | E43: 2012-08-22 | F43: 2012-08-23 | G43: 1 | H43: 360 | I43: 0.002777777778 | J43: 0.001 | K43: 0.0005 | L43: 0.0015 | M43: 4.166666667 | N43: 98.61111111 | O43: 0 | P43: 0 | Q43: 0
A44: 2012-08-22 | B44: 2012-08-23 | C44: 0.001 | E44: 2012-08-23 | F44: 2012-08-24 | G44: 1 | H44: 360 | I44: 0.002777777778 | J44: 0.001 | K44: 0.0005 | L44: 0.0015 | M44: 4.166666667 | N44: 102.7777778 | O44: 0 | P44: 0 | Q44: 0
A45: 2012-08-23 | B45: 2012-08-24 | C45: 0.0012 | E45: 2012-08-24 | F45: 2012-08-25 | G45: 1 | H45: 360 | I45: 0.002777777778 | J45: 0.0012 | K45: 0.0005 | L45: 0.0017 | M45: 4.722222222 | N45: 107.5 | O45: 0 | P45: 0 | Q45: 0
A46: 2012-08-23 | B46: 2012-08-25 | C46: 0.0012 | E46: 2012-08-25 | F46: 2012-08-26 | G46: 1 | H46: 360 | I46: 0.002777777778 | J46: 0.0012 | K46: 0.0005 | L46: 0.0017 | M46: 4.722222222 | N46: 112.2222222 | O46: 0 | P46: 0 | Q46: 0
A47: 2012-08-23 | B47: 2012-08-26 | C47: 0.0012 | E47: 2012-08-26 | F47: 2012-08-27 | G47: 1 | H47: 360 | I47: 0.002777777778 | J47: 0.0012 | K47: 0.0005 | L47: 0.0017 | M47: 4.722222222 | N47: 116.9444444 | O47: 0 | P47: 0 | Q47: 0
A48: 2012-08-24 | B48: 2012-08-27 | C48: 0.0016 | E48: 2012-08-27 | F48: 2012-08-28 | G48: 1 | H48: 360 | I48: 0.002777777778 | J48: 0.0016 | K48: 0.0005 | L48: 0.0021 | M48: 5.833333333 | N48: 122.7777778 | O48: 0 | P48: 0 | Q48: 0
A49: 2012-08-27 | B49: 2012-08-28 | C49: 0.0016 | E49: 2012-08-28 | F49: 2012-08-29 | G49: 1 | H49: 360 | I49: 0.002777777778 | J49: 0.0016 | K49: 0.0005 | L49: 0.0021 | M49: 5.833333333 | N49: 128.6111111 | O49: 0 | P49: 0 | Q49: 0
A50: 2012-08-28 | B50: 2012-08-29 | C50: 0.0017 | E50: 2012-08-29 | F50: 2012-08-30 | G50: 1 | H50: 360 | I50: 0.002777777778 | J50: 0.0017 | K50: 0.0005 | L50: 0.0022 | M50: 6.111111111 | N50: 134.7222222 | O50: 0 | P50: 0 | Q50: 0
A51: 2012-08-29 | B51: 2012-08-30 | C51: 0.0009 | E51: 2012-08-30 | F51: 2012-08-31 | G51: 1 | H51: 360 | I51: 0.002777777778 | J51: 0.0009 | K51: 0.0005 | L51: 0.0014 | M51: 3.888888889 | N51: 138.6111111 | O51: 0 | P51: 0 | Q51: 0
A52: 2012-08-30 | B52: 2012-08-31 | C52: 0.0009 | E52: 2012-08-31 | F52: 2012-09-01 | G52: 1 | H52: 360 | I52: 0.002777777778 | J52: 0.0009 | K52: 0.0005 | L52: 0.0014 | M52: 3.888888889 | N52: 142.5 | O52: 0 | P52: 0 | Q52: 0
A53: 2012-08-30 | B53: 2012-09-01 | C53: 0.0009 | E53: 2012-09-01 | F53: 2012-09-02 | G53: 1 | H53: 360 | I53: 0.002777777778 | J53: 0.0009 | K53: 0.0005 | L53: 0.0014 | M53: 3.888888889 | N53: 146.3888889 | O53: 0 | P53: 0 | Q53: 0
A54: 2012-08-30 | B54: 2012-09-02 | C54: 0.0009 | E54: 2012-09-02 | F54: 2012-09-03 | G54: 1 | H54: 360 | I54: 0.002777777778 | J54: 0.0009 | K54: 0.0005 | L54: 0.0014 | M54: 3.888888889 | N54: 150.2777778 | O54: 0 | P54: 0 | Q54: 0
A55: 2012-08-30 | B55: 2012-09-03 | C55: 0.0009 | E55: 2012-09-03 | F55: 2012-09-04 | G55: 1 | H55: 360 | I55: 0.002777777778 | J55: 0.0009 | K55: 0.0005 | L55: 0.0014 | M55: 3.888888889 | N55: 154.1666667 | O55: 0 | P55: 0 | Q55: 0
A56: 2012-08-31 | B56: 2012-09-04 | C56: 0.0007 | E56: 2012-09-04 | F56: 2012-09-05 | G56: 1 | H56: 360 | I56: 0.002777777778 | J56: 0.0007 | K56: 0.0005 | L56: 0.0012 | M56: 3.333333333 | N56: 157.5 | O56: 0 | P56: 0 | Q56: 0
A57: 2012-09-04 | B57: 2012-09-05 | C57: 0.0007 | E57: 2012-09-05 | F57: 2012-09-06 | G57: 1 | H57: 360 | I57: 0.002777777778 | J57: 0.0007 | K57: 0.0005 | L57: 0.0012 | M57: 3.333333333 | N57: 160.8333333 | O57: 0 | P57: 0 | Q57: 0
A58: 2012-09-05 | B58: 2012-09-06 | C58: 0.0006 | E58: 2012-09-06 | F58: 2012-09-07 | G58: 1 | H58: 360 | I58: 0.002777777778 | J58: 0.0006 | K58: 0.0005 | L58: 0.0011 | M58: 3.055555556 | N58: 163.8888889 | O58: 0 | P58: 0 | Q58: 0
A59: 2012-09-06 | B59: 2012-09-07 | C59: 0.0004 | E59: 2012-09-07 | F59: 2012-09-08 | G59: 1 | H59: 360 | I59: 0.002777777778 | J59: 0.0004 | K59: 0.0005 | L59: 0.0009 | M59: 2.5 | N59: 166.3888889 | O59: 0 | P59: 0 | Q59: 0
A60: 2012-09-06 | B60: 2012-09-08 | C60: 0.0004 | E60: 2012-09-08 | F60: 2012-09-09 | G60: 1 | H60: 360 | I60: 0.002777777778 | J60: 0.0004 | K60: 0.0005 | L60: 0.0009 | M60: 2.5 | N60: 168.8888889 | O60: 0 | P60: 0 | Q60: 0
A61: 2012-09-06 | B61: 2012-09-09 | C61: 0.0004 | E61: 2012-09-09 | F61: 2012-09-10 | G61: 1 | H61: 360 | I61: 0.002777777778 | J61: 0.0004 | K61: 0.0005 | L61: 0.0009 | M61: 2.5 | N61: 171.3888889 | O61: 0 | P61: 0 | Q61: 0
A62: 2012-09-07 | B62: 2012-09-10 | C62: 0 | E62: 2012-09-10 | F62: 2012-09-11 | G62: 1 | H62: 360 | I62: 0.002777777778 | J62: 0 | K62: 0.0005 | L62: 0.0005 | M62: 1.388888889 | N62: 172.7777778 | O62: 0 | P62: 0 | Q62: 0
A63: 2012-09-10 | B63: 2012-09-11 | C63: 0.0007 | E63: 2012-09-11 | F63: 2012-09-12 | G63: 1 | H63: 360 | I63: 0.002777777778 | J63: =C63 -> 0.0007 | K63: 0.0005 | L63: 0.0012 | M63: 3.333333333 | N63: =+N62+M63-O62 -> 176.1111111 | O63: 0 | P63: 0 | Q63: 0 | S63: 1 | T63: =+S63*Q63 -> 0
E64: 2012-09-12 | F64: 2012-09-13 | G64: 1 | H64: 360 | I64: 0.002777777778 | J64: =+J63 -> 0.0007 | K64: 0.0005 | L64: 0.0012 | M64: 3.333333333 | N64: =+N63+M64-O63 -> 179.4444444 | O64: 0 | P64: 0 | Q64: 0 | R64: =J64+$C$13 -> 0.0012
E65: 2012-09-13 | F65: 2012-09-14 | G65: 1 | H65: 360 | I65: 0.002777777778 | J65: =+J64 -> 0.0007 | K65: 0.0005 | L65: 0.0012 | M65: 3.333333333 | N65: 182.7777778 | O65: 0 | P65: 0 | Q65: 0 | R65: 0.0012
E66: 2012-09-14 | F66: 2012-09-15 | G66: 1 | H66: 360 | I66: 0.002777777778 | J66: 0.0007 | K66: 0.0005 | L66: 0.0012 | M66: 3.333333333 | N66: 186.1111111 | O66: 0 | P66: 0 | Q66: 0 | R66: 0.0012
E67: 2012-09-15 | F67: 2012-09-16 | G67: 1 | H67: 360 | I67: 0.002777777778 | J67: 0.0007 | K67: 0.0005 | L67: 0.0012 | M67: 3.333333333 | N67: 189.4444444 | O67: 0 | P67: 0 | Q67: 0 | R67: 0.0012
E68: 2012-09-16 | F68: 2012-09-17 | G68: 1 | H68: 360 | I68: 0.002777777778 | J68: 0.0007 | K68: 0.0005 | L68: 0.0012 | M68: 3.333333333 | N68: 192.7777778 | O68: 0 | P68: 0 | Q68: 0 | R68: 0.0012
E69: 2012-09-17 | F69: 2012-09-18 | G69: 1 | H69: 360 | I69: 0.002777777778 | J69: 0.0007 | K69: 0.0005 | L69: 0.0012 | M69: 3.333333333 | N69: 196.1111111 | O69: 0 | P69: 0 | Q69: 0 | R69: 0.0012
E70: 2012-09-18 | F70: 2012-09-19 | G70: 1 | H70: 360 | I70: 0.002777777778 | J70: 0.0007 | K70: 0.0005 | L70: 0.0012 | M70: 3.333333333 | N70: 199.4444444 | O70: 0 | P70: 0 | Q70: 0 | R70: 0.0012
E71: 2012-09-19 | F71: 2012-09-20 | G71: 1 | H71: 360 | I71: 0.002777777778 | J71: 0.0007 | K71: 0.0005 | L71: 0.0012 | M71: 3.333333333 | N71: 202.7777778 | O71: 0 | P71: 0 | Q71: 0 | R71: 0.0012
E72: 2012-09-20 | F72: 2012-09-21 | G72: 1 | H72: 360 | I72: 0.002777777778 | J72: 0.0007 | K72: 0.0005 | L72: 0.0012 | M72: 3.333333333 | N72: 206.1111111 | O72: 0 | P72: 0 | Q72: 0 | R72: 0.0012
E73: 2012-09-21 | F73: 2012-09-22 | G73: 1 | H73: 360 | I73: 0.002777777778 | J73: 0.0007 | K73: 0.0005 | L73: 0.0012 | M73: 3.333333333 | N73: 209.4444444 | O73: 0 | P73: 0 | Q73: 0 | R73: 0.0012
E74: 2012-09-22 | F74: 2012-09-23 | G74: 1 | H74: 360 | I74: 0.002777777778 | J74: 0.0007 | K74: 0.0005 | L74: 0.0012 | M74: 3.333333333 | N74: 212.7777778 | O74: 0 | P74: 0 | Q74: 0 | R74: 0.0012
E75: 2012-09-23 | F75: 2012-09-24 | G75: 1 | H75: 360 | I75: 0.002777777778 | J75: 0.0007 | K75: 0.0005 | L75: 0.0012 | M75: 3.333333333 | N75: 216.1111111 | O75: 0 | P75: 0 | Q75: 0 | R75: 0.0012
E76: 2012-09-24 | F76: 2012-09-25 | G76: 1 | H76: 360 | I76: 0.002777777778 | J76: 0.0007 | K76: 0.0005 | L76: 0.0012 | M76: 3.333333333 | N76: 219.4444444 | O76: 0 | P76: 0 | Q76: 0 | R76: 0.0012
E77: 2012-09-25 | F77: 2012-09-26 | G77: 1 | H77: 360 | I77: 0.002777777778 | J77: 0.0007 | K77: 0.0005 | L77: 0.0012 | M77: 3.333333333 | N77: 222.7777778 | O77: 0 | P77: 0 | Q77: 0 | R77: 0.0012
E78: 2012-09-26 | F78: 2012-09-27 | G78: 1 | H78: 360 | I78: 0.002777777778 | J78: 0.0007 | K78: 0.0005 | L78: 0.0012 | M78: 3.333333333 | N78: 226.1111111 | O78: 0 | P78: 0 | Q78: 0 | R78: 0.0012
E79: 2012-09-27 | F79: 2012-09-28 | G79: 1 | H79: 360 | I79: 0.002777777778 | J79: 0.0007 | K79: 0.0005 | L79: 0.0012 | M79: 3.333333333 | N79: 229.4444444 | O79: 0 | P79: 0 | Q79: 0 | R79: 0.0012
E80: 2012-09-28 | F80: 2012-09-29 | G80: 1 | H80: 360 | I80: 0.002777777778 | J80: 0.0007 | K80: 0.0005 | L80: 0.0012 | M80: 3.333333333 | N80: 232.7777778 | O80: 0 | P80: 0 | Q80: 0 | R80: 0.0012
E81: 2012-09-29 | F81: 2012-09-30 | G81: 1 | H81: 360 | I81: 0.002777777778 | J81: 0.0007 | K81: 0.0005 | L81: 0.0012 | M81: 3.333333333 | N81: 236.1111111 | O81: 0 | P81: 0 | Q81: 0 | R81: 0.0012
E82: 2012-09-30 | F82: 2012-10-01 | G82: 1 | H82: 360 | I82: 0.002777777778 | J82: 0.0007 | K82: 0.0005 | L82: 0.0012 | M82: 3.333333333 | N82: 239.4444444 | O82: 0 | P82: 0 | Q82: 0 | R82: 0.0012
E83: 2012-10-01 | F83: 2012-10-02 | G83: 1 | H83: 360 | I83: 0.002777777778 | J83: 0.0007 | K83: 0.0005 | L83: 0.0012 | M83: 3.333333333 | N83: 242.7777778 | O83: 0 | P83: 0 | Q83: 0 | R83: 0.0012
E84: 2012-10-02 | F84: 2012-10-03 | G84: 1 | H84: 360 | I84: 0.002777777778 | J84: 0.0007 | K84: 0.0005 | L84: 0.0012 | M84: 3.333333333 | N84: 246.1111111 | O84: 0 | P84: 0 | Q84: 0 | R84: 0.0012
E85: 2012-10-03 | F85: 2012-10-04 | G85: 1 | H85: 360 | I85: 0.002777777778 | J85: 0.0007 | K85: =+$C$11 -> 0.0005 | L85: 0.0012 | M85: =L85*$C$10*I85 -> 3.333333333 | N85: 249.4444444 | O85: 0 | P85: 0 | Q85: 0 | R85: 0.0012
E86: 2012-10-04 | F86: =+E86+1 -> 2012-10-05 | G86: =+F86-E86 -> 1 | H86: 360 | I86: =G86/H86 -> 0.002777777778 | J86: 0.0007 | K86: 0.0005 | L86: =MAX(0,K86+J86) -> 0.0012 | M86: 3.333333333 | N86: 252.7777778 | O86: 0 | P86: 0 | Q86: =+P86+O86 -> 0 | R86: 0.0012
E87: =+F86 -> 2012-10-05 | F87: 2012-10-06 | G87: 1 | H87: 360 | I87: 0.002777777778 | J87: 0.0007 | K87: 0.0005 | L87: 0.0012 | M87: 3.333333333 | N87: =+N86+M87-O86 -> 256.1111111 | O87: 0 | P87: 0 | Q87: 0 | R87: 0.0012
E88: 2012-10-06 | F88: 2012-10-07 | G88: 1 | H88: 360 | I88: 0.002777777778 | J88: 0.0007 | K88: 0.0005 | L88: 0.0012 | M88: 3.333333333 | N88: 259.4444444 | O88: 0 | P88: 0 | Q88: 0 | R88: 0.0012
E89: 2012-10-07 | F89: 2012-10-08 | G89: 1 | H89: 360 | I89: 0.002777777778 | J89: 0.0007 | K89: 0.0005 | L89: 0.0012 | M89: 3.333333333 | N89: 262.7777778 | O89: 0 | P89: 0 | Q89: 0 | R89: 0.0012
E90: 2012-10-08 | F90: 2012-10-09 | G90: 1 | H90: 360 | I90: 0.002777777778 | J90: 0.0007 | K90: 0.0005 | L90: 0.0012 | M90: 3.333333333 | N90: 266.1111111 | O90: 0 | P90: 0 | Q90: 0 | R90: 0.0012
E91: 2012-10-09 | F91: 2012-10-10 | G91: 1 | H91: 360 | I91: 0.002777777778 | J91: 0.0007 | K91: 0.0005 | L91: 0.0012 | M91: 3.333333333 | N91: 269.4444444 | O91: 0 | P91: 0 | Q91: 0 | R91: 0.0012
E92: 2012-10-10 | F92: 2012-10-11 | G92: 1 | H92: 360 | I92: 0.002777777778 | J92: 0.0007 | K92: 0.0005 | L92: 0.0012 | M92: 3.333333333 | N92: 272.7777778 | O92: 0 | P92: 0 | Q92: 0 | R92: 0.0012
E93: 2012-10-11 | F93: 2012-10-12 | G93: 1 | H93: 360 | I93: 0.002777777778 | J93: 0.0007 | K93: 0.0005 | L93: 0.0012 | M93: 3.333333333 | N93: 276.1111111 | O93: 0 | P93: 0 | Q93: 0 | R93: 0.0012
E94: 2012-10-12 | F94: 2012-10-13 | G94: 1 | H94: 360 | I94: 0.002777777778 | J94: 0.0007 | K94: 0.0005 | L94: 0.0012 | M94: 3.333333333 | N94: 279.4444444 | O94: 0 | P94: 0 | Q94: 0 | R94: 0.0012
E95: 2012-10-13 | F95: 2012-10-14 | G95: 1 | H95: 360 | I95: 0.002777777778 | J95: 0.0007 | K95: 0.0005 | L95: 0.0012 | M95: 3.333333333 | N95: 282.7777778 | O95: 0 | P95: 0 | Q95: 0 | R95: 0.0012
E96: 2012-10-14 | F96: 2012-10-15 | G96: 1 | H96: 360 | I96: 0.002777777778 | J96: 0.0007 | K96: 0.0005 | L96: 0.0012 | M96: 3.333333333 | N96: 286.1111111 | O96: 0 | P96: 0 | Q96: 0 | R96: 0.0012
E97: 2012-10-15 | F97: 2012-10-16 | G97: 1 | H97: 360 | I97: 0.002777777778 | J97: 0.0007 | K97: 0.0005 | L97: 0.0012 | M97: 3.333333333 | N97: 289.4444444 | O97: 0 | P97: 0 | Q97: 0 | R97: 0.0012
E98: 2012-10-16 | F98: 2012-10-17 | G98: 1 | H98: 360 | I98: 0.002777777778 | J98: 0.0007 | K98: 0.0005 | L98: 0.0012 | M98: 3.333333333 | N98: 292.7777778 | O98: 0 | P98: 0 | Q98: 0 | R98: 0.0012
E99: 2012-10-17 | F99: 2012-10-18 | G99: 1 | H99: 360 | I99: 0.002777777778 | J99: 0.0007 | K99: 0.0005 | L99: 0.0012 | M99: 3.333333333 | N99: 296.1111111 | O99: 0 | P99: 0 | Q99: 0 | R99: 0.0012
E100: 2012-10-18 | F100: 2012-10-19 | G100: 1 | H100: 360 | I100: 0.002777777778 | J100: 0.0007 | K100: 0.0005 | L100: 0.0012 | M100: 3.333333333 | N100: 299.4444444 | O100: 0 | P100: 0 | Q100: 0 | R100: 0.0012
E101: 2012-10-19 | F101: 2012-10-20 | G101: 1 | H101: 360 | I101: 0.002777777778 | J101: 0.0007 | K101: 0.0005 | L101: 0.0012 | M101: 3.333333333 | N101: 302.7777778 | O101: 0 | P101: 0 | Q101: 0 | R101: 0.0012
E102: 2012-10-20 | F102: 2012-10-21 | G102: 1 | H102: 360 | I102: 0.002777777778 | J102: 0.0007 | K102: 0.0005 | L102: 0.0012 | M102: 3.333333333 | N102: 306.1111111 | O102: 0 | P102: 0 | Q102: 0 | R102: 0.0012
E103: 2012-10-21 | F103: 2012-10-22 | G103: 1 | H103: 360 | I103: 0.002777777778 | J103: 0.0007 | K103: 0.0005 | L103: 0.0012 | M103: 3.333333333 | N103: 309.4444444 | O103: 0 | P103: 0 | Q103: 0 | R103: 0.0012
E104: 2012-10-22 | F104: 2012-10-23 | G104: 1 | H104: 360 | I104: 0.002777777778 | J104: 0.0007 | K104: 0.0005 | L104: 0.0012 | M104: 3.333333333 | N104: 312.7777778 | O104: 0 | P104: 0 | Q104: 0 | R104: 0.0012
E105: 2012-10-23 | F105: 2012-10-24 | G105: 1 | H105: 360 | I105: 0.002777777778 | J105: 0.0007 | K105: 0.0005 | L105: 0.0012 | M105: 3.333333333 | N105: 316.1111111 | O105: 0 | P105: 0 | Q105: 0 | R105: 0.0012
E106: 2012-10-24 | F106: 2012-10-25 | G106: 1 | H106: 360 | I106: 0.002777777778 | J106: 0.0007 | K106: 0.0005 | L106: 0.0012 | M106: 3.333333333 | N106: 319.4444444 | O106: 0 | P106: 0 | Q106: 0 | R106: 0.0012
E107: 2012-10-25 | F107: 2012-10-26 | G107: 1 | H107: 360 | I107: 0.002777777778 | J107: 0.0007 | K107: 0.0005 | L107: 0.0012 | M107: 3.333333333 | N107: 322.7777778 | O107: 0 | P107: 0 | Q107: 0 | R107: 0.0012
E108: 2012-10-26 | F108: 2012-10-27 | G108: 1 | H108: 360 | I108: 0.002777777778 | J108: 0.0007 | K108: 0.0005 | L108: 0.0012 | M108: 3.333333333 | N108: 326.1111111 | O108: 0 | P108: 0 | Q108: 0 | R108: 0.0012
E109: 2012-10-27 | F109: 2012-10-28 | G109: 1 | H109: 360 | I109: 0.002777777778 | J109: 0.0007 | K109: 0.0005 | L109: 0.0012 | M109: 3.333333333 | N109: 329.4444444 | O109: 0 | P109: 0 | Q109: 0 | R109: 0.0012
E110: 2012-10-28 | F110: 2012-10-29 | G110: 1 | H110: 360 | I110: 0.002777777778 | J110: 0.0007 | K110: 0.0005 | L110: 0.0012 | M110: 3.333333333 | N110: 332.7777778 | O110: 0 | P110: 0 | Q110: 0 | R110: 0.0012
E111: 2012-10-29 | F111: 2012-10-30 | G111: 1 | H111: 360 | I111: 0.002777777778 | J111: 0.0007 | K111: 0.0005 | L111: 0.0012 | M111: 3.333333333 | N111: 336.1111111 | O111: 0 | P111: 0 | Q111: 0 | R111: 0.0012
E112: 2012-10-30 | F112: 2012-10-31 | G112: 1 | H112: 360 | I112: 0.002777777778 | J112: 0.0007 | K112: 0.0005 | L112: 0.0012 | M112: 3.333333333 | N112: 339.4444444 | O112: =SUM(M21:M112) -> 339.4444444 | P112: 0 | Q112: 339.4444444 | R112: 0.0012 | S112: =S63/(1+AVERAGE(R64:R112)*SUM(I64:I112)) -> 0.9998366933 | T112: =+S112*Q112 -> 339.3890109
E113: 2012-10-31 | F113: 2012-11-01 | G113: 1 | H113: 360 | I113: 0.002777777778 | J113: 0.0007 | K113: 0.0005 | L113: 0.0012 | M113: 3.333333333 | N113: 3.333333333 | O113: 0 | P113: 0 | Q113: 0 | R113: 0.0012
E114: 2012-11-01 | F114: 2012-11-02 | G114: 1 | H114: 360 | I114: 0.002777777778 | J114: 0.0007 | K114: 0.0005 | L114: 0.0012 | M114: 3.333333333 | N114: 6.666666667 | O114: 0 | P114: 0 | Q114: 0 | R114: 0.0012
E115: 2012-11-02 | F115: 2012-11-03 | G115: 1 | H115: 360 | I115: 0.002777777778 | J115: 0.0007 | K115: 0.0005 | L115: 0.0012 | M115: 3.333333333 | N115: 10 | O115: 0 | P115: 0 | Q115: 0 | R115: 0.0012
E116: 2012-11-03 | F116: 2012-11-04 | G116: 1 | H116: 360 | I116: 0.002777777778 | J116: 0.0007 | K116: 0.0005 | L116: 0.0012 | M116: 3.333333333 | N116: 13.33333333 | O116: 0 | P116: 0 | Q116: 0 | R116: 0.0012
E117: 2012-11-04 | F117: 2012-11-05 | G117: 1 | H117: 360 | I117: 0.002777777778 | J117: 0.0007 | K117: 0.0005 | L117: 0.0012 | M117: 3.333333333 | N117: 16.66666667 | O117: 0 | P117: 0 | Q117: 0 | R117: 0.0012
E118: 2012-11-05 | F118: 2012-11-06 | G118: 1 | H118: 360 | I118: 0.002777777778 | J118: 0.0007 | K118: 0.0005 | L118: 0.0012 | M118: 3.333333333 | N118: 20 | O118: 0 | P118: 0 | Q118: 0 | R118: 0.0012
E119: 2012-11-06 | F119: 2012-11-07 | G119: 1 | H119: 360 | I119: 0.002777777778 | J119: 0.0007 | K119: 0.0005 | L119: 0.0012 | M119: 3.333333333 | N119: 23.33333333 | O119: 0 | P119: 0 | Q119: 0 | R119: 0.0012
E120: 2012-11-07 | F120: 2012-11-08 | G120: 1 | H120: 360 | I120: 0.002777777778 | J120: 0.0007 | K120: 0.0005 | L120: 0.0012 | M120: 3.333333333 | N120: 26.66666667 | O120: 0 | P120: 0 | Q120: 0 | R120: 0.0012
E121: 2012-11-08 | F121: 2012-11-09 | G121: 1 | H121: 360 | I121: 0.002777777778 | J121: 0.0007 | K121: 0.0005 | L121: 0.0012 | M121: 3.333333333 | N121: 30 | O121: 0 | P121: 0 | Q121: 0 | R121: 0.0012
E122: 2012-11-09 | F122: 2012-11-10 | G122: 1 | H122: 360 | I122: 0.002777777778 | J122: 0.0007 | K122: 0.0005 | L122: 0.0012 | M122: 3.333333333 | N122: 33.33333333 | O122: 0 | P122: 0 | Q122: 0 | R122: 0.0012
E123: 2012-11-10 | F123: 2012-11-11 | G123: 1 | H123: 360 | I123: 0.002777777778 | J123: 0.0007 | K123: 0.0005 | L123: 0.0012 | M123: 3.333333333 | N123: 36.66666667 | O123: 0 | P123: 0 | Q123: 0 | R123: 0.0012
E124: 2012-11-11 | F124: 2012-11-12 | G124: 1 | H124: 360 | I124: 0.002777777778 | J124: 0.0007 | K124: 0.0005 | L124: 0.0012 | M124: 3.333333333 | N124: 40 | O124: 0 | P124: 0 | Q124: 0 | R124: 0.0012
E125: 2012-11-12 | F125: 2012-11-13 | G125: 1 | H125: 360 | I125: 0.002777777778 | J125: 0.0007 | K125: 0.0005 | L125: 0.0012 | M125: 3.333333333 | N125: 43.33333333 | O125: 0 | P125: 0 | Q125: 0 | R125: 0.0012
E126: 2012-11-13 | F126: 2012-11-14 | G126: 1 | H126: 360 | I126: 0.002777777778 | J126: 0.0007 | K126: 0.0005 | L126: 0.0012 | M126: 3.333333333 | N126: 46.66666667 | O126: 0 | P126: 0 | Q126: 0 | R126: 0.0012
E127: 2012-11-14 | F127: 2012-11-15 | G127: 1 | H127: 360 | I127: 0.002777777778 | J127: 0.0007 | K127: 0.0005 | L127: 0.0012 | M127: 3.333333333 | N127: 50 | O127: 0 | P127: 0 | Q127: 0 | R127: 0.0012
E128: 2012-11-15 | F128: 2012-11-16 | G128: 1 | H128: 360 | I128: 0.002777777778 | J128: 0.0007 | K128: 0.0005 | L128: 0.0012 | M128: 3.333333333 | N128: 53.33333333 | O128: 0 | P128: 0 | Q128: 0 | R128: =J128+$C$13 -> 0.0012
E129: 2012-11-16 | F129: 2012-11-17 | G129: 1 | H129: 360 | I129: 0.002777777778 | J129: =+J128 -> 0.0007 | K129: 0.0005 | L129: 0.0012 | M129: 3.333333333 | N129: 56.66666667 | O129: 0 | P129: 0 | Q129: 0 | R129: 0.0012
E130: 2012-11-17 | F130: 2012-11-18 | G130: 1 | H130: 360 | I130: 0.002777777778 | J130: 0.0007 | K130: 0.0005 | L130: 0.0012 | M130: 3.333333333 | N130: 60 | O130: 0 | P130: 0 | Q130: 0 | R130: 0.0012
E131: 2012-11-18 | F131: 2012-11-19 | G131: 1 | H131: 360 | I131: 0.002777777778 | J131: 0.0007 | K131: 0.0005 | L131: 0.0012 | M131: 3.333333333 | N131: 63.33333333 | O131: 0 | P131: 0 | Q131: 0 | R131: 0.0012
E132: 2012-11-19 | F132: 2012-11-20 | G132: 1 | H132: 360 | I132: 0.002777777778 | J132: 0.0007 | K132: 0.0005 | L132: 0.0012 | M132: 3.333333333 | N132: 66.66666667 | O132: 0 | P132: 0 | Q132: 0 | R132: 0.0012
E133: 2012-11-20 | F133: 2012-11-21 | G133: 1 | H133: 360 | I133: 0.002777777778 | J133: 0.0007 | K133: 0.0005 | L133: 0.0012 | M133: 3.333333333 | N133: 70 | O133: 0 | P133: 0 | Q133: 0 | R133: 0.0012
E134: 2012-11-21 | F134: 2012-11-22 | G134: 1 | H134: 360 | I134: 0.002777777778 | J134: 0.0007 | K134: 0.0005 | L134: 0.0012 | M134: 3.333333333 | N134: 73.33333333 | O134: 0 | P134: 0 | Q134: 0 | R134: 0.0012
E135: 2012-11-22 | F135: 2012-11-23 | G135: 1 | H135: 360 | I135: 0.002777777778 | J135: 0.0007 | K135: 0.0005 | L135: 0.0012 | M135: 3.333333333 | N135: 76.66666667 | O135: 0 | P135: 0 | Q135: 0 | R135: 0.0012
E136: 2012-11-23 | F136: 2012-11-24 | G136: 1 | H136: 360 | I136: 0.002777777778 | J136: 0.0007 | K136: 0.0005 | L136: 0.0012 | M136: 3.333333333 | N136: 80 | O136: 0 | P136: 0 | Q136: 0 | R136: 0.0012
E137: 2012-11-24 | F137: 2012-11-25 | G137: 1 | H137: 360 | I137: 0.002777777778 | J137: 0.0007 | K137: 0.0005 | L137: 0.0012 | M137: 3.333333333 | N137: 83.33333333 | O137: 0 | P137: 0 | Q137: 0 | R137: 0.0012
E138: 2012-11-25 | F138: 2012-11-26 | G138: 1 | H138: 360 | I138: 0.002777777778 | J138: 0.0007 | K138: 0.0005 | L138: 0.0012 | M138: 3.333333333 | N138: 86.66666667 | O138: 0 | P138: 0 | Q138: 0 | R138: 0.0012
E139: 2012-11-26 | F139: 2012-11-27 | G139: 1 | H139: 360 | I139: 0.002777777778 | J139: 0.0007 | K139: 0.0005 | L139: 0.0012 | M139: 3.333333333 | N139: 90 | O139: 0 | P139: 0 | Q139: 0 | R139: 0.0012
E140: 2012-11-27 | F140: 2012-11-28 | G140: 1 | H140: 360 | I140: 0.002777777778 | J140: 0.0007 | K140: 0.0005 | L140: 0.0012 | M140: 3.333333333 | N140: 93.33333333 | O140: 0 | P140: 0 | Q140: 0 | R140: 0.0012
E141: 2012-11-28 | F141: 2012-11-29 | G141: 1 | H141: 360 | I141: 0.002777777778 | J141: 0.0007 | K141: 0.0005 | L141: 0.0012 | M141: 3.333333333 | N141: 96.66666667 | O141: 0 | P141: 0 | Q141: 0 | R141: 0.0012
E142: 2012-11-29 | F142: 2012-11-30 | G142: 1 | H142: 360 | I142: 0.002777777778 | J142: 0.0007 | K142: 0.0005 | L142: 0.0012 | M142: 3.333333333 | N142: 100 | O142: 0 | P142: 0 | Q142: 0 | R142: 0.0012
E143: 2012-11-30 | F143: 2012-12-01 | G143: 1 | H143: 360 | I143: 0.002777777778 | J143: 0.0007 | K143: 0.0005 | L143: 0.0012 | M143: 3.333333333 | N143: 103.3333333 | O143: 0 | P143: 0 | Q143: 0 | R143: 0.0012
E144: 2012-12-01 | F144: 2012-12-02 | G144: 1 | H144: 360 | I144: 0.002777777778 | J144: 0.0007 | K144: 0.0005 | L144: 0.0012 | M144: 3.333333333 | N144: 106.6666667 | O144: 0 | P144: 0 | Q144: 0 | R144: 0.0012
E145: 2012-12-02 | F145: 2012-12-03 | G145: 1 | H145: 360 | I145: 0.002777777778 | J145: 0.0007 | K145: 0.0005 | L145: 0.0012 | M145: 3.333333333 | N145: 110 | O145: 0 | P145: 0 | Q145: 0 | R145: 0.0012
E146: 2012-12-03 | F146: 2012-12-04 | G146: 1 | H146: 360 | I146: 0.002777777778 | J146: 0.0007 | K146: 0.0005 | L146: 0.0012 | M146: 3.333333333 | N146: 113.3333333 | O146: 0 | P146: 0 | Q146: 0 | R146: 0.0012
E147: 2012-12-04 | F147: 2012-12-05 | G147: 1 | H147: 360 | I147: 0.002777777778 | J147: 0.0007 | K147: 0.0005 | L147: 0.0012 | M147: 3.333333333 | N147: 116.6666667 | O147: 0 | P147: 0 | Q147: 0 | R147: 0.0012
E148: 2012-12-05 | F148: 2012-12-06 | G148: 1 | H148: 360 | I148: 0.002777777778 | J148: 0.0007 | K148: 0.0005 | L148: 0.0012 | M148: 3.333333333 | N148: 120 | O148: 0 | P148: 0 | Q148: 0 | R148: 0.0012
E149: 2012-12-06 | F149: 2012-12-07 | G149: 1 | H149: 360 | I149: 0.002777777778 | J149: 0.0007 | K149: =+$C$11 -> 0.0005 | L149: 0.0012 | M149: =L149*$C$10*I149 -> 3.333333333 | N149: 123.3333333 | O149: 0 | P149: 0 | Q149: 0 | R149: 0.0012
E150: 2012-12-07 | F150: =+E150+1 -> 2012-12-08 | G150: =+F150-E150 -> 1 | H150: 360 | I150: =G150/H150 -> 0.002777777778 | J150: 0.0007 | K150: 0.0005 | L150: =MAX(0,K150+J150) -> 0.0012 | M150: 3.333333333 | N150: 126.6666667 | O150: 0 | P150: 0 | Q150: =+P150+O150 -> 0 | R150: 0.0012
E151: =+F150 -> 2012-12-08 | F151: 2012-12-09 | G151: 1 | H151: 360 | I151: 0.002777777778 | J151: 0.0007 | K151: 0.0005 | L151: 0.0012 | M151: 3.333333333 | N151: =+N150+M151-O150 -> 130 | O151: 0 | P151: 0 | Q151: 0 | R151: 0.0012
E152: 2012-12-09 | F152: 2012-12-10 | G152: 1 | H152: 360 | I152: 0.002777777778 | J152: 0.0007 | K152: 0.0005 | L152: 0.0012 | M152: 3.333333333 | N152: 133.3333333 | O152: 0 | P152: 0 | Q152: 0 | R152: 0.0012
E153: 2012-12-10 | F153: 2012-12-11 | G153: 1 | H153: 360 | I153: 0.002777777778 | J153: 0.0007 | K153: 0.0005 | L153: 0.0012 | M153: 3.333333333 | N153: 136.6666667 | O153: 0 | P153: 0 | Q153: 0 | R153: 0.0012
E154: 2012-12-11 | F154: 2012-12-12 | G154: 1 | H154: 360 | I154: 0.002777777778 | J154: 0.0007 | K154: 0.0005 | L154: 0.0012 | M154: 3.333333333 | N154: 140 | O154: 0 | P154: 0 | Q154: 0 | R154: 0.0012
E155: 2012-12-12 | F155: 2012-12-13 | G155: 1 | H155: 360 | I155: 0.002777777778 | J155: 0.0007 | K155: 0.0005 | L155: 0.0012 | M155: 3.333333333 | N155: 143.3333333 | O155: 0 | P155: 0 | Q155: 0 | R155: 0.0012
E156: 2012-12-13 | F156: 2012-12-14 | G156: 1 | H156: 360 | I156: 0.002777777778 | J156: 0.0007 | K156: 0.0005 | L156: 0.0012 | M156: 3.333333333 | N156: 146.6666667 | O156: 0 | P156: 0 | Q156: 0 | R156: 0.0012
E157: 2012-12-14 | F157: 2012-12-15 | G157: 1 | H157: 360 | I157: 0.002777777778 | J157: 0.0007 | K157: 0.0005 | L157: 0.0012 | M157: 3.333333333 | N157: 150 | O157: 0 | P157: 0 | Q157: 0 | R157: 0.0012
E158: 2012-12-15 | F158: 2012-12-16 | G158: 1 | H158: 360 | I158: 0.002777777778 | J158: 0.0007 | K158: 0.0005 | L158: 0.0012 | M158: 3.333333333 | N158: 153.3333333 | O158: 0 | P158: 0 | Q158: 0 | R158: 0.0012
E159: 2012-12-16 | F159: 2012-12-17 | G159: 1 | H159: 360 | I159: 0.002777777778 | J159: 0.0007 | K159: 0.0005 | L159: 0.0012 | M159: 3.333333333 | N159: 156.6666667 | O159: 0 | P159: 0 | Q159: 0 | R159: 0.0012
E160: 2012-12-17 | F160: 2012-12-18 | G160: 1 | H160: 360 | I160: 0.002777777778 | J160: 0.0007 | K160: 0.0005 | L160: 0.0012 | M160: 3.333333333 | N160: 160 | O160: 0 | P160: 0 | Q160: 0 | R160: 0.0012
E161: 2012-12-18 | F161: 2012-12-19 | G161: 1 | H161: 360 | I161: 0.002777777778 | J161: 0.0007 | K161: 0.0005 | L161: 0.0012 | M161: 3.333333333 | N161: 163.3333333 | O161: 0 | P161: 0 | Q161: 0 | R161: 0.0012
E162: 2012-12-19 | F162: 2012-12-20 | G162: 1 | H162: 360 | I162: 0.002777777778 | J162: 0.0007 | K162: 0.0005 | L162: 0.0012 | M162: 3.333333333 | N162: 166.6666667 | O162: 0 | P162: 0 | Q162: 0 | R162: 0.0012
E163: 2012-12-20 | F163: 2012-12-21 | G163: 1 | H163: 360 | I163: 0.002777777778 | J163: 0.0007 | K163: 0.0005 | L163: 0.0012 | M163: 3.333333333 | N163: 170 | O163: 0 | P163: 0 | Q163: 0 | R163: 0.0012
E164: 2012-12-21 | F164: 2012-12-22 | G164: 1 | H164: 360 | I164: 0.002777777778 | J164: 0.0007 | K164: 0.0005 | L164: 0.0012 | M164: 3.333333333 | N164: 173.3333333 | O164: 0 | P164: 0 | Q164: 0 | R164: 0.0012
E165: 2012-12-22 | F165: 2012-12-23 | G165: 1 | H165: 360 | I165: 0.002777777778 | J165: 0.0007 | K165: 0.0005 | L165: 0.0012 | M165: 3.333333333 | N165: 176.6666667 | O165: 0 | P165: 0 | Q165: 0 | R165: 0.0012
E166: 2012-12-23 | F166: 2012-12-24 | G166: 1 | H166: 360 | I166: 0.002777777778 | J166: 0.0007 | K166: 0.0005 | L166: 0.0012 | M166: 3.333333333 | N166: 180 | O166: 0 | P166: 0 | Q166: 0 | R166: 0.0012
E167: 2012-12-24 | F167: 2012-12-25 | G167: 1 | H167: 360 | I167: 0.002777777778 | J167: 0.0007 | K167: 0.0005 | L167: 0.0012 | M167: 3.333333333 | N167: 183.3333333 | O167: 0 | P167: 0 | Q167: 0 | R167: 0.0012
E168: 2012-12-25 | F168: 2012-12-26 | G168: 1 | H168: 360 | I168: 0.002777777778 | J168: 0.0007 | K168: 0.0005 | L168: 0.0012 | M168: 3.333333333 | N168: 186.6666667 | O168: 0 | P168: 0 | Q168: 0 | R168: 0.0012
E169: 2012-12-26 | F169: 2012-12-27 | G169: 1 | H169: 360 | I169: 0.002777777778 | J169: 0.0007 | K169: 0.0005 | L169: 0.0012 | M169: 3.333333333 | N169: 190 | O169: 0 | P169: 0 | Q169: 0 | R169: 0.0012
E170: 2012-12-27 | F170: 2012-12-28 | G170: 1 | H170: 360 | I170: 0.002777777778 | J170: 0.0007 | K170: 0.0005 | L170: 0.0012 | M170: 3.333333333 | N170: 193.3333333 | O170: 0 | P170: 0 | Q170: 0 | R170: 0.0012
E171: 2012-12-28 | F171: 2012-12-29 | G171: 1 | H171: 360 | I171: 0.002777777778 | J171: 0.0007 | K171: 0.0005 | L171: 0.0012 | M171: 3.333333333 | N171: 196.6666667 | O171: 0 | P171: 0 | Q171: 0 | R171: 0.0012
E172: 2012-12-29 | F172: 2012-12-30 | G172: 1 | H172: 360 | I172: 0.002777777778 | J172: 0.0007 | K172: 0.0005 | L172: 0.0012 | M172: 3.333333333 | N172: 200 | O172: 0 | P172: 0 | Q172: 0 | R172: 0.0012
E173: 2012-12-30 | F173: 2012-12-31 | G173: 1 | H173: 360 | I173: 0.002777777778 | J173: 0.0007 | K173: 0.0005 | L173: 0.0012 | M173: 3.333333333 | N173: 203.3333333 | O173: 0 | P173: 0 | Q173: 0 | R173: 0.0012
E174: 2012-12-31 | F174: 2013-01-01 | G174: 1 | H174: 360 | I174: 0.002777777778 | J174: 0.0007 | K174: 0.0005 | L174: 0.0012 | M174: 3.333333333 | N174: 206.6666667 | O174: 0 | P174: 0 | Q174: 0 | R174: 0.0012
E175: 2013-01-01 | F175: 2013-01-02 | G175: 1 | H175: 360 | I175: 0.002777777778 | J175: 0.0007 | K175: 0.0005 | L175: 0.0012 | M175: 3.333333333 | N175: 210 | O175: 0 | P175: 0 | Q175: 0 | R175: 0.0012
E176: 2013-01-02 | F176: 2013-01-03 | G176: 1 | H176: 360 | I176: 0.002777777778 | J176: 0.0007 | K176: 0.0005 | L176: 0.0012 | M176: 3.333333333 | N176: 213.3333333 | O176: 0 | P176: 0 | Q176: 0 | R176: 0.0012
E177: 2013-01-03 | F177: 2013-01-04 | G177: 1 | H177: 360 | I177: 0.002777777778 | J177: 0.0007 | K177: 0.0005 | L177: 0.0012 | M177: 3.333333333 | N177: 216.6666667 | O177: 0 | P177: 0 | Q177: 0 | R177: 0.0012
E178: 2013-01-04 | F178: 2013-01-05 | G178: 1 | H178: 360 | I178: 0.002777777778 | J178: 0.0007 | K178: 0.0005 | L178: 0.0012 | M178: 3.333333333 | N178: 220 | O178: 0 | P178: 0 | Q178: 0 | R178: 0.0012
E179: 2013-01-05 | F179: 2013-01-06 | G179: 1 | H179: 360 | I179: 0.002777777778 | J179: 0.0007 | K179: 0.0005 | L179: 0.0012 | M179: 3.333333333 | N179: 223.3333333 | O179: 0 | P179: 0 | Q179: 0 | R179: 0.0012
E180: 2013-01-06 | F180: 2013-01-07 | G180: 1 | H180: 360 | I180: 0.002777777778 | J180: 0.0007 | K180: 0.0005 | L180: 0.0012 | M180: 3.333333333 | N180: 226.6666667 | O180: 0 | P180: 0 | Q180: 0 | R180: 0.0012
E181: 2013-01-07 | F181: 2013-01-08 | G181: 1 | H181: 360 | I181: 0.002777777778 | J181: 0.0007 | K181: 0.0005 | L181: 0.0012 | M181: 3.333333333 | N181: 230 | O181: 0 | P181: 0 | Q181: 0 | R181: 0.0012
E182: 2013-01-08 | F182: 2013-01-09 | G182: 1 | H182: 360 | I182: 0.002777777778 | J182: 0.0007 | K182: 0.0005 | L182: 0.0012 | M182: 3.333333333 | N182: 233.3333333 | O182: 0 | P182: 0 | Q182: 0 | R182: 0.0012
E183: 2013-01-09 | F183: 2013-01-10 | G183: 1 | H183: 360 | I183: 0.002777777778 | J183: 0.0007 | K183: 0.0005 | L183: 0.0012 | M183: 3.333333333 | N183: 236.6666667 | O183: 0 | P183: 0 | Q183: 0 | R183: 0.0012
E184: 2013-01-10 | F184: 2013-01-11 | G184: 1 | H184: 360 | I184: 0.002777777778 | J184: 0.0007 | K184: 0.0005 | L184: 0.0012 | M184: 3.333333333 | N184: 240 | O184: 0 | P184: 0 | Q184: 0 | R184: 0.0012
E185: 2013-01-11 | F185: 2013-01-12 | G185: 1 | H185: 360 | I185: 0.002777777778 | J185: 0.0007 | K185: 0.0005 | L185: 0.0012 | M185: 3.333333333 | N185: 243.3333333 | O185: 0 | P185: 0 | Q185: 0 | R185: 0.0012
E186: 2013-01-12 | F186: 2013-01-13 | G186: 1 | H186: 360 | I186: 0.002777777778 | J186: 0.0007 | K186: 0.0005 | L186: 0.0012 | M186: 3.333333333 | N186: 246.6666667 | O186: 0 | P186: 0 | Q186: 0 | R186: 0.0012
E187: 2013-01-13 | F187: 2013-01-14 | G187: 1 | H187: 360 | I187: 0.002777777778 | J187: 0.0007 | K187: 0.0005 | L187: 0.0012 | M187: 3.333333333 | N187: 250 | O187: 0 | P187: 0 | Q187: 0 | R187: 0.0012
E188: 2013-01-14 | F188: 2013-01-15 | G188: 1 | H188: 360 | I188: 0.002777777778 | J188: 0.0007 | K188: 0.0005 | L188: 0.0012 | M188: 3.333333333 | N188: 253.3333333 | O188: 0 | P188: 0 | Q188: 0 | R188: 0.0012
E189: 2013-01-15 | F189: 2013-01-16 | G189: 1 | H189: 360 | I189: 0.002777777778 | J189: 0.0007 | K189: 0.0005 | L189: 0.0012 | M189: 3.333333333 | N189: 256.6666667 | O189: 0 | P189: 0 | Q189: 0 | R189: 0.0012
E190: 2013-01-16 | F190: 2013-01-17 | G190: 1 | H190: 360 | I190: 0.002777777778 | J190: 0.0007 | K190: 0.0005 | L190: 0.0012 | M190: 3.333333333 | N190: 260 | O190: 0 | P190: 0 | Q190: 0 | R190: 0.0012
E191: 2013-01-17 | F191: 2013-01-18 | G191: 1 | H191: 360 | I191: 0.002777777778 | J191: 0.0007 | K191: 0.0005 | L191: 0.0012 | M191: 3.333333333 | N191: 263.3333333 | O191: 0 | P191: 0 | Q191: 0 | R191: 0.0012
E192: 2013-01-18 | F192: 2013-01-19 | G192: 1 | H192: 360 | I192: 0.002777777778 | J192: 0.0007 | K192: 0.0005 | L192: 0.0012 | M192: 3.333333333 | N192: 266.6666667 | O192: 0 | P192: 0 | Q192: 0 | R192: =J192+$C$13 -> 0.0012
E193: 2013-01-19 | F193: 2013-01-20 | G193: 1 | H193: 360 | I193: 0.002777777778 | J193: =+J192 -> 0.0007 | K193: 0.0005 | L193: 0.0012 | M193: 3.333333333 | N193: 270 | O193: 0 | P193: 0 | Q193: 0 | R193: 0.0012
E194: 2013-01-20 | F194: 2013-01-21 | G194: 1 | H194: 360 | I194: 0.002777777778 | J194: 0.0007 | K194: 0.0005 | L194: 0.0012 | M194: 3.333333333 | N194: 273.3333333 | O194: 0 | P194: 0 | Q194: 0 | R194: 0.0012
E195: 2013-01-21 | F195: 2013-01-22 | G195: 1 | H195: 360 | I195: 0.002777777778 | J195: 0.0007 | K195: 0.0005 | L195: 0.0012 | M195: 3.333333333 | N195: 276.6666667 | O195: 0 | P195: 0 | Q195: 0 | R195: 0.0012
E196: 2013-01-22 | F196: 2013-01-23 | G196: 1 | H196: 360 | I196: 0.002777777778 | J196: 0.0007 | K196: 0.0005 | L196: 0.0012 | M196: 3.333333333 | N196: 280 | O196: 0 | P196: 0 | Q196: 0 | R196: 0.0012
E197: 2013-01-23 | F197: 2013-01-24 | G197: 1 | H197: 360 | I197: 0.002777777778 | J197: 0.0007 | K197: 0.0005 | L197: 0.0012 | M197: 3.333333333 | N197: 283.3333333 | O197: 0 | P197: 0 | Q197: 0 | R197: 0.0012
E198: 2013-01-24 | F198: 2013-01-25 | G198: 1 | H198: 360 | I198: 0.002777777778 | J198: 0.0007 | K198: 0.0005 | L198: 0.0012 | M198: 3.333333333 | N198: 286.6666667 | O198: 0 | P198: 0 | Q198: 0 | R198: 0.0012
E199: 2013-01-25 | F199: 2013-01-26 | G199: 1 | H199: 360 | I199: 0.002777777778 | J199: 0.0007 | K199: 0.0005 | L199: 0.0012 | M199: 3.333333333 | N199: 290 | O199: 0 | P199: 0 | Q199: 0 | R199: 0.0012
E200: 2013-01-26 | F200: 2013-01-27 | G200: 1 | H200: 360 | I200: 0.002777777778 | J200: 0.0007 | K200: 0.0005 | L200: 0.0012 | M200: 3.333333333 | N200: 293.3333333 | O200: 0 | P200: 0 | Q200: 0 | R200: 0.0012
E201: 2013-01-27 | F201: 2013-01-28 | G201: 1 | H201: 360 | I201: 0.002777777778 | J201: 0.0007 | K201: 0.0005 | L201: 0.0012 | M201: 3.333333333 | N201: 296.6666667 | O201: 0 | P201: 0 | Q201: 0 | R201: 0.0012
E202: 2013-01-28 | F202: 2013-01-29 | G202: 1 | H202: 360 | I202: 0.002777777778 | J202: 0.0007 | K202: 0.0005 | L202: 0.0012 | M202: 3.333333333 | N202: 300 | O202: 0 | P202: 0 | Q202: 0 | R202: 0.0012
E203: 2013-01-29 | F203: 2013-01-30 | G203: 1 | H203: 360 | I203: 0.002777777778 | J203: 0.0007 | K203: 0.0005 | L203: 0.0012 | M203: 3.333333333 | N203: 303.3333333 | O203: 0 | P203: 0 | Q203: 0 | R203: 0.0012
E204: 2013-01-30 | F204: 2013-01-31 | G204: 1 | H204: 360 | I204: 0.002777777778 | J204: 0.0007 | K204: 0.0005 | L204: 0.0012 | M204: 3.333333333 | N204: 306.6666667 | O204: =SUM(M113:M204) -> 306.6666667 | P204: 0 | Q204: 306.6666667 | R204: 0.0012 | S204: =S112/(1+AVERAGE(R113:R204)*SUM(I113:I204)) -> 0.9995301708 | T204: =+S204*Q204 -> 306.5225857
E205: 2013-01-31 | F205: 2013-02-01 | G205: 1 | H205: 360 | I205: 0.002777777778 | J205: 0.0007 | K205: 0.0005 | L205: 0.0012 | M205: 3.333333333 | N205: 3.333333333 | O205: 0 | P205: 0 | Q205: 0 | R205: 0.0012
... 545 more rows

Sheet Auction at Min Spread ex
B3: Auction Date | C3: 2012-07-31
B4: Settle Date | C4: 2012-07-31 | H4: Principal | I4: =+I6-I5 -> 1002027.547 | K4: NOTES:
H5: Accrued Interest | I5: =0 -> 0 | K5: This example takes place at auction.
B6: Interest Accrual/Last Cpn | C6: 2012-07-31 | E6: Coupon Pmts | H6: Total Money | I6: =+V18 -> 1002027.547 | K6: Assume you only have information as of the auction date of 7/31/2012.
B7: Next Coupon | C7: 2012-10-31 | E7: =+C7 -> 2012-10-31 | K7: Rounding conventions have not yet been addressed.
B8: Maturity | C8: 2014-07-31 | E8: =+EOMONTH(E7,3) -> 2013-01-31 | H8: Clean Price | I8: =100*I4/C10 -> 100.2027547 | K8: You may change Face Amount (cell C10), Spread (cell C11) and Discount Margin (cell C13) and the speadsheet will still calculate accurately.
E9: 2013-04-30
B10: Face Amount | C10: 1000000 | E10: 2013-07-31
B11: Minimum Spread | C11: 0 | E11: 2013-10-31
E12: 2014-01-31
B13: Auction Clearing Spread | C13: -0.001 | E13: 2014-04-30
E14: 2014-07-31
B15: Discount Margin | C15: -0.001
P18: TOTALS | Q18: =SUM(Q21:Q1152) -> 2230.377781 | R18: =SUM(R21:R1152) -> 1000000 | S18: =SUM(S21:S1152) -> 1002230.378 | V18: =SUM(V21:V1152) -> 1002027.547
A19: 13-Week Bill Information
A20: Auction Date | B20: Issue Date | C20: Maturity Dt | D20: Auction High Rate | E20: Auction Clearing Price | G20: Accrual Start | H20: Accrual End | I20: # of Days | J20: Denominator | K20: Time | L20: Index Rate | M20: Spread | N20: Interest Rate | O20: Daily Interest | P20: Accrued Interest(no present value applied) | Q20: Coupon Payment | R20: Principal Payment | S20: Total Cash Flow | T20: Discount Rate (Index Rate + Discount Margin) | U20: Discount Factor | V20: Present Value of Total Cash Flow
A21: 2012-07-23 | B21: =IF(G21="","",G21-IF(WEEKDAY(G21)<5,WEEKDAY(G21)+2,WEEKDAY(G21)-5)) -> 2012-07-26 | C21: =+B21+13*7 -> 2012-10-25 | D21: 0.00095 | E21: 99.975986 | G21: 2012-07-31 | H21: =+G21+1 -> 2012-08-01 | I21: =+H21-G21 -> 1 | J21: 360 | K21: =I21/J21 -> 0.002777777778 | L21: =360/(C21-B21)*((100/E21)-1) -> 0.0009502325845 | M21: =+$C$11 -> 0 | N21: =MAX(0,M21+L21) -> 0.0009502325845 | O21: =N21*$C$10*K21 -> 2.639534957 | P21: =+O21 -> 2.639534957 | Q21: 0 | R21: 0 | S21: =+R21+Q21 -> 0 | T21: =L21+$C$15 -> -4.976741554e-05
A22: 2012-07-23 | B22: 2012-07-26 | C22: =+B22+13*7 -> 2012-10-25 | D22: 0.00095 | E22: 99.975986 | G22: =+H21 -> 2012-08-01 | H22: =+G22+1 -> 2012-08-02 | I22: =+H22-G22 -> 1 | J22: 360 | K22: =I22/J22 -> 0.002777777778 | L22: =360/(C22-B22)*((100/E22)-1) -> 0.0009502325845 | M22: 0 | N22: =MAX(0,M22+L22) -> 0.0009502325845 | O22: 2.639534957 | P22: =+P21+O22-Q21 -> 5.279069914 | Q22: 0 | R22: 0 | S22: =+R22+Q22 -> 0 | T22: =L22+$C$15 -> -4.976741554e-05
A23: =+B23-3 -> 2012-07-30 | B23: 2012-08-02 | C23: 2012-11-01 | D23: 0.0011 | E23: 99.972194 | G23: =+H22 -> 2012-08-02 | H23: 2012-08-03 | I23: 1 | J23: 360 | K23: 0.002777777778 | L23: 0.001100323538 | M23: 0 | N23: 0.001100323538 | O23: 3.056454273 | P23: =+P22+O23-Q22 -> 8.335524187 | Q23: 0 | R23: 0 | S23: 0 | T23: 0.0001003235384
A24: =+B24-3 -> 2012-07-30 | B24: 2012-08-02 | C24: 2012-11-01 | D24: 0.0011 | E24: 99.972194 | G24: 2012-08-03 | H24: 2012-08-04 | I24: 1 | J24: 360 | K24: 0.002777777778 | L24: 0.001100323538 | M24: 0 | N24: 0.001100323538 | O24: 3.056454273 | P24: 11.39197846 | Q24: 0 | R24: 0 | S24: 0 | T24: 0.0001003235384
A25: 2012-07-30 | B25: 2012-08-02 | C25: 2012-11-01 | D25: 0.0011 | E25: 99.972194 | G25: 2012-08-04 | H25: 2012-08-05 | I25: 1 | J25: 360 | K25: 0.002777777778 | L25: 0.001100323538 | M25: 0 | N25: 0.001100323538 | O25: 3.056454273 | P25: 14.44843273 | Q25: 0 | R25: 0 | S25: 0 | T25: 0.0001003235384
A26: 2012-07-30 | B26: 2012-08-02 | C26: 2012-11-01 | D26: 0.0011 | E26: 99.972194 | G26: 2012-08-05 | H26: 2012-08-06 | I26: 1 | J26: 360 | K26: 0.002777777778 | L26: 0.001100323538 | M26: 0 | N26: 0.001100323538 | O26: 3.056454273 | P26: 17.50488701 | Q26: 0 | R26: 0 | S26: 0 | T26: 0.0001003235384
A27: 2012-07-30 | B27: 2012-08-02 | C27: 2012-11-01 | D27: 0.0011 | E27: 99.972194 | G27: 2012-08-06 | H27: 2012-08-07 | I27: 1 | J27: 360 | K27: 0.002777777778 | L27: 0.001100323538 | M27: 0 | N27: 0.001100323538 | O27: 3.056454273 | P27: 20.56134128 | Q27: 0 | R27: 0 | S27: 0 | T27: 0.0001003235384
A28: 2012-07-30 | B28: 2012-08-02 | C28: =+B28+13*7 -> 2012-11-01 | D28: 0.0011 | E28: 99.972194 | G28: 2012-08-07 | H28: 2012-08-08 | I28: 1 | J28: 360 | K28: 0.002777777778 | L28: 0.001100323538 | M28: 0 | N28: 0.001100323538 | O28: 3.056454273 | P28: 23.61779555 | Q28: 0 | R28: 0 | S28: 0 | T28: 0.0001003235384
A29: 2012-07-30 | B29: 2012-08-02 | C29: 2012-11-01 | D29: 0.0011 | E29: 99.972194 | G29: 2012-08-08 | H29: 2012-08-09 | I29: 1 | J29: 360 | K29: 0.002777777778 | L29: 0.001100323538 | M29: 0 | N29: 0.001100323538 | O29: 3.056454273 | P29: 26.67424983 | Q29: 0 | R29: 0 | S29: 0 | T29: 0.0001003235384
G30: 2012-08-09 | H30: 2012-08-10 | I30: 1 | J30: 360 | K30: 0.002777777778 | L30: =+L29 -> 0.001100323538 | M30: 0 | N30: 0.001100323538 | O30: 3.056454273 | P30: 29.7307041 | Q30: 0 | R30: 0 | S30: 0 | T30: 0.0001003235384
G31: 2012-08-10 | H31: 2012-08-11 | I31: 1 | J31: 360 | K31: 0.002777777778 | L31: =+L30 -> 0.001100323538 | M31: 0 | N31: 0.001100323538 | O31: 3.056454273 | P31: 32.78715837 | Q31: 0 | R31: 0 | S31: 0 | T31: 0.0001003235384
G32: 2012-08-11 | H32: 2012-08-12 | I32: 1 | J32: 360 | K32: 0.002777777778 | L32: 0.001100323538 | M32: 0 | N32: 0.001100323538 | O32: 3.056454273 | P32: 35.84361265 | Q32: 0 | R32: 0 | S32: 0 | T32: 0.0001003235384
G33: 2012-08-12 | H33: 2012-08-13 | I33: 1 | J33: 360 | K33: 0.002777777778 | L33: 0.001100323538 | M33: 0 | N33: 0.001100323538 | O33: 3.056454273 | P33: 38.90006692 | Q33: 0 | R33: 0 | S33: 0 | T33: 0.0001003235384
G34: 2012-08-13 | H34: 2012-08-14 | I34: 1 | J34: 360 | K34: 0.002777777778 | L34: 0.001100323538 | M34: 0 | N34: 0.001100323538 | O34: 3.056454273 | P34: 41.95652119 | Q34: 0 | R34: 0 | S34: 0 | T34: 0.0001003235384
G35: 2012-08-14 | H35: 2012-08-15 | I35: 1 | J35: 360 | K35: 0.002777777778 | L35: 0.001100323538 | M35: 0 | N35: 0.001100323538 | O35: 3.056454273 | P35: 45.01297547 | Q35: 0 | R35: 0 | S35: 0 | T35: 0.0001003235384
G36: 2012-08-15 | H36: 2012-08-16 | I36: 1 | J36: 360 | K36: 0.002777777778 | L36: 0.001100323538 | M36: 0 | N36: 0.001100323538 | O36: 3.056454273 | P36: 48.06942974 | Q36: 0 | R36: 0 | S36: 0 | T36: 0.0001003235384
G37: 2012-08-16 | H37: 2012-08-17 | I37: 1 | J37: 360 | K37: 0.002777777778 | L37: 0.001100323538 | M37: 0 | N37: 0.001100323538 | O37: 3.056454273 | P37: 51.12588401 | Q37: 0 | R37: 0 | S37: 0 | T37: 0.0001003235384
G38: 2012-08-17 | H38: 2012-08-18 | I38: 1 | J38: 360 | K38: 0.002777777778 | L38: 0.001100323538 | M38: 0 | N38: 0.001100323538 | O38: 3.056454273 | P38: 54.18233829 | Q38: 0 | R38: 0 | S38: 0 | T38: 0.0001003235384
G39: 2012-08-18 | H39: 2012-08-19 | I39: 1 | J39: 360 | K39: 0.002777777778 | L39: 0.001100323538 | M39: 0 | N39: 0.001100323538 | O39: 3.056454273 | P39: 57.23879256 | Q39: 0 | R39: 0 | S39: 0 | T39: 0.0001003235384
G40: 2012-08-19 | H40: 2012-08-20 | I40: 1 | J40: 360 | K40: 0.002777777778 | L40: 0.001100323538 | M40: 0 | N40: 0.001100323538 | O40: 3.056454273 | P40: 60.29524683 | Q40: 0 | R40: 0 | S40: 0 | T40: 0.0001003235384
G41: 2012-08-20 | H41: 2012-08-21 | I41: 1 | J41: 360 | K41: 0.002777777778 | L41: 0.001100323538 | M41: 0 | N41: 0.001100323538 | O41: 3.056454273 | P41: 63.35170111 | Q41: 0 | R41: 0 | S41: 0 | T41: 0.0001003235384
G42: 2012-08-21 | H42: 2012-08-22 | I42: 1 | J42: 360 | K42: 0.002777777778 | L42: 0.001100323538 | M42: 0 | N42: 0.001100323538 | O42: 3.056454273 | P42: 66.40815538 | Q42: 0 | R42: 0 | S42: 0 | T42: 0.0001003235384
G43: 2012-08-22 | H43: 2012-08-23 | I43: 1 | J43: 360 | K43: 0.002777777778 | L43: 0.001100323538 | M43: 0 | N43: 0.001100323538 | O43: 3.056454273 | P43: 69.46460965 | Q43: 0 | R43: 0 | S43: 0 | T43: 0.0001003235384
G44: 2012-08-23 | H44: 2012-08-24 | I44: 1 | J44: 360 | K44: 0.002777777778 | L44: 0.001100323538 | M44: 0 | N44: 0.001100323538 | O44: 3.056454273 | P44: 72.52106393 | Q44: 0 | R44: 0 | S44: 0 | T44: 0.0001003235384
G45: 2012-08-24 | H45: 2012-08-25 | I45: 1 | J45: 360 | K45: 0.002777777778 | L45: 0.001100323538 | M45: 0 | N45: 0.001100323538 | O45: 3.056454273 | P45: 75.5775182 | Q45: 0 | R45: 0 | S45: 0 | T45: 0.0001003235384
G46: 2012-08-25 | H46: 2012-08-26 | I46: 1 | J46: 360 | K46: 0.002777777778 | L46: 0.001100323538 | M46: 0 | N46: 0.001100323538 | O46: 3.056454273 | P46: 78.63397247 | Q46: 0 | R46: 0 | S46: 0 | T46: 0.0001003235384
G47: 2012-08-26 | H47: 2012-08-27 | I47: 1 | J47: 360 | K47: 0.002777777778 | L47: 0.001100323538 | M47: 0 | N47: 0.001100323538 | O47: 3.056454273 | P47: 81.69042675 | Q47: 0 | R47: 0 | S47: 0 | T47: 0.0001003235384
G48: 2012-08-27 | H48: 2012-08-28 | I48: 1 | J48: 360 | K48: 0.002777777778 | L48: 0.001100323538 | M48: 0 | N48: 0.001100323538 | O48: 3.056454273 | P48: 84.74688102 | Q48: 0 | R48: 0 | S48: 0 | T48: 0.0001003235384
G49: 2012-08-28 | H49: 2012-08-29 | I49: 1 | J49: 360 | K49: 0.002777777778 | L49: 0.001100323538 | M49: 0 | N49: 0.001100323538 | O49: 3.056454273 | P49: 87.80333529 | Q49: 0 | R49: 0 | S49: 0 | T49: 0.0001003235384
G50: 2012-08-29 | H50: 2012-08-30 | I50: 1 | J50: 360 | K50: 0.002777777778 | L50: 0.001100323538 | M50: 0 | N50: 0.001100323538 | O50: 3.056454273 | P50: 90.85978957 | Q50: 0 | R50: 0 | S50: 0 | T50: 0.0001003235384
G51: 2012-08-30 | H51: 2012-08-31 | I51: 1 | J51: 360 | K51: 0.002777777778 | L51: 0.001100323538 | M51: 0 | N51: 0.001100323538 | O51: 3.056454273 | P51: 93.91624384 | Q51: 0 | R51: 0 | S51: 0 | T51: 0.0001003235384
G52: 2012-08-31 | H52: 2012-09-01 | I52: 1 | J52: 360 | K52: 0.002777777778 | L52: 0.001100323538 | M52: 0 | N52: 0.001100323538 | O52: 3.056454273 | P52: 96.97269811 | Q52: 0 | R52: 0 | S52: 0 | T52: 0.0001003235384
G53: 2012-09-01 | H53: 2012-09-02 | I53: 1 | J53: 360 | K53: 0.002777777778 | L53: 0.001100323538 | M53: 0 | N53: 0.001100323538 | O53: 3.056454273 | P53: 100.0291524 | Q53: 0 | R53: 0 | S53: 0 | T53: 0.0001003235384
G54: 2012-09-02 | H54: 2012-09-03 | I54: 1 | J54: 360 | K54: 0.002777777778 | L54: 0.001100323538 | M54: 0 | N54: 0.001100323538 | O54: 3.056454273 | P54: 103.0856067 | Q54: 0 | R54: 0 | S54: 0 | T54: 0.0001003235384
G55: 2012-09-03 | H55: 2012-09-04 | I55: 1 | J55: 360 | K55: 0.002777777778 | L55: 0.001100323538 | M55: 0 | N55: 0.001100323538 | O55: 3.056454273 | P55: 106.1420609 | Q55: 0 | R55: 0 | S55: 0 | T55: 0.0001003235384
G56: 2012-09-04 | H56: 2012-09-05 | I56: 1 | J56: 360 | K56: 0.002777777778 | L56: 0.001100323538 | M56: 0 | N56: 0.001100323538 | O56: 3.056454273 | P56: 109.1985152 | Q56: 0 | R56: 0 | S56: 0 | T56: 0.0001003235384
G57: 2012-09-05 | H57: 2012-09-06 | I57: 1 | J57: 360 | K57: 0.002777777778 | L57: 0.001100323538 | M57: 0 | N57: 0.001100323538 | O57: 3.056454273 | P57: 112.2549695 | Q57: 0 | R57: 0 | S57: 0 | T57: 0.0001003235384
G58: 2012-09-06 | H58: 2012-09-07 | I58: 1 | J58: 360 | K58: 0.002777777778 | L58: 0.001100323538 | M58: 0 | N58: 0.001100323538 | O58: 3.056454273 | P58: 115.3114238 | Q58: 0 | R58: 0 | S58: 0 | T58: 0.0001003235384
G59: 2012-09-07 | H59: 2012-09-08 | I59: 1 | J59: 360 | K59: 0.002777777778 | L59: 0.001100323538 | M59: 0 | N59: 0.001100323538 | O59: 3.056454273 | P59: 118.367878 | Q59: 0 | R59: 0 | S59: 0 | T59: 0.0001003235384
G60: 2012-09-08 | H60: 2012-09-09 | I60: 1 | J60: 360 | K60: 0.002777777778 | L60: 0.001100323538 | M60: 0 | N60: 0.001100323538 | O60: 3.056454273 | P60: 121.4243323 | Q60: 0 | R60: 0 | S60: 0 | T60: 0.0001003235384
G61: 2012-09-09 | H61: 2012-09-10 | I61: 1 | J61: 360 | K61: 0.002777777778 | L61: 0.001100323538 | M61: 0 | N61: 0.001100323538 | O61: 3.056454273 | P61: 124.4807866 | Q61: 0 | R61: 0 | S61: 0 | T61: 0.0001003235384
G62: 2012-09-10 | H62: 2012-09-11 | I62: 1 | J62: 360 | K62: 0.002777777778 | L62: 0.001100323538 | M62: 0 | N62: 0.001100323538 | O62: 3.056454273 | P62: 127.5372408 | Q62: 0 | R62: 0 | S62: 0 | T62: 0.0001003235384
G63: 2012-09-11 | H63: 2012-09-12 | I63: 1 | J63: 360 | K63: 0.002777777778 | L63: 0.001100323538 | M63: 0 | N63: 0.001100323538 | O63: 3.056454273 | P63: 130.5936951 | Q63: 0 | R63: 0 | S63: 0 | T63: 0.0001003235384
G64: 2012-09-12 | H64: 2012-09-13 | I64: 1 | J64: 360 | K64: 0.002777777778 | L64: 0.001100323538 | M64: 0 | N64: 0.001100323538 | O64: 3.056454273 | P64: 133.6501494 | Q64: 0 | R64: 0 | S64: 0 | T64: =L64+$C$15 -> 0.0001003235384
G65: 2012-09-13 | H65: 2012-09-14 | I65: 1 | J65: 360 | K65: 0.002777777778 | L65: 0.001100323538 | M65: 0 | N65: 0.001100323538 | O65: 3.056454273 | P65: 136.7066037 | Q65: 0 | R65: 0 | S65: 0 | T65: 0.0001003235384
G66: 2012-09-14 | H66: 2012-09-15 | I66: 1 | J66: 360 | K66: 0.002777777778 | L66: 0.001100323538 | M66: 0 | N66: 0.001100323538 | O66: 3.056454273 | P66: 139.7630579 | Q66: 0 | R66: 0 | S66: 0 | T66: 0.0001003235384
G67: 2012-09-15 | H67: 2012-09-16 | I67: 1 | J67: 360 | K67: 0.002777777778 | L67: 0.001100323538 | M67: 0 | N67: 0.001100323538 | O67: 3.056454273 | P67: 142.8195122 | Q67: 0 | R67: 0 | S67: 0 | T67: 0.0001003235384
G68: 2012-09-16 | H68: 2012-09-17 | I68: 1 | J68: 360 | K68: 0.002777777778 | L68: 0.001100323538 | M68: 0 | N68: 0.001100323538 | O68: 3.056454273 | P68: 145.8759665 | Q68: 0 | R68: 0 | S68: 0 | T68: 0.0001003235384
G69: 2012-09-17 | H69: 2012-09-18 | I69: 1 | J69: 360 | K69: 0.002777777778 | L69: 0.001100323538 | M69: 0 | N69: 0.001100323538 | O69: 3.056454273 | P69: 148.9324208 | Q69: 0 | R69: 0 | S69: 0 | T69: 0.0001003235384
G70: 2012-09-18 | H70: 2012-09-19 | I70: 1 | J70: 360 | K70: 0.002777777778 | L70: 0.001100323538 | M70: 0 | N70: 0.001100323538 | O70: 3.056454273 | P70: 151.988875 | Q70: 0 | R70: 0 | S70: 0 | T70: 0.0001003235384
G71: 2012-09-19 | H71: 2012-09-20 | I71: 1 | J71: 360 | K71: 0.002777777778 | L71: 0.001100323538 | M71: 0 | N71: 0.001100323538 | O71: 3.056454273 | P71: 155.0453293 | Q71: 0 | R71: 0 | S71: 0 | T71: 0.0001003235384
G72: 2012-09-20 | H72: 2012-09-21 | I72: 1 | J72: 360 | K72: 0.002777777778 | L72: 0.001100323538 | M72: 0 | N72: 0.001100323538 | O72: 3.056454273 | P72: 158.1017836 | Q72: 0 | R72: 0 | S72: 0 | T72: 0.0001003235384
G73: 2012-09-21 | H73: 2012-09-22 | I73: 1 | J73: 360 | K73: 0.002777777778 | L73: 0.001100323538 | M73: 0 | N73: 0.001100323538 | O73: 3.056454273 | P73: 161.1582379 | Q73: 0 | R73: 0 | S73: 0 | T73: 0.0001003235384
G74: 2012-09-22 | H74: 2012-09-23 | I74: 1 | J74: 360 | K74: 0.002777777778 | L74: 0.001100323538 | M74: 0 | N74: 0.001100323538 | O74: 3.056454273 | P74: 164.2146921 | Q74: 0 | R74: 0 | S74: 0 | T74: 0.0001003235384
G75: 2012-09-23 | H75: 2012-09-24 | I75: 1 | J75: 360 | K75: 0.002777777778 | L75: 0.001100323538 | M75: 0 | N75: 0.001100323538 | O75: 3.056454273 | P75: 167.2711464 | Q75: 0 | R75: 0 | S75: 0 | T75: 0.0001003235384
G76: 2012-09-24 | H76: 2012-09-25 | I76: 1 | J76: 360 | K76: 0.002777777778 | L76: 0.001100323538 | M76: 0 | N76: 0.001100323538 | O76: 3.056454273 | P76: 170.3276007 | Q76: 0 | R76: 0 | S76: 0 | T76: 0.0001003235384
G77: 2012-09-25 | H77: 2012-09-26 | I77: 1 | J77: 360 | K77: 0.002777777778 | L77: 0.001100323538 | M77: 0 | N77: 0.001100323538 | O77: 3.056454273 | P77: 173.3840549 | Q77: 0 | R77: 0 | S77: 0 | T77: 0.0001003235384
G78: 2012-09-26 | H78: 2012-09-27 | I78: 1 | J78: 360 | K78: 0.002777777778 | L78: 0.001100323538 | M78: 0 | N78: 0.001100323538 | O78: 3.056454273 | P78: 176.4405092 | Q78: 0 | R78: 0 | S78: 0 | T78: 0.0001003235384
G79: 2012-09-27 | H79: 2012-09-28 | I79: 1 | J79: 360 | K79: 0.002777777778 | L79: 0.001100323538 | M79: 0 | N79: 0.001100323538 | O79: 3.056454273 | P79: 179.4969635 | Q79: 0 | R79: 0 | S79: 0 | T79: 0.0001003235384
G80: 2012-09-28 | H80: 2012-09-29 | I80: 1 | J80: 360 | K80: 0.002777777778 | L80: 0.001100323538 | M80: 0 | N80: 0.001100323538 | O80: 3.056454273 | P80: 182.5534178 | Q80: 0 | R80: 0 | S80: 0 | T80: 0.0001003235384
G81: 2012-09-29 | H81: 2012-09-30 | I81: 1 | J81: 360 | K81: 0.002777777778 | L81: 0.001100323538 | M81: 0 | N81: 0.001100323538 | O81: 3.056454273 | P81: 185.609872 | Q81: 0 | R81: 0 | S81: 0 | T81: 0.0001003235384
G82: 2012-09-30 | H82: 2012-10-01 | I82: 1 | J82: 360 | K82: 0.002777777778 | L82: 0.001100323538 | M82: 0 | N82: 0.001100323538 | O82: 3.056454273 | P82: 188.6663263 | Q82: 0 | R82: 0 | S82: 0 | T82: 0.0001003235384
G83: 2012-10-01 | H83: 2012-10-02 | I83: 1 | J83: 360 | K83: 0.002777777778 | L83: 0.001100323538 | M83: 0 | N83: 0.001100323538 | O83: 3.056454273 | P83: 191.7227806 | Q83: 0 | R83: 0 | S83: 0 | T83: 0.0001003235384
G84: 2012-10-02 | H84: 2012-10-03 | I84: 1 | J84: 360 | K84: 0.002777777778 | L84: 0.001100323538 | M84: 0 | N84: 0.001100323538 | O84: 3.056454273 | P84: 194.7792349 | Q84: 0 | R84: 0 | S84: 0 | T84: 0.0001003235384
G85: 2012-10-03 | H85: 2012-10-04 | I85: 1 | J85: 360 | K85: 0.002777777778 | L85: 0.001100323538 | M85: =+$C$11 -> 0 | N85: 0.001100323538 | O85: =N85*$C$10*K85 -> 3.056454273 | P85: 197.8356891 | Q85: 0 | R85: 0 | S85: 0 | T85: 0.0001003235384
G86: 2012-10-04 | H86: =+G86+1 -> 2012-10-05 | I86: =+H86-G86 -> 1 | J86: 360 | K86: =I86/J86 -> 0.002777777778 | L86: 0.001100323538 | M86: 0 | N86: =MAX(0,M86+L86) -> 0.001100323538 | O86: 3.056454273 | P86: 200.8921434 | Q86: 0 | R86: 0 | S86: =+R86+Q86 -> 0 | T86: 0.0001003235384
G87: =+H86 -> 2012-10-05 | H87: 2012-10-06 | I87: 1 | J87: 360 | K87: 0.002777777778 | L87: 0.001100323538 | M87: 0 | N87: 0.001100323538 | O87: 3.056454273 | P87: =+P86+O87-Q86 -> 203.9485977 | Q87: 0 | R87: 0 | S87: 0 | T87: 0.0001003235384
G88: 2012-10-06 | H88: 2012-10-07 | I88: 1 | J88: 360 | K88: 0.002777777778 | L88: 0.001100323538 | M88: 0 | N88: 0.001100323538 | O88: 3.056454273 | P88: 207.005052 | Q88: 0 | R88: 0 | S88: 0 | T88: 0.0001003235384
G89: 2012-10-07 | H89: 2012-10-08 | I89: 1 | J89: 360 | K89: 0.002777777778 | L89: 0.001100323538 | M89: 0 | N89: 0.001100323538 | O89: 3.056454273 | P89: 210.0615062 | Q89: 0 | R89: 0 | S89: 0 | T89: 0.0001003235384
G90: 2012-10-08 | H90: 2012-10-09 | I90: 1 | J90: 360 | K90: 0.002777777778 | L90: 0.001100323538 | M90: 0 | N90: 0.001100323538 | O90: 3.056454273 | P90: 213.1179605 | Q90: 0 | R90: 0 | S90: 0 | T90: 0.0001003235384
G91: 2012-10-09 | H91: 2012-10-10 | I91: 1 | J91: 360 | K91: 0.002777777778 | L91: 0.001100323538 | M91: 0 | N91: 0.001100323538 | O91: 3.056454273 | P91: 216.1744148 | Q91: 0 | R91: 0 | S91: 0 | T91: 0.0001003235384
G92: 2012-10-10 | H92: 2012-10-11 | I92: 1 | J92: 360 | K92: 0.002777777778 | L92: 0.001100323538 | M92: 0 | N92: 0.001100323538 | O92: 3.056454273 | P92: 219.230869 | Q92: 0 | R92: 0 | S92: 0 | T92: 0.0001003235384
G93: 2012-10-11 | H93: 2012-10-12 | I93: 1 | J93: 360 | K93: 0.002777777778 | L93: 0.001100323538 | M93: 0 | N93: 0.001100323538 | O93: 3.056454273 | P93: 222.2873233 | Q93: 0 | R93: 0 | S93: 0 | T93: 0.0001003235384
G94: 2012-10-12 | H94: 2012-10-13 | I94: 1 | J94: 360 | K94: 0.002777777778 | L94: 0.001100323538 | M94: 0 | N94: 0.001100323538 | O94: 3.056454273 | P94: 225.3437776 | Q94: 0 | R94: 0 | S94: 0 | T94: 0.0001003235384
G95: 2012-10-13 | H95: 2012-10-14 | I95: 1 | J95: 360 | K95: 0.002777777778 | L95: =+L94 -> 0.001100323538 | M95: 0 | N95: 0.001100323538 | O95: 3.056454273 | P95: 228.4002319 | Q95: 0 | R95: 0 | S95: 0 | T95: 0.0001003235384
G96: 2012-10-14 | H96: 2012-10-15 | I96: 1 | J96: 360 | K96: 0.002777777778 | L96: 0.001100323538 | M96: 0 | N96: 0.001100323538 | O96: 3.056454273 | P96: 231.4566861 | Q96: 0 | R96: 0 | S96: 0 | T96: 0.0001003235384
G97: 2012-10-15 | H97: 2012-10-16 | I97: 1 | J97: 360 | K97: 0.002777777778 | L97: 0.001100323538 | M97: 0 | N97: 0.001100323538 | O97: 3.056454273 | P97: 234.5131404 | Q97: 0 | R97: 0 | S97: 0 | T97: 0.0001003235384
G98: 2012-10-16 | H98: 2012-10-17 | I98: 1 | J98: 360 | K98: 0.002777777778 | L98: 0.001100323538 | M98: 0 | N98: 0.001100323538 | O98: 3.056454273 | P98: 237.5695947 | Q98: 0 | R98: 0 | S98: 0 | T98: 0.0001003235384
G99: 2012-10-17 | H99: 2012-10-18 | I99: 1 | J99: 360 | K99: 0.002777777778 | L99: 0.001100323538 | M99: 0 | N99: 0.001100323538 | O99: 3.056454273 | P99: 240.626049 | Q99: 0 | R99: 0 | S99: 0 | T99: 0.0001003235384
G100: 2012-10-18 | H100: 2012-10-19 | I100: 1 | J100: 360 | K100: 0.002777777778 | L100: 0.001100323538 | M100: 0 | N100: 0.001100323538 | O100: 3.056454273 | P100: 243.6825032 | Q100: 0 | R100: 0 | S100: 0 | T100: 0.0001003235384
G101: 2012-10-19 | H101: 2012-10-20 | I101: 1 | J101: 360 | K101: 0.002777777778 | L101: 0.001100323538 | M101: 0 | N101: 0.001100323538 | O101: 3.056454273 | P101: 246.7389575 | Q101: 0 | R101: 0 | S101: 0 | T101: 0.0001003235384
G102: 2012-10-20 | H102: 2012-10-21 | I102: 1 | J102: 360 | K102: 0.002777777778 | L102: 0.001100323538 | M102: 0 | N102: 0.001100323538 | O102: 3.056454273 | P102: 249.7954118 | Q102: 0 | R102: 0 | S102: 0 | T102: 0.0001003235384
G103: 2012-10-21 | H103: 2012-10-22 | I103: 1 | J103: 360 | K103: 0.002777777778 | L103: 0.001100323538 | M103: 0 | N103: 0.001100323538 | O103: 3.056454273 | P103: 252.851866 | Q103: 0 | R103: 0 | S103: 0 | T103: 0.0001003235384
G104: 2012-10-22 | H104: 2012-10-23 | I104: 1 | J104: 360 | K104: 0.002777777778 | L104: 0.001100323538 | M104: 0 | N104: 0.001100323538 | O104: 3.056454273 | P104: 255.9083203 | Q104: 0 | R104: 0 | S104: 0 | T104: 0.0001003235384
G105: 2012-10-23 | H105: 2012-10-24 | I105: 1 | J105: 360 | K105: 0.002777777778 | L105: 0.001100323538 | M105: 0 | N105: 0.001100323538 | O105: 3.056454273 | P105: 258.9647746 | Q105: 0 | R105: 0 | S105: 0 | T105: 0.0001003235384
G106: 2012-10-24 | H106: 2012-10-25 | I106: 1 | J106: 360 | K106: 0.002777777778 | L106: 0.001100323538 | M106: 0 | N106: 0.001100323538 | O106: 3.056454273 | P106: 262.0212289 | Q106: 0 | R106: 0 | S106: 0 | T106: 0.0001003235384
G107: 2012-10-25 | H107: 2012-10-26 | I107: 1 | J107: 360 | K107: 0.002777777778 | L107: 0.001100323538 | M107: 0 | N107: 0.001100323538 | O107: 3.056454273 | P107: 265.0776831 | Q107: 0 | R107: 0 | S107: 0 | T107: 0.0001003235384
G108: 2012-10-26 | H108: 2012-10-27 | I108: 1 | J108: 360 | K108: 0.002777777778 | L108: 0.001100323538 | M108: 0 | N108: 0.001100323538 | O108: 3.056454273 | P108: 268.1341374 | Q108: 0 | R108: 0 | S108: 0 | T108: 0.0001003235384
G109: 2012-10-27 | H109: 2012-10-28 | I109: 1 | J109: 360 | K109: 0.002777777778 | L109: 0.001100323538 | M109: 0 | N109: 0.001100323538 | O109: 3.056454273 | P109: 271.1905917 | Q109: 0 | R109: 0 | S109: 0 | T109: 0.0001003235384
G110: 2012-10-28 | H110: 2012-10-29 | I110: 1 | J110: 360 | K110: 0.002777777778 | L110: 0.001100323538 | M110: 0 | N110: 0.001100323538 | O110: 3.056454273 | P110: 274.247046 | Q110: 0 | R110: 0 | S110: 0 | T110: 0.0001003235384
G111: 2012-10-29 | H111: 2012-10-30 | I111: 1 | J111: 360 | K111: 0.002777777778 | L111: 0.001100323538 | M111: 0 | N111: 0.001100323538 | O111: 3.056454273 | P111: 277.3035002 | Q111: 0 | R111: 0 | S111: 0 | T111: 0.0001003235384
G112: 2012-10-30 | H112: 2012-10-31 | I112: 1 | J112: 360 | K112: 0.002777777778 | L112: 0.001100323538 | M112: 0 | N112: 0.001100323538 | O112: 3.056454273 | P112: 280.3599545 | Q112: =SUM(O21:O112) -> 280.3599545 | R112: 0 | S112: 280.3599545 | T112: 0.0001003235384 | U112: =1/(1+AVERAGE(T21:T112)*SUM(K21:K112)) -> 0.9999751962 | V112: =+U112*S112 -> 280.3530005
G113: 2012-10-31 | H113: 2012-11-01 | I113: 1 | J113: 360 | K113: 0.002777777778 | L113: 0.001100323538 | M113: 0 | N113: 0.001100323538 | O113: 3.056454273 | P113: 3.056454273 | Q113: 0 | R113: 0 | S113: 0 | T113: 0.0001003235384
G114: 2012-11-01 | H114: 2012-11-02 | I114: 1 | J114: 360 | K114: 0.002777777778 | L114: 0.001100323538 | M114: 0 | N114: 0.001100323538 | O114: 3.056454273 | P114: 6.112908547 | Q114: 0 | R114: 0 | S114: 0 | T114: 0.0001003235384
G115: 2012-11-02 | H115: 2012-11-03 | I115: 1 | J115: 360 | K115: 0.002777777778 | L115: 0.001100323538 | M115: 0 | N115: 0.001100323538 | O115: 3.056454273 | P115: 9.16936282 | Q115: 0 | R115: 0 | S115: 0 | T115: 0.0001003235384
G116: 2012-11-03 | H116: 2012-11-04 | I116: 1 | J116: 360 | K116: 0.002777777778 | L116: 0.001100323538 | M116: 0 | N116: 0.001100323538 | O116: 3.056454273 | P116: 12.22581709 | Q116: 0 | R116: 0 | S116: 0 | T116: 0.0001003235384
G117: 2012-11-04 | H117: 2012-11-05 | I117: 1 | J117: 360 | K117: 0.002777777778 | L117: 0.001100323538 | M117: 0 | N117: 0.001100323538 | O117: 3.056454273 | P117: 15.28227137 | Q117: 0 | R117: 0 | S117: 0 | T117: 0.0001003235384
G118: 2012-11-05 | H118: 2012-11-06 | I118: 1 | J118: 360 | K118: 0.002777777778 | L118: 0.001100323538 | M118: 0 | N118: 0.001100323538 | O118: 3.056454273 | P118: 18.33872564 | Q118: 0 | R118: 0 | S118: 0 | T118: 0.0001003235384
G119: 2012-11-06 | H119: 2012-11-07 | I119: 1 | J119: 360 | K119: 0.002777777778 | L119: 0.001100323538 | M119: 0 | N119: 0.001100323538 | O119: 3.056454273 | P119: 21.39517991 | Q119: 0 | R119: 0 | S119: 0 | T119: 0.0001003235384
G120: 2012-11-07 | H120: 2012-11-08 | I120: 1 | J120: 360 | K120: 0.002777777778 | L120: 0.001100323538 | M120: 0 | N120: 0.001100323538 | O120: 3.056454273 | P120: 24.45163419 | Q120: 0 | R120: 0 | S120: 0 | T120: 0.0001003235384
G121: 2012-11-08 | H121: 2012-11-09 | I121: 1 | J121: 360 | K121: 0.002777777778 | L121: 0.001100323538 | M121: 0 | N121: 0.001100323538 | O121: 3.056454273 | P121: 27.50808846 | Q121: 0 | R121: 0 | S121: 0 | T121: 0.0001003235384
G122: 2012-11-09 | H122: 2012-11-10 | I122: 1 | J122: 360 | K122: 0.002777777778 | L122: 0.001100323538 | M122: 0 | N122: 0.001100323538 | O122: 3.056454273 | P122: 30.56454273 | Q122: 0 | R122: 0 | S122: 0 | T122: 0.0001003235384
G123: 2012-11-10 | H123: 2012-11-11 | I123: 1 | J123: 360 | K123: 0.002777777778 | L123: 0.001100323538 | M123: 0 | N123: 0.001100323538 | O123: 3.056454273 | P123: 33.62099701 | Q123: 0 | R123: 0 | S123: 0 | T123: 0.0001003235384
G124: 2012-11-11 | H124: 2012-11-12 | I124: 1 | J124: 360 | K124: 0.002777777778 | L124: 0.001100323538 | M124: 0 | N124: 0.001100323538 | O124: 3.056454273 | P124: 36.67745128 | Q124: 0 | R124: 0 | S124: 0 | T124: 0.0001003235384
G125: 2012-11-12 | H125: 2012-11-13 | I125: 1 | J125: 360 | K125: 0.002777777778 | L125: 0.001100323538 | M125: 0 | N125: 0.001100323538 | O125: 3.056454273 | P125: 39.73390555 | Q125: 0 | R125: 0 | S125: 0 | T125: 0.0001003235384
G126: 2012-11-13 | H126: 2012-11-14 | I126: 1 | J126: 360 | K126: 0.002777777778 | L126: 0.001100323538 | M126: 0 | N126: 0.001100323538 | O126: 3.056454273 | P126: 42.79035983 | Q126: 0 | R126: 0 | S126: 0 | T126: 0.0001003235384
G127: 2012-11-14 | H127: 2012-11-15 | I127: 1 | J127: 360 | K127: 0.002777777778 | L127: 0.001100323538 | M127: 0 | N127: 0.001100323538 | O127: 3.056454273 | P127: 45.8468141 | Q127: 0 | R127: 0 | S127: 0 | T127: 0.0001003235384
G128: 2012-11-15 | H128: 2012-11-16 | I128: 1 | J128: 360 | K128: 0.002777777778 | L128: 0.001100323538 | M128: 0 | N128: 0.001100323538 | O128: 3.056454273 | P128: 48.90326837 | Q128: 0 | R128: 0 | S128: 0 | T128: =L128+$C$15 -> 0.0001003235384
G129: 2012-11-16 | H129: 2012-11-17 | I129: 1 | J129: 360 | K129: 0.002777777778 | L129: 0.001100323538 | M129: 0 | N129: 0.001100323538 | O129: 3.056454273 | P129: 51.95972265 | Q129: 0 | R129: 0 | S129: 0 | T129: 0.0001003235384
G130: 2012-11-17 | H130: 2012-11-18 | I130: 1 | J130: 360 | K130: 0.002777777778 | L130: 0.001100323538 | M130: 0 | N130: 0.001100323538 | O130: 3.056454273 | P130: 55.01617692 | Q130: 0 | R130: 0 | S130: 0 | T130: 0.0001003235384
G131: 2012-11-18 | H131: 2012-11-19 | I131: 1 | J131: 360 | K131: 0.002777777778 | L131: 0.001100323538 | M131: 0 | N131: 0.001100323538 | O131: 3.056454273 | P131: 58.07263119 | Q131: 0 | R131: 0 | S131: 0 | T131: 0.0001003235384
G132: 2012-11-19 | H132: 2012-11-20 | I132: 1 | J132: 360 | K132: 0.002777777778 | L132: 0.001100323538 | M132: 0 | N132: 0.001100323538 | O132: 3.056454273 | P132: 61.12908547 | Q132: 0 | R132: 0 | S132: 0 | T132: 0.0001003235384
G133: 2012-11-20 | H133: 2012-11-21 | I133: 1 | J133: 360 | K133: 0.002777777778 | L133: 0.001100323538 | M133: 0 | N133: 0.001100323538 | O133: 3.056454273 | P133: 64.18553974 | Q133: 0 | R133: 0 | S133: 0 | T133: 0.0001003235384
G134: 2012-11-21 | H134: 2012-11-22 | I134: 1 | J134: 360 | K134: 0.002777777778 | L134: 0.001100323538 | M134: 0 | N134: 0.001100323538 | O134: 3.056454273 | P134: 67.24199401 | Q134: 0 | R134: 0 | S134: 0 | T134: 0.0001003235384
G135: 2012-11-22 | H135: 2012-11-23 | I135: 1 | J135: 360 | K135: 0.002777777778 | L135: 0.001100323538 | M135: 0 | N135: 0.001100323538 | O135: 3.056454273 | P135: 70.29844829 | Q135: 0 | R135: 0 | S135: 0 | T135: 0.0001003235384
G136: 2012-11-23 | H136: 2012-11-24 | I136: 1 | J136: 360 | K136: 0.002777777778 | L136: 0.001100323538 | M136: 0 | N136: 0.001100323538 | O136: 3.056454273 | P136: 73.35490256 | Q136: 0 | R136: 0 | S136: 0 | T136: 0.0001003235384
G137: 2012-11-24 | H137: 2012-11-25 | I137: 1 | J137: 360 | K137: 0.002777777778 | L137: 0.001100323538 | M137: 0 | N137: 0.001100323538 | O137: 3.056454273 | P137: 76.41135683 | Q137: 0 | R137: 0 | S137: 0 | T137: 0.0001003235384
G138: 2012-11-25 | H138: 2012-11-26 | I138: 1 | J138: 360 | K138: 0.002777777778 | L138: 0.001100323538 | M138: 0 | N138: 0.001100323538 | O138: 3.056454273 | P138: 79.46781111 | Q138: 0 | R138: 0 | S138: 0 | T138: 0.0001003235384
G139: 2012-11-26 | H139: 2012-11-27 | I139: 1 | J139: 360 | K139: 0.002777777778 | L139: 0.001100323538 | M139: 0 | N139: 0.001100323538 | O139: 3.056454273 | P139: 82.52426538 | Q139: 0 | R139: 0 | S139: 0 | T139: 0.0001003235384
G140: 2012-11-27 | H140: 2012-11-28 | I140: 1 | J140: 360 | K140: 0.002777777778 | L140: 0.001100323538 | M140: 0 | N140: 0.001100323538 | O140: 3.056454273 | P140: 85.58071965 | Q140: 0 | R140: 0 | S140: 0 | T140: 0.0001003235384
G141: 2012-11-28 | H141: 2012-11-29 | I141: 1 | J141: 360 | K141: 0.002777777778 | L141: 0.001100323538 | M141: 0 | N141: 0.001100323538 | O141: 3.056454273 | P141: 88.63717393 | Q141: 0 | R141: 0 | S141: 0 | T141: 0.0001003235384
G142: 2012-11-29 | H142: 2012-11-30 | I142: 1 | J142: 360 | K142: 0.002777777778 | L142: 0.001100323538 | M142: 0 | N142: 0.001100323538 | O142: 3.056454273 | P142: 91.6936282 | Q142: 0 | R142: 0 | S142: 0 | T142: 0.0001003235384
G143: 2012-11-30 | H143: 2012-12-01 | I143: 1 | J143: 360 | K143: 0.002777777778 | L143: 0.001100323538 | M143: 0 | N143: 0.001100323538 | O143: 3.056454273 | P143: 94.75008247 | Q143: 0 | R143: 0 | S143: 0 | T143: 0.0001003235384
G144: 2012-12-01 | H144: 2012-12-02 | I144: 1 | J144: 360 | K144: 0.002777777778 | L144: 0.001100323538 | M144: 0 | N144: 0.001100323538 | O144: 3.056454273 | P144: 97.80653674 | Q144: 0 | R144: 0 | S144: 0 | T144: 0.0001003235384
G145: 2012-12-02 | H145: 2012-12-03 | I145: 1 | J145: 360 | K145: 0.002777777778 | L145: 0.001100323538 | M145: 0 | N145: 0.001100323538 | O145: 3.056454273 | P145: 100.862991 | Q145: 0 | R145: 0 | S145: 0 | T145: 0.0001003235384
G146: 2012-12-03 | H146: 2012-12-04 | I146: 1 | J146: 360 | K146: 0.002777777778 | L146: 0.001100323538 | M146: 0 | N146: 0.001100323538 | O146: 3.056454273 | P146: 103.9194453 | Q146: 0 | R146: 0 | S146: 0 | T146: 0.0001003235384
G147: 2012-12-04 | H147: 2012-12-05 | I147: 1 | J147: 360 | K147: 0.002777777778 | L147: 0.001100323538 | M147: 0 | N147: 0.001100323538 | O147: 3.056454273 | P147: 106.9758996 | Q147: 0 | R147: 0 | S147: 0 | T147: 0.0001003235384
G148: 2012-12-05 | H148: 2012-12-06 | I148: 1 | J148: 360 | K148: 0.002777777778 | L148: 0.001100323538 | M148: 0 | N148: 0.001100323538 | O148: 3.056454273 | P148: 110.0323538 | Q148: 0 | R148: 0 | S148: 0 | T148: 0.0001003235384
G149: 2012-12-06 | H149: 2012-12-07 | I149: 1 | J149: 360 | K149: 0.002777777778 | L149: 0.001100323538 | M149: =+$C$11 -> 0 | N149: 0.001100323538 | O149: =N149*$C$10*K149 -> 3.056454273 | P149: 113.0888081 | Q149: 0 | R149: 0 | S149: 0 | T149: 0.0001003235384
G150: 2012-12-07 | H150: =+G150+1 -> 2012-12-08 | I150: =+H150-G150 -> 1 | J150: 360 | K150: =I150/J150 -> 0.002777777778 | L150: 0.001100323538 | M150: 0 | N150: =MAX(0,M150+L150) -> 0.001100323538 | O150: 3.056454273 | P150: 116.1452624 | Q150: 0 | R150: 0 | S150: =+R150+Q150 -> 0 | T150: 0.0001003235384
G151: =+H150 -> 2012-12-08 | H151: 2012-12-09 | I151: 1 | J151: 360 | K151: 0.002777777778 | L151: 0.001100323538 | M151: 0 | N151: 0.001100323538 | O151: 3.056454273 | P151: =+P150+O151-Q150 -> 119.2017167 | Q151: 0 | R151: 0 | S151: 0 | T151: 0.0001003235384
G152: 2012-12-09 | H152: 2012-12-10 | I152: 1 | J152: 360 | K152: 0.002777777778 | L152: 0.001100323538 | M152: 0 | N152: 0.001100323538 | O152: 3.056454273 | P152: 122.2581709 | Q152: 0 | R152: 0 | S152: 0 | T152: 0.0001003235384
G153: 2012-12-10 | H153: 2012-12-11 | I153: 1 | J153: 360 | K153: 0.002777777778 | L153: 0.001100323538 | M153: 0 | N153: 0.001100323538 | O153: 3.056454273 | P153: 125.3146252 | Q153: 0 | R153: 0 | S153: 0 | T153: 0.0001003235384
G154: 2012-12-11 | H154: 2012-12-12 | I154: 1 | J154: 360 | K154: 0.002777777778 | L154: 0.001100323538 | M154: 0 | N154: 0.001100323538 | O154: 3.056454273 | P154: 128.3710795 | Q154: 0 | R154: 0 | S154: 0 | T154: 0.0001003235384
G155: 2012-12-12 | H155: 2012-12-13 | I155: 1 | J155: 360 | K155: 0.002777777778 | L155: 0.001100323538 | M155: 0 | N155: 0.001100323538 | O155: 3.056454273 | P155: 131.4275338 | Q155: 0 | R155: 0 | S155: 0 | T155: 0.0001003235384
G156: 2012-12-13 | H156: 2012-12-14 | I156: 1 | J156: 360 | K156: 0.002777777778 | L156: 0.001100323538 | M156: 0 | N156: 0.001100323538 | O156: 3.056454273 | P156: 134.483988 | Q156: 0 | R156: 0 | S156: 0 | T156: 0.0001003235384
G157: 2012-12-14 | H157: 2012-12-15 | I157: 1 | J157: 360 | K157: 0.002777777778 | L157: 0.001100323538 | M157: 0 | N157: 0.001100323538 | O157: 3.056454273 | P157: 137.5404423 | Q157: 0 | R157: 0 | S157: 0 | T157: 0.0001003235384
G158: 2012-12-15 | H158: 2012-12-16 | I158: 1 | J158: 360 | K158: 0.002777777778 | L158: 0.001100323538 | M158: 0 | N158: 0.001100323538 | O158: 3.056454273 | P158: 140.5968966 | Q158: 0 | R158: 0 | S158: 0 | T158: 0.0001003235384
G159: 2012-12-16 | H159: 2012-12-17 | I159: 1 | J159: 360 | K159: 0.002777777778 | L159: =+L158 -> 0.001100323538 | M159: 0 | N159: 0.001100323538 | O159: 3.056454273 | P159: 143.6533508 | Q159: 0 | R159: 0 | S159: 0 | T159: 0.0001003235384
G160: 2012-12-17 | H160: 2012-12-18 | I160: 1 | J160: 360 | K160: 0.002777777778 | L160: 0.001100323538 | M160: 0 | N160: 0.001100323538 | O160: 3.056454273 | P160: 146.7098051 | Q160: 0 | R160: 0 | S160: 0 | T160: 0.0001003235384
G161: 2012-12-18 | H161: 2012-12-19 | I161: 1 | J161: 360 | K161: 0.002777777778 | L161: 0.001100323538 | M161: 0 | N161: 0.001100323538 | O161: 3.056454273 | P161: 149.7662594 | Q161: 0 | R161: 0 | S161: 0 | T161: 0.0001003235384
G162: 2012-12-19 | H162: 2012-12-20 | I162: 1 | J162: 360 | K162: 0.002777777778 | L162: 0.001100323538 | M162: 0 | N162: 0.001100323538 | O162: 3.056454273 | P162: 152.8227137 | Q162: 0 | R162: 0 | S162: 0 | T162: 0.0001003235384
G163: 2012-12-20 | H163: 2012-12-21 | I163: 1 | J163: 360 | K163: 0.002777777778 | L163: 0.001100323538 | M163: 0 | N163: 0.001100323538 | O163: 3.056454273 | P163: 155.8791679 | Q163: 0 | R163: 0 | S163: 0 | T163: 0.0001003235384
G164: 2012-12-21 | H164: 2012-12-22 | I164: 1 | J164: 360 | K164: 0.002777777778 | L164: 0.001100323538 | M164: 0 | N164: 0.001100323538 | O164: 3.056454273 | P164: 158.9356222 | Q164: 0 | R164: 0 | S164: 0 | T164: 0.0001003235384
G165: 2012-12-22 | H165: 2012-12-23 | I165: 1 | J165: 360 | K165: 0.002777777778 | L165: 0.001100323538 | M165: 0 | N165: 0.001100323538 | O165: 3.056454273 | P165: 161.9920765 | Q165: 0 | R165: 0 | S165: 0 | T165: 0.0001003235384
G166: 2012-12-23 | H166: 2012-12-24 | I166: 1 | J166: 360 | K166: 0.002777777778 | L166: 0.001100323538 | M166: 0 | N166: 0.001100323538 | O166: 3.056454273 | P166: 165.0485308 | Q166: 0 | R166: 0 | S166: 0 | T166: 0.0001003235384
G167: 2012-12-24 | H167: 2012-12-25 | I167: 1 | J167: 360 | K167: 0.002777777778 | L167: 0.001100323538 | M167: 0 | N167: 0.001100323538 | O167: 3.056454273 | P167: 168.104985 | Q167: 0 | R167: 0 | S167: 0 | T167: 0.0001003235384
G168: 2012-12-25 | H168: 2012-12-26 | I168: 1 | J168: 360 | K168: 0.002777777778 | L168: 0.001100323538 | M168: 0 | N168: 0.001100323538 | O168: 3.056454273 | P168: 171.1614393 | Q168: 0 | R168: 0 | S168: 0 | T168: 0.0001003235384
G169: 2012-12-26 | H169: 2012-12-27 | I169: 1 | J169: 360 | K169: 0.002777777778 | L169: 0.001100323538 | M169: 0 | N169: 0.001100323538 | O169: 3.056454273 | P169: 174.2178936 | Q169: 0 | R169: 0 | S169: 0 | T169: 0.0001003235384
G170: 2012-12-27 | H170: 2012-12-28 | I170: 1 | J170: 360 | K170: 0.002777777778 | L170: 0.001100323538 | M170: 0 | N170: 0.001100323538 | O170: 3.056454273 | P170: 177.2743479 | Q170: 0 | R170: 0 | S170: 0 | T170: 0.0001003235384
G171: 2012-12-28 | H171: 2012-12-29 | I171: 1 | J171: 360 | K171: 0.002777777778 | L171: 0.001100323538 | M171: 0 | N171: 0.001100323538 | O171: 3.056454273 | P171: 180.3308021 | Q171: 0 | R171: 0 | S171: 0 | T171: 0.0001003235384
G172: 2012-12-29 | H172: 2012-12-30 | I172: 1 | J172: 360 | K172: 0.002777777778 | L172: 0.001100323538 | M172: 0 | N172: 0.001100323538 | O172: 3.056454273 | P172: 183.3872564 | Q172: 0 | R172: 0 | S172: 0 | T172: 0.0001003235384
G173: 2012-12-30 | H173: 2012-12-31 | I173: 1 | J173: 360 | K173: 0.002777777778 | L173: 0.001100323538 | M173: 0 | N173: 0.001100323538 | O173: 3.056454273 | P173: 186.4437107 | Q173: 0 | R173: 0 | S173: 0 | T173: 0.0001003235384
G174: 2012-12-31 | H174: 2013-01-01 | I174: 1 | J174: 360 | K174: 0.002777777778 | L174: 0.001100323538 | M174: 0 | N174: 0.001100323538 | O174: 3.056454273 | P174: 189.5001649 | Q174: 0 | R174: 0 | S174: 0 | T174: 0.0001003235384
G175: 2013-01-01 | H175: 2013-01-02 | I175: 1 | J175: 360 | K175: 0.002777777778 | L175: 0.001100323538 | M175: 0 | N175: 0.001100323538 | O175: 3.056454273 | P175: 192.5566192 | Q175: 0 | R175: 0 | S175: 0 | T175: 0.0001003235384
G176: 2013-01-02 | H176: 2013-01-03 | I176: 1 | J176: 360 | K176: 0.002777777778 | L176: 0.001100323538 | M176: 0 | N176: 0.001100323538 | O176: 3.056454273 | P176: 195.6130735 | Q176: 0 | R176: 0 | S176: 0 | T176: 0.0001003235384
G177: 2013-01-03 | H177: 2013-01-04 | I177: 1 | J177: 360 | K177: 0.002777777778 | L177: 0.001100323538 | M177: 0 | N177: 0.001100323538 | O177: 3.056454273 | P177: 198.6695278 | Q177: 0 | R177: 0 | S177: 0 | T177: 0.0001003235384
G178: 2013-01-04 | H178: 2013-01-05 | I178: 1 | J178: 360 | K178: 0.002777777778 | L178: 0.001100323538 | M178: 0 | N178: 0.001100323538 | O178: 3.056454273 | P178: 201.725982 | Q178: 0 | R178: 0 | S178: 0 | T178: 0.0001003235384
G179: 2013-01-05 | H179: 2013-01-06 | I179: 1 | J179: 360 | K179: 0.002777777778 | L179: 0.001100323538 | M179: 0 | N179: 0.001100323538 | O179: 3.056454273 | P179: 204.7824363 | Q179: 0 | R179: 0 | S179: 0 | T179: 0.0001003235384
G180: 2013-01-06 | H180: 2013-01-07 | I180: 1 | J180: 360 | K180: 0.002777777778 | L180: 0.001100323538 | M180: 0 | N180: 0.001100323538 | O180: 3.056454273 | P180: 207.8388906 | Q180: 0 | R180: 0 | S180: 0 | T180: 0.0001003235384
G181: 2013-01-07 | H181: 2013-01-08 | I181: 1 | J181: 360 | K181: 0.002777777778 | L181: 0.001100323538 | M181: 0 | N181: 0.001100323538 | O181: 3.056454273 | P181: 210.8953449 | Q181: 0 | R181: 0 | S181: 0 | T181: 0.0001003235384
G182: 2013-01-08 | H182: 2013-01-09 | I182: 1 | J182: 360 | K182: 0.002777777778 | L182: 0.001100323538 | M182: 0 | N182: 0.001100323538 | O182: 3.056454273 | P182: 213.9517991 | Q182: 0 | R182: 0 | S182: 0 | T182: 0.0001003235384
G183: 2013-01-09 | H183: 2013-01-10 | I183: 1 | J183: 360 | K183: 0.002777777778 | L183: 0.001100323538 | M183: 0 | N183: 0.001100323538 | O183: 3.056454273 | P183: 217.0082534 | Q183: 0 | R183: 0 | S183: 0 | T183: 0.0001003235384
G184: 2013-01-10 | H184: 2013-01-11 | I184: 1 | J184: 360 | K184: 0.002777777778 | L184: 0.001100323538 | M184: 0 | N184: 0.001100323538 | O184: 3.056454273 | P184: 220.0647077 | Q184: 0 | R184: 0 | S184: 0 | T184: 0.0001003235384
G185: 2013-01-11 | H185: 2013-01-12 | I185: 1 | J185: 360 | K185: 0.002777777778 | L185: 0.001100323538 | M185: 0 | N185: 0.001100323538 | O185: 3.056454273 | P185: 223.1211619 | Q185: 0 | R185: 0 | S185: 0 | T185: 0.0001003235384
G186: 2013-01-12 | H186: 2013-01-13 | I186: 1 | J186: 360 | K186: 0.002777777778 | L186: 0.001100323538 | M186: 0 | N186: 0.001100323538 | O186: 3.056454273 | P186: 226.1776162 | Q186: 0 | R186: 0 | S186: 0 | T186: 0.0001003235384
G187: 2013-01-13 | H187: 2013-01-14 | I187: 1 | J187: 360 | K187: 0.002777777778 | L187: 0.001100323538 | M187: 0 | N187: 0.001100323538 | O187: 3.056454273 | P187: 229.2340705 | Q187: 0 | R187: 0 | S187: 0 | T187: 0.0001003235384
G188: 2013-01-14 | H188: 2013-01-15 | I188: 1 | J188: 360 | K188: 0.002777777778 | L188: 0.001100323538 | M188: 0 | N188: 0.001100323538 | O188: 3.056454273 | P188: 232.2905248 | Q188: 0 | R188: 0 | S188: 0 | T188: 0.0001003235384
G189: 2013-01-15 | H189: 2013-01-16 | I189: 1 | J189: 360 | K189: 0.002777777778 | L189: 0.001100323538 | M189: 0 | N189: 0.001100323538 | O189: 3.056454273 | P189: 235.346979 | Q189: 0 | R189: 0 | S189: 0 | T189: 0.0001003235384
G190: 2013-01-16 | H190: 2013-01-17 | I190: 1 | J190: 360 | K190: 0.002777777778 | L190: 0.001100323538 | M190: 0 | N190: 0.001100323538 | O190: 3.056454273 | P190: 238.4034333 | Q190: 0 | R190: 0 | S190: 0 | T190: 0.0001003235384
G191: 2013-01-17 | H191: 2013-01-18 | I191: 1 | J191: 360 | K191: 0.002777777778 | L191: 0.001100323538 | M191: 0 | N191: 0.001100323538 | O191: 3.056454273 | P191: 241.4598876 | Q191: 0 | R191: 0 | S191: 0 | T191: 0.0001003235384
G192: 2013-01-18 | H192: 2013-01-19 | I192: 1 | J192: 360 | K192: 0.002777777778 | L192: 0.001100323538 | M192: 0 | N192: 0.001100323538 | O192: 3.056454273 | P192: 244.5163419 | Q192: 0 | R192: 0 | S192: 0 | T192: =L192+$C$15 -> 0.0001003235384
G193: 2013-01-19 | H193: 2013-01-20 | I193: 1 | J193: 360 | K193: 0.002777777778 | L193: 0.001100323538 | M193: 0 | N193: 0.001100323538 | O193: 3.056454273 | P193: 247.5727961 | Q193: 0 | R193: 0 | S193: 0 | T193: 0.0001003235384
G194: 2013-01-20 | H194: 2013-01-21 | I194: 1 | J194: 360 | K194: 0.002777777778 | L194: 0.001100323538 | M194: 0 | N194: 0.001100323538 | O194: 3.056454273 | P194: 250.6292504 | Q194: 0 | R194: 0 | S194: 0 | T194: 0.0001003235384
G195: 2013-01-21 | H195: 2013-01-22 | I195: 1 | J195: 360 | K195: 0.002777777778 | L195: 0.001100323538 | M195: 0 | N195: 0.001100323538 | O195: 3.056454273 | P195: 253.6857047 | Q195: 0 | R195: 0 | S195: 0 | T195: 0.0001003235384
G196: 2013-01-22 | H196: 2013-01-23 | I196: 1 | J196: 360 | K196: 0.002777777778 | L196: 0.001100323538 | M196: 0 | N196: 0.001100323538 | O196: 3.056454273 | P196: 256.742159 | Q196: 0 | R196: 0 | S196: 0 | T196: 0.0001003235384
G197: 2013-01-23 | H197: 2013-01-24 | I197: 1 | J197: 360 | K197: 0.002777777778 | L197: 0.001100323538 | M197: 0 | N197: 0.001100323538 | O197: 3.056454273 | P197: 259.7986132 | Q197: 0 | R197: 0 | S197: 0 | T197: 0.0001003235384
G198: 2013-01-24 | H198: 2013-01-25 | I198: 1 | J198: 360 | K198: 0.002777777778 | L198: 0.001100323538 | M198: 0 | N198: 0.001100323538 | O198: 3.056454273 | P198: 262.8550675 | Q198: 0 | R198: 0 | S198: 0 | T198: 0.0001003235384
G199: 2013-01-25 | H199: 2013-01-26 | I199: 1 | J199: 360 | K199: 0.002777777778 | L199: 0.001100323538 | M199: 0 | N199: 0.001100323538 | O199: 3.056454273 | P199: 265.9115218 | Q199: 0 | R199: 0 | S199: 0 | T199: 0.0001003235384
G200: 2013-01-26 | H200: 2013-01-27 | I200: 1 | J200: 360 | K200: 0.002777777778 | L200: 0.001100323538 | M200: 0 | N200: 0.001100323538 | O200: 3.056454273 | P200: 268.967976 | Q200: 0 | R200: 0 | S200: 0 | T200: 0.0001003235384
G201: 2013-01-27 | H201: 2013-01-28 | I201: 1 | J201: 360 | K201: 0.002777777778 | L201: 0.001100323538 | M201: 0 | N201: 0.001100323538 | O201: 3.056454273 | P201: 272.0244303 | Q201: 0 | R201: 0 | S201: 0 | T201: 0.0001003235384
G202: 2013-01-28 | H202: 2013-01-29 | I202: 1 | J202: 360 | K202: 0.002777777778 | L202: 0.001100323538 | M202: 0 | N202: 0.001100323538 | O202: 3.056454273 | P202: 275.0808846 | Q202: 0 | R202: 0 | S202: 0 | T202: 0.0001003235384
G203: 2013-01-29 | H203: 2013-01-30 | I203: 1 | J203: 360 | K203: 0.002777777778 | L203: 0.001100323538 | M203: 0 | N203: 0.001100323538 | O203: 3.056454273 | P203: 278.1373389 | Q203: 0 | R203: 0 | S203: 0 | T203: 0.0001003235384
G204: 2013-01-30 | H204: 2013-01-31 | I204: 1 | J204: 360 | K204: 0.002777777778 | L204: 0.001100323538 | M204: 0 | N204: 0.001100323538 | O204: 3.056454273 | P204: 281.1937931 | Q204: =SUM(O113:O204) -> 281.1937931 | R204: 0 | S204: 281.1937931 | T204: 0.0001003235384 | U204: =U112/(1+AVERAGE(T113:T204)*SUM(K113:K204)) -> 0.9999495593 | V204: =+U204*S204 -> 281.1796095
... 546 more rows

Sheet Min Int Rate ex
B3: Trade Date | C3: 2012-09-11 | H3: Principal | I3: =+I5-I4 -> 1000381.752 | K3: NOTES:
B4: Settle Date | C4: 2012-09-12 | H4: Accrued Interest | I4: =N63 -> 118.0555556 | K4: This trade is a secondary market transaction.
H5: Total Money | I5: =+T18 -> 1000499.808 | K5: Assume you only have information as of the trade date of 9/11/2012.
B6: Interest Accrual/Last Cpn | C6: 2012-07-31 | F6: Coupon Pmts | K6: Rounding conventions have not yet been addressed.
B7: Next Coupon | C7: 2012-10-31 | F7: =+C7 -> 2012-10-31 | H7: Clean Price | I7: =100*I3/C10 -> 100.0381752 | K7: You may change Face Amount (cell C10), Spread (cell C11) and Discount Margin (cell C13) and the speadsheet will still calculate accurately.
B8: Maturity | C8: 2014-07-31 | F8: =+EOMONTH(F7,3) -> 2013-01-31 | K8: The GC rates shown are ficticious.
F9: 2013-04-30
B10: Face Amount | C10: 1000000 | F10: 2013-07-31
B11: Spread | C11: 0.0005 | F11: 2013-10-31
F12: 2014-01-31
B13: Discount Margin | C13: 0.0005 | F13: 2014-04-30
F14: 2014-07-31
N18: TOTALS | O18: =SUM(O21:O1152) -> 118.0555556 | P18: =SUM(P21:P1152) -> 1000000 | Q18: =SUM(Q21:Q1152) -> 1000118.056 | T18: =SUM(T21:T1152) -> 1000499.808
A19: GC Information
A20: Determination Date | B20: Reset Date | C20: Overnight Tsy GC Rate | E20: Accrual Start | F20: Accrual End | G20: # of Days | H20: Denominator | I20: Time | J20: Index Rate | K20: Spread | L20: Interest Rate | M20: Daily Interest | N20: Accrued Interest(no present value applied) | O20: Coupon Payment | P20: Principal Payment | Q20: Total Cash Flow | R20: Discount Rate (Index Rate + Discount Margin) | S20: Discount Factor | T20: Present Value of Total Cash Flow
A21: =IF(WEEKDAY(E21)=7,WORKDAY(E21,-2),IF(WEEKDAY(E21)=1,WORKDAY(E21,-2),WORKDAY(E21,-1))) -> 2012-07-30 | B21: =+E21 -> 2012-07-31 | C21: 0 | E21: 2012-07-31 | F21: =+E21+1 -> 2012-08-01 | G21: =+F21-E21 -> 1 | H21: 360 | I21: =G21/H21 -> 0.002777777778 | J21: =C21 -> 0 | K21: =+$C$11 -> 0.0005 | L21: =MAX(0,K21+J21) -> 0.0005 | M21: =L21*$C$10*I21 -> 1.388888889 | N21: =+M21 -> 1.388888889 | O21: 0 | P21: 0 | Q21: =+P21+O21 -> 0
A22: =IF(WEEKDAY(E22)=7,WORKDAY(E22,-2),IF(WEEKDAY(E22)=1,WORKDAY(E22,-2),WORKDAY(E22,-1))) -> 2012-07-31 | B22: =+B21+1 -> 2012-08-01 | C22: 0 | E22: =+F21 -> 2012-08-01 | F22: =+E22+1 -> 2012-08-02 | G22: =+F22-E22 -> 1 | H22: 360 | I22: =G22/H22 -> 0.002777777778 | J22: =C22 -> 0 | K22: 0.0005 | L22: =MAX(0,K22+J22) -> 0.0005 | M22: 1.388888889 | N22: =+N21+M22-O21 -> 2.777777778 | O22: 0 | P22: 0 | Q22: =+P22+O22 -> 0
A23: 2012-08-01 | B23: =+B22+1 -> 2012-08-02 | C23: 0.0005 | E23: =+F22 -> 2012-08-02 | F23: 2012-08-03 | G23: 1 | H23: 360 | I23: 0.002777777778 | J23: 0.0005 | K23: 0.0005 | L23: 0.001 | M23: 2.777777778 | N23: =+N22+M23-O22 -> 5.555555556 | O23: 0 | P23: 0 | Q23: 0
A24: 2012-08-02 | B24: 2012-08-03 | C24: 0 | E24: 2012-08-03 | F24: 2012-08-04 | G24: 1 | H24: 360 | I24: 0.002777777778 | J24: 0 | K24: 0.0005 | L24: 0.0005 | M24: 1.388888889 | N24: 6.944444444 | O24: 0 | P24: 0 | Q24: 0
A25: 2012-08-02 | B25: 2012-08-04 | C25: 0 | E25: 2012-08-04 | F25: 2012-08-05 | G25: 1 | H25: 360 | I25: 0.002777777778 | J25: 0 | K25: 0.0005 | L25: 0.0005 | M25: 1.388888889 | N25: 8.333333333 | O25: 0 | P25: 0 | Q25: 0
A26: 2012-08-02 | B26: 2012-08-05 | C26: 0 | E26: 2012-08-05 | F26: 2012-08-06 | G26: 1 | H26: 360 | I26: 0.002777777778 | J26: 0 | K26: 0.0005 | L26: 0.0005 | M26: 1.388888889 | N26: 9.722222222 | O26: 0 | P26: 0 | Q26: 0
A27: 2012-08-03 | B27: 2012-08-06 | C27: -0.0005 | E27: 2012-08-06 | F27: 2012-08-07 | G27: 1 | H27: 360 | I27: 0.002777777778 | J27: -0.0005 | K27: 0.0005 | L27: 0 | M27: 0 | N27: 9.722222222 | O27: 0 | P27: 0 | Q27: 0
A28: 2012-08-06 | B28: 2012-08-07 | C28: -0.001 | E28: 2012-08-07 | F28: 2012-08-08 | G28: 1 | H28: 360 | I28: 0.002777777778 | J28: -0.001 | K28: 0.0005 | L28: 0 | M28: 0 | N28: 9.722222222 | O28: 0 | P28: 0 | Q28: 0
A29: 2012-08-07 | B29: 2012-08-08 | C29: -0.002 | E29: 2012-08-08 | F29: 2012-08-09 | G29: 1 | H29: 360 | I29: 0.002777777778 | J29: -0.002 | K29: 0.0005 | L29: 0 | M29: 0 | N29: 9.722222222 | O29: 0 | P29: 0 | Q29: 0
A30: 2012-08-08 | B30: 2012-08-09 | C30: -0.0022 | E30: 2012-08-09 | F30: 2012-08-10 | G30: 1 | H30: 360 | I30: 0.002777777778 | J30: -0.0022 | K30: 0.0005 | L30: 0 | M30: 0 | N30: 9.722222222 | O30: 0 | P30: 0 | Q30: 0
A31: 2012-08-09 | B31: 2012-08-10 | C31: -0.0025 | E31: 2012-08-10 | F31: 2012-08-11 | G31: 1 | H31: 360 | I31: 0.002777777778 | J31: -0.0025 | K31: 0.0005 | L31: 0 | M31: 0 | N31: 9.722222222 | O31: 0 | P31: 0 | Q31: 0
A32: 2012-08-09 | B32: 2012-08-11 | C32: -0.0025 | E32: 2012-08-11 | F32: 2012-08-12 | G32: 1 | H32: 360 | I32: 0.002777777778 | J32: -0.0025 | K32: 0.0005 | L32: 0 | M32: 0 | N32: 9.722222222 | O32: 0 | P32: 0 | Q32: 0
A33: 2012-08-09 | B33: 2012-08-12 | C33: -0.0025 | E33: 2012-08-12 | F33: 2012-08-13 | G33: 1 | H33: 360 | I33: 0.002777777778 | J33: -0.0025 | K33: 0.0005 | L33: 0 | M33: 0 | N33: 9.722222222 | O33: 0 | P33: 0 | Q33: 0
A34: 2012-08-10 | B34: 2012-08-13 | C34: -0.001 | E34: 2012-08-13 | F34: 2012-08-14 | G34: 1 | H34: 360 | I34: 0.002777777778 | J34: -0.001 | K34: 0.0005 | L34: 0 | M34: 0 | N34: 9.722222222 | O34: 0 | P34: 0 | Q34: 0
A35: 2012-08-13 | B35: 2012-08-14 | C35: 0 | E35: 2012-08-14 | F35: 2012-08-15 | G35: 1 | H35: 360 | I35: 0.002777777778 | J35: 0 | K35: 0.0005 | L35: 0.0005 | M35: 1.388888889 | N35: 11.11111111 | O35: 0 | P35: 0 | Q35: 0
A36: 2012-08-14 | B36: 2012-08-15 | C36: 0.001 | E36: 2012-08-15 | F36: 2012-08-16 | G36: 1 | H36: 360 | I36: 0.002777777778 | J36: 0.001 | K36: 0.0005 | L36: 0.0015 | M36: 4.166666667 | N36: 15.27777778 | O36: 0 | P36: 0 | Q36: 0
A37: 2012-08-15 | B37: 2012-08-16 | C37: 0.0015 | E37: 2012-08-16 | F37: 2012-08-17 | G37: 1 | H37: 360 | I37: 0.002777777778 | J37: 0.0015 | K37: 0.0005 | L37: 0.002 | M37: 5.555555556 | N37: 20.83333333 | O37: 0 | P37: 0 | Q37: 0
A38: 2012-08-16 | B38: 2012-08-17 | C38: 0.0015 | E38: 2012-08-17 | F38: 2012-08-18 | G38: 1 | H38: 360 | I38: 0.002777777778 | J38: 0.0015 | K38: 0.0005 | L38: 0.002 | M38: 5.555555556 | N38: 26.38888889 | O38: 0 | P38: 0 | Q38: 0
A39: 2012-08-16 | B39: 2012-08-18 | C39: 0.0015 | E39: 2012-08-18 | F39: 2012-08-19 | G39: 1 | H39: 360 | I39: 0.002777777778 | J39: 0.0015 | K39: 0.0005 | L39: 0.002 | M39: 5.555555556 | N39: 31.94444444 | O39: 0 | P39: 0 | Q39: 0
A40: 2012-08-16 | B40: 2012-08-19 | C40: 0.0015 | E40: 2012-08-19 | F40: 2012-08-20 | G40: 1 | H40: 360 | I40: 0.002777777778 | J40: 0.0015 | K40: 0.0005 | L40: 0.002 | M40: 5.555555556 | N40: 37.5 | O40: 0 | P40: 0 | Q40: 0
A41: 2012-08-17 | B41: 2012-08-20 | C41: 0.0012 | E41: 2012-08-20 | F41: 2012-08-21 | G41: 1 | H41: 360 | I41: 0.002777777778 | J41: 0.0012 | K41: 0.0005 | L41: 0.0017 | M41: 4.722222222 | N41: 42.22222222 | O41: 0 | P41: 0 | Q41: 0
A42: 2012-08-20 | B42: 2012-08-21 | C42: 0.001 | E42: 2012-08-21 | F42: 2012-08-22 | G42: 1 | H42: 360 | I42: 0.002777777778 | J42: 0.001 | K42: 0.0005 | L42: 0.0015 | M42: 4.166666667 | N42: 46.38888889 | O42: 0 | P42: 0 | Q42: 0
A43: 2012-08-21 | B43: 2012-08-22 | C43: 0.001 | E43: 2012-08-22 | F43: 2012-08-23 | G43: 1 | H43: 360 | I43: 0.002777777778 | J43: 0.001 | K43: 0.0005 | L43: 0.0015 | M43: 4.166666667 | N43: 50.55555556 | O43: 0 | P43: 0 | Q43: 0
A44: 2012-08-22 | B44: 2012-08-23 | C44: 0.001 | E44: 2012-08-23 | F44: 2012-08-24 | G44: 1 | H44: 360 | I44: 0.002777777778 | J44: 0.001 | K44: 0.0005 | L44: 0.0015 | M44: 4.166666667 | N44: 54.72222222 | O44: 0 | P44: 0 | Q44: 0
A45: 2012-08-23 | B45: 2012-08-24 | C45: 0.0012 | E45: 2012-08-24 | F45: 2012-08-25 | G45: 1 | H45: 360 | I45: 0.002777777778 | J45: 0.0012 | K45: 0.0005 | L45: 0.0017 | M45: 4.722222222 | N45: 59.44444444 | O45: 0 | P45: 0 | Q45: 0
A46: 2012-08-23 | B46: 2012-08-25 | C46: 0.0012 | E46: 2012-08-25 | F46: 2012-08-26 | G46: 1 | H46: 360 | I46: 0.002777777778 | J46: 0.0012 | K46: 0.0005 | L46: 0.0017 | M46: 4.722222222 | N46: 64.16666667 | O46: 0 | P46: 0 | Q46: 0
A47: 2012-08-23 | B47: 2012-08-26 | C47: 0.0012 | E47: 2012-08-26 | F47: 2012-08-27 | G47: 1 | H47: 360 | I47: 0.002777777778 | J47: 0.0012 | K47: 0.0005 | L47: 0.0017 | M47: 4.722222222 | N47: 68.88888889 | O47: 0 | P47: 0 | Q47: 0
A48: 2012-08-24 | B48: 2012-08-27 | C48: 0.0016 | E48: 2012-08-27 | F48: 2012-08-28 | G48: 1 | H48: 360 | I48: 0.002777777778 | J48: 0.0016 | K48: 0.0005 | L48: 0.0021 | M48: 5.833333333 | N48: 74.72222222 | O48: 0 | P48: 0 | Q48: 0
A49: 2012-08-27 | B49: 2012-08-28 | C49: 0.0016 | E49: 2012-08-28 | F49: 2012-08-29 | G49: 1 | H49: 360 | I49: 0.002777777778 | J49: 0.0016 | K49: 0.0005 | L49: 0.0021 | M49: 5.833333333 | N49: 80.55555556 | O49: 0 | P49: 0 | Q49: 0
A50: 2012-08-28 | B50: 2012-08-29 | C50: 0.0017 | E50: 2012-08-29 | F50: 2012-08-30 | G50: 1 | H50: 360 | I50: 0.002777777778 | J50: 0.0017 | K50: 0.0005 | L50: 0.0022 | M50: 6.111111111 | N50: 86.66666667 | O50: 0 | P50: 0 | Q50: 0
A51: 2012-08-29 | B51: 2012-08-30 | C51: 0.0009 | E51: 2012-08-30 | F51: 2012-08-31 | G51: 1 | H51: 360 | I51: 0.002777777778 | J51: 0.0009 | K51: 0.0005 | L51: 0.0014 | M51: 3.888888889 | N51: 90.55555556 | O51: 0 | P51: 0 | Q51: 0
A52: 2012-08-30 | B52: 2012-08-31 | C52: 0.0009 | E52: 2012-08-31 | F52: 2012-09-01 | G52: 1 | H52: 360 | I52: 0.002777777778 | J52: 0.0009 | K52: 0.0005 | L52: 0.0014 | M52: 3.888888889 | N52: 94.44444444 | O52: 0 | P52: 0 | Q52: 0
A53: 2012-08-30 | B53: 2012-09-01 | C53: 0.0009 | E53: 2012-09-01 | F53: 2012-09-02 | G53: 1 | H53: 360 | I53: 0.002777777778 | J53: 0.0009 | K53: 0.0005 | L53: 0.0014 | M53: 3.888888889 | N53: 98.33333333 | O53: 0 | P53: 0 | Q53: 0
A54: 2012-08-30 | B54: 2012-09-02 | C54: 0.0009 | E54: 2012-09-02 | F54: 2012-09-03 | G54: 1 | H54: 360 | I54: 0.002777777778 | J54: 0.0009 | K54: 0.0005 | L54: 0.0014 | M54: 3.888888889 | N54: 102.2222222 | O54: 0 | P54: 0 | Q54: 0
A55: 2012-08-30 | B55: 2012-09-03 | C55: 0.0009 | E55: 2012-09-03 | F55: 2012-09-04 | G55: 1 | H55: 360 | I55: 0.002777777778 | J55: 0.0009 | K55: 0.0005 | L55: 0.0014 | M55: 3.888888889 | N55: 106.1111111 | O55: 0 | P55: 0 | Q55: 0
A56: 2012-08-31 | B56: 2012-09-04 | C56: 0.0007 | E56: 2012-09-04 | F56: 2012-09-05 | G56: 1 | H56: 360 | I56: 0.002777777778 | J56: 0.0007 | K56: 0.0005 | L56: 0.0012 | M56: 3.333333333 | N56: 109.4444444 | O56: 0 | P56: 0 | Q56: 0
A57: 2012-09-04 | B57: 2012-09-05 | C57: 0.0007 | E57: 2012-09-05 | F57: 2012-09-06 | G57: 1 | H57: 360 | I57: 0.002777777778 | J57: 0.0007 | K57: 0.0005 | L57: 0.0012 | M57: 3.333333333 | N57: 112.7777778 | O57: 0 | P57: 0 | Q57: 0
A58: 2012-09-05 | B58: 2012-09-06 | C58: 0.0006 | E58: 2012-09-06 | F58: 2012-09-07 | G58: 1 | H58: 360 | I58: 0.002777777778 | J58: 0.0006 | K58: 0.0005 | L58: 0.0011 | M58: 3.055555556 | N58: 115.8333333 | O58: 0 | P58: 0 | Q58: 0
A59: 2012-09-06 | B59: 2012-09-07 | C59: -0.0004 | E59: 2012-09-07 | F59: 2012-09-08 | G59: 1 | H59: 360 | I59: 0.002777777778 | J59: -0.0004 | K59: 0.0005 | L59: 0.0001 | M59: 0.2777777778 | N59: 116.1111111 | O59: 0 | P59: 0 | Q59: 0
A60: 2012-09-06 | B60: 2012-09-08 | C60: -0.0004 | E60: 2012-09-08 | F60: 2012-09-09 | G60: 1 | H60: 360 | I60: 0.002777777778 | J60: -0.0004 | K60: 0.0005 | L60: 0.0001 | M60: 0.2777777778 | N60: 116.3888889 | O60: 0 | P60: 0 | Q60: 0
A61: 2012-09-06 | B61: 2012-09-09 | C61: -0.0004 | E61: 2012-09-09 | F61: 2012-09-10 | G61: 1 | H61: 360 | I61: 0.002777777778 | J61: -0.0004 | K61: 0.0005 | L61: 0.0001 | M61: 0.2777777778 | N61: 116.6666667 | O61: 0 | P61: 0 | Q61: 0
A62: 2012-09-07 | B62: 2012-09-10 | C62: 0 | E62: 2012-09-10 | F62: 2012-09-11 | G62: 1 | H62: 360 | I62: 0.002777777778 | J62: 0 | K62: 0.0005 | L62: 0.0005 | M62: 1.388888889 | N62: 118.0555556 | O62: 0 | P62: 0 | Q62: 0
A63: 2012-09-10 | B63: 2012-09-11 | C63: -0.0007 | E63: 2012-09-11 | F63: 2012-09-12 | G63: 1 | H63: 360 | I63: 0.002777777778 | J63: =C63 -> -0.0007 | K63: 0.0005 | L63: 0 | M63: 0 | N63: 118.0555556 | O63: 0 | P63: 0 | Q63: 0 | S63: 1 | T63: =+S63*Q63 -> 0
E64: 2012-09-12 | F64: 2012-09-13 | G64: 1 | H64: 360 | I64: 0.002777777778 | J64: =+J63 -> -0.0007 | K64: 0.0005 | L64: 0 | M64: 0 | N64: =+N63+M64-O63 -> 118.0555556 | O64: 0 | P64: 0 | Q64: 0 | R64: =J64+$C$13 -> -0.0002
E65: 2012-09-13 | F65: 2012-09-14 | G65: 1 | H65: 360 | I65: 0.002777777778 | J65: =+J64 -> -0.0007 | K65: 0.0005 | L65: 0 | M65: 0 | N65: 118.0555556 | O65: 0 | P65: 0 | Q65: 0 | R65: -0.0002
E66: 2012-09-14 | F66: 2012-09-15 | G66: 1 | H66: 360 | I66: 0.002777777778 | J66: -0.0007 | K66: 0.0005 | L66: 0 | M66: 0 | N66: 118.0555556 | O66: 0 | P66: 0 | Q66: 0 | R66: -0.0002
E67: 2012-09-15 | F67: 2012-09-16 | G67: 1 | H67: 360 | I67: 0.002777777778 | J67: -0.0007 | K67: 0.0005 | L67: 0 | M67: 0 | N67: 118.0555556 | O67: 0 | P67: 0 | Q67: 0 | R67: -0.0002
E68: 2012-09-16 | F68: 2012-09-17 | G68: 1 | H68: 360 | I68: 0.002777777778 | J68: -0.0007 | K68: 0.0005 | L68: 0 | M68: 0 | N68: 118.0555556 | O68: 0 | P68: 0 | Q68: 0 | R68: -0.0002
E69: 2012-09-17 | F69: 2012-09-18 | G69: 1 | H69: 360 | I69: 0.002777777778 | J69: -0.0007 | K69: 0.0005 | L69: 0 | M69: 0 | N69: 118.0555556 | O69: 0 | P69: 0 | Q69: 0 | R69: -0.0002
E70: 2012-09-18 | F70: 2012-09-19 | G70: 1 | H70: 360 | I70: 0.002777777778 | J70: -0.0007 | K70: 0.0005 | L70: 0 | M70: 0 | N70: 118.0555556 | O70: 0 | P70: 0 | Q70: 0 | R70: -0.0002
E71: 2012-09-19 | F71: 2012-09-20 | G71: 1 | H71: 360 | I71: 0.002777777778 | J71: -0.0007 | K71: 0.0005 | L71: 0 | M71: 0 | N71: 118.0555556 | O71: 0 | P71: 0 | Q71: 0 | R71: -0.0002
E72: 2012-09-20 | F72: 2012-09-21 | G72: 1 | H72: 360 | I72: 0.002777777778 | J72: -0.0007 | K72: 0.0005 | L72: 0 | M72: 0 | N72: 118.0555556 | O72: 0 | P72: 0 | Q72: 0 | R72: -0.0002
E73: 2012-09-21 | F73: 2012-09-22 | G73: 1 | H73: 360 | I73: 0.002777777778 | J73: -0.0007 | K73: 0.0005 | L73: 0 | M73: 0 | N73: 118.0555556 | O73: 0 | P73: 0 | Q73: 0 | R73: -0.0002
E74: 2012-09-22 | F74: 2012-09-23 | G74: 1 | H74: 360 | I74: 0.002777777778 | J74: -0.0007 | K74: 0.0005 | L74: 0 | M74: 0 | N74: 118.0555556 | O74: 0 | P74: 0 | Q74: 0 | R74: -0.0002
E75: 2012-09-23 | F75: 2012-09-24 | G75: 1 | H75: 360 | I75: 0.002777777778 | J75: -0.0007 | K75: 0.0005 | L75: 0 | M75: 0 | N75: 118.0555556 | O75: 0 | P75: 0 | Q75: 0 | R75: -0.0002
E76: 2012-09-24 | F76: 2012-09-25 | G76: 1 | H76: 360 | I76: 0.002777777778 | J76: -0.0007 | K76: 0.0005 | L76: 0 | M76: 0 | N76: 118.0555556 | O76: 0 | P76: 0 | Q76: 0 | R76: -0.0002
E77: 2012-09-25 | F77: 2012-09-26 | G77: 1 | H77: 360 | I77: 0.002777777778 | J77: -0.0007 | K77: 0.0005 | L77: 0 | M77: 0 | N77: 118.0555556 | O77: 0 | P77: 0 | Q77: 0 | R77: -0.0002
E78: 2012-09-26 | F78: 2012-09-27 | G78: 1 | H78: 360 | I78: 0.002777777778 | J78: -0.0007 | K78: 0.0005 | L78: 0 | M78: 0 | N78: 118.0555556 | O78: 0 | P78: 0 | Q78: 0 | R78: -0.0002
E79: 2012-09-27 | F79: 2012-09-28 | G79: 1 | H79: 360 | I79: 0.002777777778 | J79: -0.0007 | K79: 0.0005 | L79: 0 | M79: 0 | N79: 118.0555556 | O79: 0 | P79: 0 | Q79: 0 | R79: -0.0002
E80: 2012-09-28 | F80: 2012-09-29 | G80: 1 | H80: 360 | I80: 0.002777777778 | J80: -0.0007 | K80: 0.0005 | L80: 0 | M80: 0 | N80: 118.0555556 | O80: 0 | P80: 0 | Q80: 0 | R80: -0.0002
E81: 2012-09-29 | F81: 2012-09-30 | G81: 1 | H81: 360 | I81: 0.002777777778 | J81: -0.0007 | K81: 0.0005 | L81: 0 | M81: 0 | N81: 118.0555556 | O81: 0 | P81: 0 | Q81: 0 | R81: -0.0002
E82: 2012-09-30 | F82: 2012-10-01 | G82: 1 | H82: 360 | I82: 0.002777777778 | J82: -0.0007 | K82: 0.0005 | L82: 0 | M82: 0 | N82: 118.0555556 | O82: 0 | P82: 0 | Q82: 0 | R82: -0.0002
E83: 2012-10-01 | F83: 2012-10-02 | G83: 1 | H83: 360 | I83: 0.002777777778 | J83: -0.0007 | K83: 0.0005 | L83: 0 | M83: 0 | N83: 118.0555556 | O83: 0 | P83: 0 | Q83: 0 | R83: -0.0002
E84: 2012-10-02 | F84: 2012-10-03 | G84: 1 | H84: 360 | I84: 0.002777777778 | J84: -0.0007 | K84: 0.0005 | L84: 0 | M84: 0 | N84: 118.0555556 | O84: 0 | P84: 0 | Q84: 0 | R84: -0.0002
E85: 2012-10-03 | F85: 2012-10-04 | G85: 1 | H85: 360 | I85: 0.002777777778 | J85: -0.0007 | K85: =+$C$11 -> 0.0005 | L85: 0 | M85: =L85*$C$10*I85 -> 0 | N85: 118.0555556 | O85: 0 | P85: 0 | Q85: 0 | R85: =J85+$C$13 -> -0.0002
E86: 2012-10-04 | F86: =+E86+1 -> 2012-10-05 | G86: =+F86-E86 -> 1 | H86: 360 | I86: =G86/H86 -> 0.002777777778 | J86: -0.0007 | K86: 0.0005 | L86: =MAX(0,K86+J86) -> 0 | M86: 0 | N86: 118.0555556 | O86: 0 | P86: 0 | Q86: =+P86+O86 -> 0 | R86: -0.0002
E87: =+F86 -> 2012-10-05 | F87: 2012-10-06 | G87: 1 | H87: 360 | I87: 0.002777777778 | J87: -0.0007 | K87: 0.0005 | L87: 0 | M87: 0 | N87: =+N86+M87-O86 -> 118.0555556 | O87: 0 | P87: 0 | Q87: 0 | R87: -0.0002
E88: 2012-10-06 | F88: 2012-10-07 | G88: 1 | H88: 360 | I88: 0.002777777778 | J88: -0.0007 | K88: 0.0005 | L88: 0 | M88: 0 | N88: 118.0555556 | O88: 0 | P88: 0 | Q88: 0 | R88: -0.0002
E89: 2012-10-07 | F89: 2012-10-08 | G89: 1 | H89: 360 | I89: 0.002777777778 | J89: -0.0007 | K89: 0.0005 | L89: 0 | M89: 0 | N89: 118.0555556 | O89: 0 | P89: 0 | Q89: 0 | R89: -0.0002
E90: 2012-10-08 | F90: 2012-10-09 | G90: 1 | H90: 360 | I90: 0.002777777778 | J90: -0.0007 | K90: 0.0005 | L90: 0 | M90: 0 | N90: 118.0555556 | O90: 0 | P90: 0 | Q90: 0 | R90: -0.0002
E91: 2012-10-09 | F91: 2012-10-10 | G91: 1 | H91: 360 | I91: 0.002777777778 | J91: -0.0007 | K91: 0.0005 | L91: 0 | M91: 0 | N91: 118.0555556 | O91: 0 | P91: 0 | Q91: 0 | R91: -0.0002
E92: 2012-10-10 | F92: 2012-10-11 | G92: 1 | H92: 360 | I92: 0.002777777778 | J92: -0.0007 | K92: 0.0005 | L92: 0 | M92: 0 | N92: 118.0555556 | O92: 0 | P92: 0 | Q92: 0 | R92: -0.0002
E93: 2012-10-11 | F93: 2012-10-12 | G93: 1 | H93: 360 | I93: 0.002777777778 | J93: -0.0007 | K93: 0.0005 | L93: 0 | M93: 0 | N93: 118.0555556 | O93: 0 | P93: 0 | Q93: 0 | R93: -0.0002
E94: 2012-10-12 | F94: 2012-10-13 | G94: 1 | H94: 360 | I94: 0.002777777778 | J94: -0.0007 | K94: 0.0005 | L94: 0 | M94: 0 | N94: 118.0555556 | O94: 0 | P94: 0 | Q94: 0 | R94: -0.0002
E95: 2012-10-13 | F95: 2012-10-14 | G95: 1 | H95: 360 | I95: 0.002777777778 | J95: -0.0007 | K95: 0.0005 | L95: 0 | M95: 0 | N95: 118.0555556 | O95: 0 | P95: 0 | Q95: 0 | R95: -0.0002
E96: 2012-10-14 | F96: 2012-10-15 | G96: 1 | H96: 360 | I96: 0.002777777778 | J96: -0.0007 | K96: 0.0005 | L96: 0 | M96: 0 | N96: 118.0555556 | O96: 0 | P96: 0 | Q96: 0 | R96: -0.0002
E97: 2012-10-15 | F97: 2012-10-16 | G97: 1 | H97: 360 | I97: 0.002777777778 | J97: -0.0007 | K97: 0.0005 | L97: 0 | M97: 0 | N97: 118.0555556 | O97: 0 | P97: 0 | Q97: 0 | R97: -0.0002
E98: 2012-10-16 | F98: 2012-10-17 | G98: 1 | H98: 360 | I98: 0.002777777778 | J98: -0.0007 | K98: 0.0005 | L98: 0 | M98: 0 | N98: 118.0555556 | O98: 0 | P98: 0 | Q98: 0 | R98: -0.0002
E99: 2012-10-17 | F99: 2012-10-18 | G99: 1 | H99: 360 | I99: 0.002777777778 | J99: -0.0007 | K99: 0.0005 | L99: 0 | M99: 0 | N99: 118.0555556 | O99: 0 | P99: 0 | Q99: 0 | R99: -0.0002
E100: 2012-10-18 | F100: 2012-10-19 | G100: 1 | H100: 360 | I100: 0.002777777778 | J100: -0.0007 | K100: 0.0005 | L100: 0 | M100: 0 | N100: 118.0555556 | O100: 0 | P100: 0 | Q100: 0 | R100: -0.0002
E101: 2012-10-19 | F101: 2012-10-20 | G101: 1 | H101: 360 | I101: 0.002777777778 | J101: -0.0007 | K101: 0.0005 | L101: 0 | M101: 0 | N101: 118.0555556 | O101: 0 | P101: 0 | Q101: 0 | R101: -0.0002
E102: 2012-10-20 | F102: 2012-10-21 | G102: 1 | H102: 360 | I102: 0.002777777778 | J102: -0.0007 | K102: 0.0005 | L102: 0 | M102: 0 | N102: 118.0555556 | O102: 0 | P102: 0 | Q102: 0 | R102: -0.0002
E103: 2012-10-21 | F103: 2012-10-22 | G103: 1 | H103: 360 | I103: 0.002777777778 | J103: -0.0007 | K103: 0.0005 | L103: 0 | M103: 0 | N103: 118.0555556 | O103: 0 | P103: 0 | Q103: 0 | R103: -0.0002
E104: 2012-10-22 | F104: 2012-10-23 | G104: 1 | H104: 360 | I104: 0.002777777778 | J104: -0.0007 | K104: 0.0005 | L104: 0 | M104: 0 | N104: 118.0555556 | O104: 0 | P104: 0 | Q104: 0 | R104: -0.0002
E105: 2012-10-23 | F105: 2012-10-24 | G105: 1 | H105: 360 | I105: 0.002777777778 | J105: -0.0007 | K105: 0.0005 | L105: 0 | M105: 0 | N105: 118.0555556 | O105: 0 | P105: 0 | Q105: 0 | R105: -0.0002
E106: 2012-10-24 | F106: 2012-10-25 | G106: 1 | H106: 360 | I106: 0.002777777778 | J106: -0.0007 | K106: 0.0005 | L106: 0 | M106: 0 | N106: 118.0555556 | O106: 0 | P106: 0 | Q106: 0 | R106: -0.0002
E107: 2012-10-25 | F107: 2012-10-26 | G107: 1 | H107: 360 | I107: 0.002777777778 | J107: -0.0007 | K107: 0.0005 | L107: 0 | M107: 0 | N107: 118.0555556 | O107: 0 | P107: 0 | Q107: 0 | R107: -0.0002
E108: 2012-10-26 | F108: 2012-10-27 | G108: 1 | H108: 360 | I108: 0.002777777778 | J108: -0.0007 | K108: 0.0005 | L108: 0 | M108: 0 | N108: 118.0555556 | O108: 0 | P108: 0 | Q108: 0 | R108: -0.0002
E109: 2012-10-27 | F109: 2012-10-28 | G109: 1 | H109: 360 | I109: 0.002777777778 | J109: -0.0007 | K109: 0.0005 | L109: 0 | M109: 0 | N109: 118.0555556 | O109: 0 | P109: 0 | Q109: 0 | R109: -0.0002
E110: 2012-10-28 | F110: 2012-10-29 | G110: 1 | H110: 360 | I110: 0.002777777778 | J110: -0.0007 | K110: 0.0005 | L110: 0 | M110: 0 | N110: 118.0555556 | O110: 0 | P110: 0 | Q110: 0 | R110: -0.0002
E111: 2012-10-29 | F111: 2012-10-30 | G111: 1 | H111: 360 | I111: 0.002777777778 | J111: -0.0007 | K111: 0.0005 | L111: 0 | M111: 0 | N111: 118.0555556 | O111: 0 | P111: 0 | Q111: 0 | R111: -0.0002
E112: 2012-10-30 | F112: 2012-10-31 | G112: 1 | H112: 360 | I112: 0.002777777778 | J112: -0.0007 | K112: 0.0005 | L112: 0 | M112: 0 | N112: 118.0555556 | O112: =SUM(M21:M112) -> 118.0555556 | P112: 0 | Q112: 118.0555556 | R112: -0.0002 | S112: =S63/(1+AVERAGE(R64:R112)*SUM(I64:I112)) -> 1.000027223 | T112: =+S112*Q112 -> 118.0587694
E113: 2012-10-31 | F113: 2012-11-01 | G113: 1 | H113: 360 | I113: 0.002777777778 | J113: -0.0007 | K113: 0.0005 | L113: 0 | M113: 0 | N113: 0 | O113: 0 | P113: 0 | Q113: 0 | R113: -0.0002
E114: 2012-11-01 | F114: 2012-11-02 | G114: 1 | H114: 360 | I114: 0.002777777778 | J114: -0.0007 | K114: 0.0005 | L114: 0 | M114: 0 | N114: 0 | O114: 0 | P114: 0 | Q114: 0 | R114: -0.0002
E115: 2012-11-02 | F115: 2012-11-03 | G115: 1 | H115: 360 | I115: 0.002777777778 | J115: -0.0007 | K115: 0.0005 | L115: 0 | M115: 0 | N115: 0 | O115: 0 | P115: 0 | Q115: 0 | R115: -0.0002
E116: 2012-11-03 | F116: 2012-11-04 | G116: 1 | H116: 360 | I116: 0.002777777778 | J116: -0.0007 | K116: 0.0005 | L116: 0 | M116: 0 | N116: 0 | O116: 0 | P116: 0 | Q116: 0 | R116: -0.0002
E117: 2012-11-04 | F117: 2012-11-05 | G117: 1 | H117: 360 | I117: 0.002777777778 | J117: -0.0007 | K117: 0.0005 | L117: 0 | M117: 0 | N117: 0 | O117: 0 | P117: 0 | Q117: 0 | R117: -0.0002
E118: 2012-11-05 | F118: 2012-11-06 | G118: 1 | H118: 360 | I118: 0.002777777778 | J118: -0.0007 | K118: 0.0005 | L118: 0 | M118: 0 | N118: 0 | O118: 0 | P118: 0 | Q118: 0 | R118: -0.0002
E119: 2012-11-06 | F119: 2012-11-07 | G119: 1 | H119: 360 | I119: 0.002777777778 | J119: -0.0007 | K119: 0.0005 | L119: 0 | M119: 0 | N119: 0 | O119: 0 | P119: 0 | Q119: 0 | R119: -0.0002
E120: 2012-11-07 | F120: 2012-11-08 | G120: 1 | H120: 360 | I120: 0.002777777778 | J120: -0.0007 | K120: 0.0005 | L120: 0 | M120: 0 | N120: 0 | O120: 0 | P120: 0 | Q120: 0 | R120: -0.0002
E121: 2012-11-08 | F121: 2012-11-09 | G121: 1 | H121: 360 | I121: 0.002777777778 | J121: -0.0007 | K121: 0.0005 | L121: 0 | M121: 0 | N121: 0 | O121: 0 | P121: 0 | Q121: 0 | R121: -0.0002
E122: 2012-11-09 | F122: 2012-11-10 | G122: 1 | H122: 360 | I122: 0.002777777778 | J122: -0.0007 | K122: 0.0005 | L122: 0 | M122: 0 | N122: 0 | O122: 0 | P122: 0 | Q122: 0 | R122: -0.0002
E123: 2012-11-10 | F123: 2012-11-11 | G123: 1 | H123: 360 | I123: 0.002777777778 | J123: -0.0007 | K123: 0.0005 | L123: 0 | M123: 0 | N123: 0 | O123: 0 | P123: 0 | Q123: 0 | R123: -0.0002
E124: 2012-11-11 | F124: 2012-11-12 | G124: 1 | H124: 360 | I124: 0.002777777778 | J124: -0.0007 | K124: 0.0005 | L124: 0 | M124: 0 | N124: 0 | O124: 0 | P124: 0 | Q124: 0 | R124: -0.0002
E125: 2012-11-12 | F125: 2012-11-13 | G125: 1 | H125: 360 | I125: 0.002777777778 | J125: -0.0007 | K125: 0.0005 | L125: 0 | M125: 0 | N125: 0 | O125: 0 | P125: 0 | Q125: 0 | R125: -0.0002
E126: 2012-11-13 | F126: 2012-11-14 | G126: 1 | H126: 360 | I126: 0.002777777778 | J126: -0.0007 | K126: 0.0005 | L126: 0 | M126: 0 | N126: 0 | O126: 0 | P126: 0 | Q126: 0 | R126: -0.0002
E127: 2012-11-14 | F127: 2012-11-15 | G127: 1 | H127: 360 | I127: 0.002777777778 | J127: -0.0007 | K127: 0.0005 | L127: 0 | M127: 0 | N127: 0 | O127: 0 | P127: 0 | Q127: 0 | R127: -0.0002
E128: 2012-11-15 | F128: 2012-11-16 | G128: 1 | H128: 360 | I128: 0.002777777778 | J128: -0.0007 | K128: 0.0005 | L128: 0 | M128: 0 | N128: 0 | O128: 0 | P128: 0 | Q128: 0 | R128: -0.0002
E129: 2012-11-16 | F129: 2012-11-17 | G129: 1 | H129: 360 | I129: 0.002777777778 | J129: =+J128 -> -0.0007 | K129: 0.0005 | L129: 0 | M129: 0 | N129: 0 | O129: 0 | P129: 0 | Q129: 0 | R129: -0.0002
E130: 2012-11-17 | F130: 2012-11-18 | G130: 1 | H130: 360 | I130: 0.002777777778 | J130: -0.0007 | K130: 0.0005 | L130: 0 | M130: 0 | N130: 0 | O130: 0 | P130: 0 | Q130: 0 | R130: -0.0002
E131: 2012-11-18 | F131: 2012-11-19 | G131: 1 | H131: 360 | I131: 0.002777777778 | J131: -0.0007 | K131: 0.0005 | L131: 0 | M131: 0 | N131: 0 | O131: 0 | P131: 0 | Q131: 0 | R131: -0.0002
E132: 2012-11-19 | F132: 2012-11-20 | G132: 1 | H132: 360 | I132: 0.002777777778 | J132: -0.0007 | K132: 0.0005 | L132: 0 | M132: 0 | N132: 0 | O132: 0 | P132: 0 | Q132: 0 | R132: -0.0002
E133: 2012-11-20 | F133: 2012-11-21 | G133: 1 | H133: 360 | I133: 0.002777777778 | J133: -0.0007 | K133: 0.0005 | L133: 0 | M133: 0 | N133: 0 | O133: 0 | P133: 0 | Q133: 0 | R133: -0.0002
E134: 2012-11-21 | F134: 2012-11-22 | G134: 1 | H134: 360 | I134: 0.002777777778 | J134: -0.0007 | K134: 0.0005 | L134: 0 | M134: 0 | N134: 0 | O134: 0 | P134: 0 | Q134: 0 | R134: -0.0002
E135: 2012-11-22 | F135: 2012-11-23 | G135: 1 | H135: 360 | I135: 0.002777777778 | J135: -0.0007 | K135: 0.0005 | L135: 0 | M135: 0 | N135: 0 | O135: 0 | P135: 0 | Q135: 0 | R135: -0.0002
E136: 2012-11-23 | F136: 2012-11-24 | G136: 1 | H136: 360 | I136: 0.002777777778 | J136: -0.0007 | K136: 0.0005 | L136: 0 | M136: 0 | N136: 0 | O136: 0 | P136: 0 | Q136: 0 | R136: -0.0002
E137: 2012-11-24 | F137: 2012-11-25 | G137: 1 | H137: 360 | I137: 0.002777777778 | J137: -0.0007 | K137: 0.0005 | L137: 0 | M137: 0 | N137: 0 | O137: 0 | P137: 0 | Q137: 0 | R137: -0.0002
E138: 2012-11-25 | F138: 2012-11-26 | G138: 1 | H138: 360 | I138: 0.002777777778 | J138: -0.0007 | K138: 0.0005 | L138: 0 | M138: 0 | N138: 0 | O138: 0 | P138: 0 | Q138: 0 | R138: -0.0002
E139: 2012-11-26 | F139: 2012-11-27 | G139: 1 | H139: 360 | I139: 0.002777777778 | J139: -0.0007 | K139: 0.0005 | L139: 0 | M139: 0 | N139: 0 | O139: 0 | P139: 0 | Q139: 0 | R139: -0.0002
E140: 2012-11-27 | F140: 2012-11-28 | G140: 1 | H140: 360 | I140: 0.002777777778 | J140: -0.0007 | K140: 0.0005 | L140: 0 | M140: 0 | N140: 0 | O140: 0 | P140: 0 | Q140: 0 | R140: -0.0002
E141: 2012-11-28 | F141: 2012-11-29 | G141: 1 | H141: 360 | I141: 0.002777777778 | J141: -0.0007 | K141: 0.0005 | L141: 0 | M141: 0 | N141: 0 | O141: 0 | P141: 0 | Q141: 0 | R141: -0.0002
E142: 2012-11-29 | F142: 2012-11-30 | G142: 1 | H142: 360 | I142: 0.002777777778 | J142: -0.0007 | K142: 0.0005 | L142: 0 | M142: 0 | N142: 0 | O142: 0 | P142: 0 | Q142: 0 | R142: -0.0002
E143: 2012-11-30 | F143: 2012-12-01 | G143: 1 | H143: 360 | I143: 0.002777777778 | J143: -0.0007 | K143: 0.0005 | L143: 0 | M143: 0 | N143: 0 | O143: 0 | P143: 0 | Q143: 0 | R143: -0.0002
E144: 2012-12-01 | F144: 2012-12-02 | G144: 1 | H144: 360 | I144: 0.002777777778 | J144: -0.0007 | K144: 0.0005 | L144: 0 | M144: 0 | N144: 0 | O144: 0 | P144: 0 | Q144: 0 | R144: -0.0002
E145: 2012-12-02 | F145: 2012-12-03 | G145: 1 | H145: 360 | I145: 0.002777777778 | J145: -0.0007 | K145: 0.0005 | L145: 0 | M145: 0 | N145: 0 | O145: 0 | P145: 0 | Q145: 0 | R145: -0.0002
E146: 2012-12-03 | F146: 2012-12-04 | G146: 1 | H146: 360 | I146: 0.002777777778 | J146: -0.0007 | K146: 0.0005 | L146: 0 | M146: 0 | N146: 0 | O146: 0 | P146: 0 | Q146: 0 | R146: -0.0002
E147: 2012-12-04 | F147: 2012-12-05 | G147: 1 | H147: 360 | I147: 0.002777777778 | J147: -0.0007 | K147: 0.0005 | L147: 0 | M147: 0 | N147: 0 | O147: 0 | P147: 0 | Q147: 0 | R147: -0.0002
E148: 2012-12-05 | F148: 2012-12-06 | G148: 1 | H148: 360 | I148: 0.002777777778 | J148: -0.0007 | K148: 0.0005 | L148: 0 | M148: 0 | N148: 0 | O148: 0 | P148: 0 | Q148: 0 | R148: -0.0002
E149: 2012-12-06 | F149: 2012-12-07 | G149: 1 | H149: 360 | I149: 0.002777777778 | J149: -0.0007 | K149: =+$C$11 -> 0.0005 | L149: 0 | M149: =L149*$C$10*I149 -> 0 | N149: 0 | O149: 0 | P149: 0 | Q149: 0 | R149: =J149+$C$13 -> -0.0002
E150: 2012-12-07 | F150: =+E150+1 -> 2012-12-08 | G150: =+F150-E150 -> 1 | H150: 360 | I150: =G150/H150 -> 0.002777777778 | J150: -0.0007 | K150: 0.0005 | L150: =MAX(0,K150+J150) -> 0 | M150: 0 | N150: 0 | O150: 0 | P150: 0 | Q150: =+P150+O150 -> 0 | R150: -0.0002
E151: =+F150 -> 2012-12-08 | F151: 2012-12-09 | G151: 1 | H151: 360 | I151: 0.002777777778 | J151: -0.0007 | K151: 0.0005 | L151: 0 | M151: 0 | N151: =+N150+M151-O150 -> 0 | O151: 0 | P151: 0 | Q151: 0 | R151: -0.0002
E152: 2012-12-09 | F152: 2012-12-10 | G152: 1 | H152: 360 | I152: 0.002777777778 | J152: -0.0007 | K152: 0.0005 | L152: 0 | M152: 0 | N152: 0 | O152: 0 | P152: 0 | Q152: 0 | R152: -0.0002
E153: 2012-12-10 | F153: 2012-12-11 | G153: 1 | H153: 360 | I153: 0.002777777778 | J153: -0.0007 | K153: 0.0005 | L153: 0 | M153: 0 | N153: 0 | O153: 0 | P153: 0 | Q153: 0 | R153: -0.0002
E154: 2012-12-11 | F154: 2012-12-12 | G154: 1 | H154: 360 | I154: 0.002777777778 | J154: -0.0007 | K154: 0.0005 | L154: 0 | M154: 0 | N154: 0 | O154: 0 | P154: 0 | Q154: 0 | R154: -0.0002
E155: 2012-12-12 | F155: 2012-12-13 | G155: 1 | H155: 360 | I155: 0.002777777778 | J155: -0.0007 | K155: 0.0005 | L155: 0 | M155: 0 | N155: 0 | O155: 0 | P155: 0 | Q155: 0 | R155: -0.0002
E156: 2012-12-13 | F156: 2012-12-14 | G156: 1 | H156: 360 | I156: 0.002777777778 | J156: -0.0007 | K156: 0.0005 | L156: 0 | M156: 0 | N156: 0 | O156: 0 | P156: 0 | Q156: 0 | R156: -0.0002
E157: 2012-12-14 | F157: 2012-12-15 | G157: 1 | H157: 360 | I157: 0.002777777778 | J157: -0.0007 | K157: 0.0005 | L157: 0 | M157: 0 | N157: 0 | O157: 0 | P157: 0 | Q157: 0 | R157: -0.0002
E158: 2012-12-15 | F158: 2012-12-16 | G158: 1 | H158: 360 | I158: 0.002777777778 | J158: -0.0007 | K158: 0.0005 | L158: 0 | M158: 0 | N158: 0 | O158: 0 | P158: 0 | Q158: 0 | R158: -0.0002
E159: 2012-12-16 | F159: 2012-12-17 | G159: 1 | H159: 360 | I159: 0.002777777778 | J159: -0.0007 | K159: 0.0005 | L159: 0 | M159: 0 | N159: 0 | O159: 0 | P159: 0 | Q159: 0 | R159: -0.0002
E160: 2012-12-17 | F160: 2012-12-18 | G160: 1 | H160: 360 | I160: 0.002777777778 | J160: -0.0007 | K160: 0.0005 | L160: 0 | M160: 0 | N160: 0 | O160: 0 | P160: 0 | Q160: 0 | R160: -0.0002
E161: 2012-12-18 | F161: 2012-12-19 | G161: 1 | H161: 360 | I161: 0.002777777778 | J161: -0.0007 | K161: 0.0005 | L161: 0 | M161: 0 | N161: 0 | O161: 0 | P161: 0 | Q161: 0 | R161: -0.0002
E162: 2012-12-19 | F162: 2012-12-20 | G162: 1 | H162: 360 | I162: 0.002777777778 | J162: -0.0007 | K162: 0.0005 | L162: 0 | M162: 0 | N162: 0 | O162: 0 | P162: 0 | Q162: 0 | R162: -0.0002
E163: 2012-12-20 | F163: 2012-12-21 | G163: 1 | H163: 360 | I163: 0.002777777778 | J163: -0.0007 | K163: 0.0005 | L163: 0 | M163: 0 | N163: 0 | O163: 0 | P163: 0 | Q163: 0 | R163: -0.0002
E164: 2012-12-21 | F164: 2012-12-22 | G164: 1 | H164: 360 | I164: 0.002777777778 | J164: -0.0007 | K164: 0.0005 | L164: 0 | M164: 0 | N164: 0 | O164: 0 | P164: 0 | Q164: 0 | R164: -0.0002
E165: 2012-12-22 | F165: 2012-12-23 | G165: 1 | H165: 360 | I165: 0.002777777778 | J165: -0.0007 | K165: 0.0005 | L165: 0 | M165: 0 | N165: 0 | O165: 0 | P165: 0 | Q165: 0 | R165: -0.0002
E166: 2012-12-23 | F166: 2012-12-24 | G166: 1 | H166: 360 | I166: 0.002777777778 | J166: -0.0007 | K166: 0.0005 | L166: 0 | M166: 0 | N166: 0 | O166: 0 | P166: 0 | Q166: 0 | R166: -0.0002
E167: 2012-12-24 | F167: 2012-12-25 | G167: 1 | H167: 360 | I167: 0.002777777778 | J167: -0.0007 | K167: 0.0005 | L167: 0 | M167: 0 | N167: 0 | O167: 0 | P167: 0 | Q167: 0 | R167: -0.0002
E168: 2012-12-25 | F168: 2012-12-26 | G168: 1 | H168: 360 | I168: 0.002777777778 | J168: -0.0007 | K168: 0.0005 | L168: 0 | M168: 0 | N168: 0 | O168: 0 | P168: 0 | Q168: 0 | R168: -0.0002
E169: 2012-12-26 | F169: 2012-12-27 | G169: 1 | H169: 360 | I169: 0.002777777778 | J169: -0.0007 | K169: 0.0005 | L169: 0 | M169: 0 | N169: 0 | O169: 0 | P169: 0 | Q169: 0 | R169: -0.0002
E170: 2012-12-27 | F170: 2012-12-28 | G170: 1 | H170: 360 | I170: 0.002777777778 | J170: -0.0007 | K170: 0.0005 | L170: 0 | M170: 0 | N170: 0 | O170: 0 | P170: 0 | Q170: 0 | R170: -0.0002
E171: 2012-12-28 | F171: 2012-12-29 | G171: 1 | H171: 360 | I171: 0.002777777778 | J171: -0.0007 | K171: 0.0005 | L171: 0 | M171: 0 | N171: 0 | O171: 0 | P171: 0 | Q171: 0 | R171: -0.0002
E172: 2012-12-29 | F172: 2012-12-30 | G172: 1 | H172: 360 | I172: 0.002777777778 | J172: -0.0007 | K172: 0.0005 | L172: 0 | M172: 0 | N172: 0 | O172: 0 | P172: 0 | Q172: 0 | R172: -0.0002
E173: 2012-12-30 | F173: 2012-12-31 | G173: 1 | H173: 360 | I173: 0.002777777778 | J173: -0.0007 | K173: 0.0005 | L173: 0 | M173: 0 | N173: 0 | O173: 0 | P173: 0 | Q173: 0 | R173: -0.0002
E174: 2012-12-31 | F174: 2013-01-01 | G174: 1 | H174: 360 | I174: 0.002777777778 | J174: -0.0007 | K174: 0.0005 | L174: 0 | M174: 0 | N174: 0 | O174: 0 | P174: 0 | Q174: 0 | R174: -0.0002
E175: 2013-01-01 | F175: 2013-01-02 | G175: 1 | H175: 360 | I175: 0.002777777778 | J175: -0.0007 | K175: 0.0005 | L175: 0 | M175: 0 | N175: 0 | O175: 0 | P175: 0 | Q175: 0 | R175: -0.0002
E176: 2013-01-02 | F176: 2013-01-03 | G176: 1 | H176: 360 | I176: 0.002777777778 | J176: -0.0007 | K176: 0.0005 | L176: 0 | M176: 0 | N176: 0 | O176: 0 | P176: 0 | Q176: 0 | R176: -0.0002
E177: 2013-01-03 | F177: 2013-01-04 | G177: 1 | H177: 360 | I177: 0.002777777778 | J177: -0.0007 | K177: 0.0005 | L177: 0 | M177: 0 | N177: 0 | O177: 0 | P177: 0 | Q177: 0 | R177: -0.0002
E178: 2013-01-04 | F178: 2013-01-05 | G178: 1 | H178: 360 | I178: 0.002777777778 | J178: -0.0007 | K178: 0.0005 | L178: 0 | M178: 0 | N178: 0 | O178: 0 | P178: 0 | Q178: 0 | R178: -0.0002
E179: 2013-01-05 | F179: 2013-01-06 | G179: 1 | H179: 360 | I179: 0.002777777778 | J179: -0.0007 | K179: 0.0005 | L179: 0 | M179: 0 | N179: 0 | O179: 0 | P179: 0 | Q179: 0 | R179: -0.0002
E180: 2013-01-06 | F180: 2013-01-07 | G180: 1 | H180: 360 | I180: 0.002777777778 | J180: -0.0007 | K180: 0.0005 | L180: 0 | M180: 0 | N180: 0 | O180: 0 | P180: 0 | Q180: 0 | R180: -0.0002
E181: 2013-01-07 | F181: 2013-01-08 | G181: 1 | H181: 360 | I181: 0.002777777778 | J181: -0.0007 | K181: 0.0005 | L181: 0 | M181: 0 | N181: 0 | O181: 0 | P181: 0 | Q181: 0 | R181: -0.0002
E182: 2013-01-08 | F182: 2013-01-09 | G182: 1 | H182: 360 | I182: 0.002777777778 | J182: -0.0007 | K182: 0.0005 | L182: 0 | M182: 0 | N182: 0 | O182: 0 | P182: 0 | Q182: 0 | R182: -0.0002
E183: 2013-01-09 | F183: 2013-01-10 | G183: 1 | H183: 360 | I183: 0.002777777778 | J183: -0.0007 | K183: 0.0005 | L183: 0 | M183: 0 | N183: 0 | O183: 0 | P183: 0 | Q183: 0 | R183: -0.0002
E184: 2013-01-10 | F184: 2013-01-11 | G184: 1 | H184: 360 | I184: 0.002777777778 | J184: -0.0007 | K184: 0.0005 | L184: 0 | M184: 0 | N184: 0 | O184: 0 | P184: 0 | Q184: 0 | R184: -0.0002
E185: 2013-01-11 | F185: 2013-01-12 | G185: 1 | H185: 360 | I185: 0.002777777778 | J185: -0.0007 | K185: 0.0005 | L185: 0 | M185: 0 | N185: 0 | O185: 0 | P185: 0 | Q185: 0 | R185: -0.0002
E186: 2013-01-12 | F186: 2013-01-13 | G186: 1 | H186: 360 | I186: 0.002777777778 | J186: -0.0007 | K186: 0.0005 | L186: 0 | M186: 0 | N186: 0 | O186: 0 | P186: 0 | Q186: 0 | R186: -0.0002
E187: 2013-01-13 | F187: 2013-01-14 | G187: 1 | H187: 360 | I187: 0.002777777778 | J187: -0.0007 | K187: 0.0005 | L187: 0 | M187: 0 | N187: 0 | O187: 0 | P187: 0 | Q187: 0 | R187: -0.0002
E188: 2013-01-14 | F188: 2013-01-15 | G188: 1 | H188: 360 | I188: 0.002777777778 | J188: -0.0007 | K188: 0.0005 | L188: 0 | M188: 0 | N188: 0 | O188: 0 | P188: 0 | Q188: 0 | R188: -0.0002
E189: 2013-01-15 | F189: 2013-01-16 | G189: 1 | H189: 360 | I189: 0.002777777778 | J189: -0.0007 | K189: 0.0005 | L189: 0 | M189: 0 | N189: 0 | O189: 0 | P189: 0 | Q189: 0 | R189: -0.0002
E190: 2013-01-16 | F190: 2013-01-17 | G190: 1 | H190: 360 | I190: 0.002777777778 | J190: -0.0007 | K190: 0.0005 | L190: 0 | M190: 0 | N190: 0 | O190: 0 | P190: 0 | Q190: 0 | R190: -0.0002
E191: 2013-01-17 | F191: 2013-01-18 | G191: 1 | H191: 360 | I191: 0.002777777778 | J191: -0.0007 | K191: 0.0005 | L191: 0 | M191: 0 | N191: 0 | O191: 0 | P191: 0 | Q191: 0 | R191: -0.0002
E192: 2013-01-18 | F192: 2013-01-19 | G192: 1 | H192: 360 | I192: 0.002777777778 | J192: -0.0007 | K192: 0.0005 | L192: 0 | M192: 0 | N192: 0 | O192: 0 | P192: 0 | Q192: 0 | R192: -0.0002
E193: 2013-01-19 | F193: 2013-01-20 | G193: 1 | H193: 360 | I193: 0.002777777778 | J193: =+J192 -> -0.0007 | K193: 0.0005 | L193: 0 | M193: 0 | N193: 0 | O193: 0 | P193: 0 | Q193: 0 | R193: -0.0002
E194: 2013-01-20 | F194: 2013-01-21 | G194: 1 | H194: 360 | I194: 0.002777777778 | J194: -0.0007 | K194: 0.0005 | L194: 0 | M194: 0 | N194: 0 | O194: 0 | P194: 0 | Q194: 0 | R194: -0.0002
E195: 2013-01-21 | F195: 2013-01-22 | G195: 1 | H195: 360 | I195: 0.002777777778 | J195: -0.0007 | K195: 0.0005 | L195: 0 | M195: 0 | N195: 0 | O195: 0 | P195: 0 | Q195: 0 | R195: -0.0002
E196: 2013-01-22 | F196: 2013-01-23 | G196: 1 | H196: 360 | I196: 0.002777777778 | J196: -0.0007 | K196: 0.0005 | L196: 0 | M196: 0 | N196: 0 | O196: 0 | P196: 0 | Q196: 0 | R196: -0.0002
E197: 2013-01-23 | F197: 2013-01-24 | G197: 1 | H197: 360 | I197: 0.002777777778 | J197: -0.0007 | K197: 0.0005 | L197: 0 | M197: 0 | N197: 0 | O197: 0 | P197: 0 | Q197: 0 | R197: -0.0002
E198: 2013-01-24 | F198: 2013-01-25 | G198: 1 | H198: 360 | I198: 0.002777777778 | J198: -0.0007 | K198: 0.0005 | L198: 0 | M198: 0 | N198: 0 | O198: 0 | P198: 0 | Q198: 0 | R198: -0.0002
E199: 2013-01-25 | F199: 2013-01-26 | G199: 1 | H199: 360 | I199: 0.002777777778 | J199: -0.0007 | K199: 0.0005 | L199: 0 | M199: 0 | N199: 0 | O199: 0 | P199: 0 | Q199: 0 | R199: -0.0002
E200: 2013-01-26 | F200: 2013-01-27 | G200: 1 | H200: 360 | I200: 0.002777777778 | J200: -0.0007 | K200: 0.0005 | L200: 0 | M200: 0 | N200: 0 | O200: 0 | P200: 0 | Q200: 0 | R200: -0.0002
E201: 2013-01-27 | F201: 2013-01-28 | G201: 1 | H201: 360 | I201: 0.002777777778 | J201: -0.0007 | K201: 0.0005 | L201: 0 | M201: 0 | N201: 0 | O201: 0 | P201: 0 | Q201: 0 | R201: -0.0002
E202: 2013-01-28 | F202: 2013-01-29 | G202: 1 | H202: 360 | I202: 0.002777777778 | J202: -0.0007 | K202: 0.0005 | L202: 0 | M202: 0 | N202: 0 | O202: 0 | P202: 0 | Q202: 0 | R202: -0.0002
E203: 2013-01-29 | F203: 2013-01-30 | G203: 1 | H203: 360 | I203: 0.002777777778 | J203: -0.0007 | K203: 0.0005 | L203: 0 | M203: 0 | N203: 0 | O203: 0 | P203: 0 | Q203: 0 | R203: -0.0002
E204: 2013-01-30 | F204: 2013-01-31 | G204: 1 | H204: 360 | I204: 0.002777777778 | J204: -0.0007 | K204: 0.0005 | L204: 0 | M204: 0 | N204: 0 | O204: =SUM(M113:M204) -> 0 | P204: 0 | Q204: 0 | R204: -0.0002 | S204: =S112/(1+AVERAGE(R113:R204)*SUM(I113:I204)) -> 1.000078338 | T204: =+S204*Q204 -> 0
E205: 2013-01-31 | F205: 2013-02-01 | G205: 1 | H205: 360 | I205: 0.002777777778 | J205: -0.0007 | K205: 0.0005 | L205: 0 | M205: 0 | N205: 0 | O205: 0 | P205: 0 | Q205: 0 | R205: -0.0002
... 545 more rows
